date,department/service,beneficiary,amount,summary of purpose,category,transaction number,SAP vendor number
01.09.2023,ADULT SOCIAL CARE,BRITISH GAS,657.48,CASTLEMEAD,ELECTRICITY,5902597060,1000054825
01.09.2023,ADULT SOCIAL CARE,SOUTHWARK IRISH PENSIONERS PROJECT,"20,000.00",DIR OF ASC,EXTERNAL AGENCIES AND BODIES,5902596286,1000082558
01.09.2023,ASSET MANAGEMENT,ADECCO UK LTD,848.7,BUILDING SAFETY PROGRAMME,PROFESSIONAL FEES,5902596613,1000017669
01.09.2023,ASSET MANAGEMENT,ADECCO UK LTD,"1,036.60",BUILDING SAFETY PROGRAMME,PROFESSIONAL FEES,5902596602,1000017669
01.09.2023,ASSET MANAGEMENT,ASHFORDS LLP OFFICE ACCOUNT,756,DISREPAIR,BUILDING R&M,5902596213,1000082695
01.09.2023,ASSET MANAGEMENT,GAS ADVISORY SERVICES LIMITED,"3,060.75",HEATING AND HOT WATER,HEATING -DISTRICT SERVICE (CONTRACT SUM),5902596243,1000064649
01.09.2023,ASSET MANAGEMENT,LONDON FIRE BRIGADE,364,LIFTS,LIFTS,5902596144,1000083629
01.09.2023,C&A,MFFL SOLUTIONS LTD,"47,472.00",HOLIDAY ACTIVITIES & FOOD,EXTERNAL AGENCIES AND BODIES,5902596720,1000086575
01.09.2023,CENTRAL FUNCTIONS,DSI BILLING SERVICES LTD,416.72,OPERATIONAL TEAM,POSTAGES,5902597051,1000058640
01.09.2023,CHILDREN AND FAMILIES,REDACTED PERSONAL DATA,"1,902.50",ADOPTION SUPP FUND 2,EXTERNAL AGENCIES AND BODIES,REDACTED,REDACTED
01.09.2023,CHILDREN AND FAMILIES,REDACTED PERSONAL DATA,"1,362.50",ADOPTION SUPP FUND 3,EXTERNAL AGENCIES AND BODIES,REDACTED,REDACTED
01.09.2023,CHILDREN AND FAMILIES,REDACTED PERSONAL DATA,"4,262.50",ADOPTION SUPP FUND 3,EXTERNAL AGENCIES AND BODIES,REDACTED,REDACTED
01.09.2023,CORPORATE FACILITIES MANAGEMENT,GREENHAM TRADING LTD,-440.32,FM SERVICES BY INTERSERVE,INTEGRATED FACILITIES MANAGEMENT CONTRACT,5902596190,1000006610
01.09.2023,CORPORATE FACILITIES MANAGEMENT,GREENHAM TRADING LTD,"3,120.00",FM SERVICES BY INTERSERVE,INTEGRATED FACILITIES MANAGEMENT CONTRACT,5902596187,1000006610
01.09.2023,CUSTOMER AND EXCHEQUER,DSI BILLING SERVICES LTD,"5,874.15",ADMINISTRATIVE SUPPORT,POSTAGES,5902597049,1000058640
01.09.2023,EDUCATION,WALWORTH GARDEN LTD,"4,000.00",ALC COMMUNITY LEARNING,GRANTS,5902596808,1000042204
01.09.2023,EDUCATION,STONEGROVE LIMITED,384,CAPITAL PS (EDUCATION),CONSTRUCTION,2103741096,3000001525
01.09.2023,EDUCATION,STONEGROVE LIMITED,"8,861.74",CAPITAL PS (EDUCATION),CONSTRUCTION,2103741095,3000001525
01.09.2023,ENV & LEIS,STANBURY BUILDING SERVICES LTD,"2,200.00",CAPITAL PS (LEISURE),CONSTRUCTION FEES  - EXTERNAL,2103741100,3000001967
01.09.2023,ENVIRONMENT DIRECTORATE,GREENHAM TRADING LTD,"4,972.66",ESTATE CLEANING-GENERAL,MATERIALS,5902596567,1000006610
01.09.2023,HOUSING HRA,SILVER DCC LTD,538.97,CAPITAL PS (HRA),CONSTRUCTION FEES  - EXTERNAL,5902596140,1000087546
01.09.2023,HOUSING HRA,SILVER DCC LTD,"1,181.23",CAPITAL PS (HRA),CONSTRUCTION FEES  - EXTERNAL,5902596444,1000087546
01.09.2023,HOUSING HRA,SILVER DCC LTD,"1,190.91",CAPITAL PS (HRA),CONSTRUCTION FEES  - EXTERNAL,5902596854,1000087546
01.09.2023,HOUSING HRA,SILVER DCC LTD,"1,225.90",CAPITAL PS (HRA),CONSTRUCTION FEES  - EXTERNAL,5902596113,1000087546
01.09.2023,HOUSING HRA,SILVER DCC LTD,"1,245.13",CAPITAL PS (HRA),CONSTRUCTION FEES  - EXTERNAL,5902596394,1000087546
01.09.2023,HOUSING HRA,SILVER DCC LTD,"1,281.77",CAPITAL PS (HRA),CONSTRUCTION FEES  - EXTERNAL,5902596035,1000087546
01.09.2023,HOUSING HRA,SILVER DCC LTD,"1,315.17",CAPITAL PS (HRA),CONSTRUCTION FEES  - EXTERNAL,5902596110,1000087546
01.09.2023,HOUSING HRA,SILVER DCC LTD,"1,342.65",CAPITAL PS (HRA),CONSTRUCTION FEES  - EXTERNAL,5902596292,1000087546
01.09.2023,HOUSING HRA,SILVER DCC LTD,"2,445.94",CAPITAL PS (HRA),CONSTRUCTION FEES  - EXTERNAL,5902596036,1000087546
01.09.2023,HOUSING HRA,BUILDING ASSOCIATES LTD,"140,076.10",CAPITAL PS (HRA),CONSTRUCTION MAIN CONTRACT,2103739260,3000002218
01.09.2023,LEADERS & CABINET OFFICE,UNITY WORKS SOCIAL ENTERPRISES,"39,630.10",CHIEF EXECUTIVE'S OFFICE,EXTERNAL AGENCIES AND BODIES,5902596032,1000083486
01.09.2023,LEISURE DIRECTORATE,SALIX MECHANICAL SERVICES LLP,504,DULWICH LEISURE CENTRE,PLANNED MAINTENANCE,5902596152,1000088961
01.09.2023,LEISURE DIRECTORATE,E.ON HEAT,266.05,HERITAGE CENTRE & WALWORTH LIBRARY,ELECTRICITY,5902596491,1000080948
01.09.2023,LEISURE DIRECTORATE,SALIX MECHANICAL SERVICES LLP,268,LEISURE CENTRAL COST,BUILDING R&M,5902596153,1000088961
01.09.2023,LEISURE DIRECTORATE,BRIGDET ANNE ROBINSON,"1,413.39",SDM BUDGET,REFUSE COLLECTION CONTRACT,5902597021,1000089843
01.09.2023,ORG TRANSFORMATION,TURNITIN LLC,"1,862.00",ILM COSTS,SOFTWARE,5902596430,1000082954
01.09.2023,PLANNING & GROWTH,IDOX SOFWARE LIMITED,"2,625.00",DEV MGT ADMIN & INCOME,COMPUTER MAINTENANCE,5902596221,1000032110
01.09.2023,PLANNING & GROWTH,SHERGROUP LTD,"1,250.00",VCS MANAGED MSC BUILDILNGS,SECURITY SERVICES,5902596713,1000087977
01.09.2023,REGEN & NEIGHBOURHOODS,SILVER DCC LTD,744.02,CAPITAL PS (REGEN),CONSTRUCTION FEES  - EXTERNAL,5902596291,1000087546
01.09.2023,SBS OPERATIONS,HOWDENS JOINERY CO,324.1,NUNHEAD DD,MATERIALS,5902596734,1000027491
02.09.2023,ADULT SOCIAL CARE,UNIQUE PERSONNEL (UK) LTD,"1,534.96",DISCHARGE TO ACCESS,HOMECARE - C&V,2103745415,1000075451
02.09.2023,ADULT SOCIAL CARE,THE CAMDEN SOCIETY (SOCIAL CARE),"1,184.00",LD LTS 18-64,DAYCARE,2103745439,1000036369
02.09.2023,ADULT SOCIAL CARE,UNITY WORKS SOCIAL ENTERPRISES,480,LD LTS 18-64,DAYCARE,2103744843,1000083486
02.09.2023,ADULT SOCIAL CARE,UNITY WORKS SOCIAL ENTERPRISES,480,LD LTS 18-64,DAYCARE,2103744844,1000083486
02.09.2023,ADULT SOCIAL CARE,UNITY WORKS SOCIAL ENTERPRISES,480,LD LTS 18-64,DAYCARE,2103744845,1000083486
02.09.2023,ADULT SOCIAL CARE,UNITY WORKS SOCIAL ENTERPRISES,480,LD LTS 18-64,DAYCARE,2103744846,1000083486
02.09.2023,ADULT SOCIAL CARE,UNITY WORKS SOCIAL ENTERPRISES,480,LD LTS 18-64,DAYCARE,2103744847,1000083486
02.09.2023,ADULT SOCIAL CARE,UNITY WORKS SOCIAL ENTERPRISES,480,LD LTS 18-64,DAYCARE,2103744848,1000083486
02.09.2023,ADULT SOCIAL CARE,LONDON CARE LTD,798.72,LD LTS 18-64,HOMECARE - C&V,2103744998,1000003398
02.09.2023,ADULT SOCIAL CARE,LONDON CARE LTD,"1,142.44",LD LTS 18-64,HOMECARE - C&V,2103744962,1000003398
02.09.2023,ADULT SOCIAL CARE,METRO HOMECARE LTD,528,LD LTS 18-64,HOMECARE - SPOT,2103745431,1000070695
02.09.2023,ADULT SOCIAL CARE,PEOPLEPLUS GROUP LTD,"-4,001.97",LD LTS 18-64,PAYMENTS TO CLIENTS (DIRECT PAYMENTS),2103744598,1000076642
02.09.2023,ADULT SOCIAL CARE,CHOICE SUPPORT,293.92,LD LTS 18-64,SUPPORTED LIVING,2103745441,1104183
02.09.2023,ADULT SOCIAL CARE,CHOICE SUPPORT,587.84,LD LTS 18-64,SUPPORTED LIVING,2103744851,1104183
02.09.2023,ADULT SOCIAL CARE,CHOICE SUPPORT,587.84,LD LTS 18-64,SUPPORTED LIVING,2103745436,1104183
02.09.2023,ADULT SOCIAL CARE,CHOICE SUPPORT,661.32,LD LTS 18-64,SUPPORTED LIVING,2103745435,1104183
02.09.2023,ADULT SOCIAL CARE,CHOICE SUPPORT,661.32,LD LTS 18-64,SUPPORTED LIVING,2103745438,1104183
02.09.2023,ADULT SOCIAL CARE,CHOICE SUPPORT,734.8,LD LTS 18-64,SUPPORTED LIVING,2103745440,1104183
02.09.2023,ADULT SOCIAL CARE,CHOICE SUPPORT,881.76,LD LTS 18-64,SUPPORTED LIVING,2103745437,1104183
02.09.2023,ADULT SOCIAL CARE,THE FRANCES TAYLOR FOUNDATION,742.2,LD LTS 18-64,SUPPORTED LIVING,2103745235,1000007274
02.09.2023,ADULT SOCIAL CARE,CONTACT PROFESSIONALS,"1,482.00",LD LTS 18-64,SUPPORTED LIVING,2103745429,1000057263
02.09.2023,ADULT SOCIAL CARE,PHEBDAN HEALTHCARE SERVICES LIMITED,307.99,LD LTS 18-64,SUPPORTED LIVING,2103744842,1000087033
02.09.2023,ADULT SOCIAL CARE,REDACTED PERSONAL DATA,663,LD LTS 18-64,SUPPORTED LIVING,REDACTED,REDACTED
02.09.2023,ADULT SOCIAL CARE,REDACTED PERSONAL DATA,682.5,LD LTS 18-64,SUPPORTED LIVING,REDACTED,REDACTED
02.09.2023,ADULT SOCIAL CARE,REDACTED PERSONAL DATA,975,LD LTS 18-64,SUPPORTED LIVING,REDACTED,REDACTED
02.09.2023,ADULT SOCIAL CARE,REDACTED PERSONAL DATA,"1,170.00",LD LTS 18-64,SUPPORTED LIVING,REDACTED,REDACTED
02.09.2023,ADULT SOCIAL CARE,REDACTED PERSONAL DATA,"2,730.00",LD LTS 18-64,SUPPORTED LIVING,REDACTED,REDACTED
02.09.2023,ADULT SOCIAL CARE,UNIQUE PERSONNEL (UK) LTD,377.8,LD LTS 65+,HOMECARE - C&V,2103745355,1000075451
02.09.2023,ADULT SOCIAL CARE,UNIQUE PERSONNEL (UK) LTD,456,LD LTS 65+,HOMECARE - SPOT,2103745354,1000075451
02.09.2023,ADULT SOCIAL CARE,KEEVA CARE LIMITED,"6,524.00",LD LTS 65+,SUPPORTED LIVING,2103744850,1000086100
02.09.2023,ADULT SOCIAL CARE,LONDON CARE LTD,343.8,MEM LTS 18-64,HOMECARE - C&V,2103744982,1000003398
02.09.2023,ADULT SOCIAL CARE,LONDON CARE LTD,490.34,MEM LTS 18-64,HOMECARE - C&V,2103744958,1000003398
02.09.2023,ADULT SOCIAL CARE,LONDON CARE LTD,652.1,MEM LTS 18-64,HOMECARE - C&V,2103745069,1000003398
02.09.2023,ADULT SOCIAL CARE,LONDON CARE LTD,732.98,MEM LTS 18-64,HOMECARE - C&V,2103745209,1000003398
02.09.2023,ADULT SOCIAL CARE,UNIQUE PERSONNEL (UK) LTD,928.56,MEM LTS 18-64,HOMECARE - C&V,2103745313,1000075451
02.09.2023,ADULT SOCIAL CARE,LONDON CARE LTD,382.74,MEM LTS 65+,HOMECARE - C&V,2103745013,1000003398
02.09.2023,ADULT SOCIAL CARE,LONDON CARE LTD,788.64,MEM LTS 65+,HOMECARE - C&V,2103744876,1000003398
02.09.2023,ADULT SOCIAL CARE,LONDON CARE LTD,889.44,MEM LTS 65+,HOMECARE - C&V,2103745009,1000003398
02.09.2023,ADULT SOCIAL CARE,LONDON CARE LTD,"1,066.64",MEM LTS 65+,HOMECARE - C&V,2103745067,1000003398
02.09.2023,ADULT SOCIAL CARE,LONDON CARE LTD,"1,082.07",MEM LTS 65+,HOMECARE - C&V,2103745145,1000003398
02.09.2023,ADULT SOCIAL CARE,LONDON CARE LTD,"1,156.83",MEM LTS 65+,HOMECARE - C&V,2103745177,1000003398
02.09.2023,ADULT SOCIAL CARE,LONDON CARE LTD,"1,218.38",MEM LTS 65+,HOMECARE - C&V,2103745079,1000003398
02.09.2023,ADULT SOCIAL CARE,LONDON CARE LTD,"2,005.80",MEM LTS 65+,HOMECARE - C&V,2103744983,1000003398
02.09.2023,ADULT SOCIAL CARE,LONDON CARE LTD,255.15,MH LTS 18-64,HOMECARE - C&V,2103744936,1000003398
02.09.2023,ADULT SOCIAL CARE,LONDON CARE LTD,257.82,MH LTS 18-64,HOMECARE - C&V,2103745129,1000003398
02.09.2023,ADULT SOCIAL CARE,LONDON CARE LTD,321.31,MH LTS 18-64,HOMECARE - C&V,2103745201,1000003398
02.09.2023,ADULT SOCIAL CARE,LONDON CARE LTD,374.09,MH LTS 18-64,HOMECARE - C&V,2103745074,1000003398
02.09.2023,ADULT SOCIAL CARE,LONDON CARE LTD,411.08,MH LTS 18-64,HOMECARE - C&V,2103745093,1000003398
02.09.2023,ADULT SOCIAL CARE,LONDON CARE LTD,453.6,MH LTS 18-64,HOMECARE - C&V,2103745147,1000003398
02.09.2023,ADULT SOCIAL CARE,LONDON CARE LTD,566.16,MH LTS 18-64,HOMECARE - C&V,2103745169,1000003398
02.09.2023,ADULT SOCIAL CARE,LONDON CARE LTD,978.75,MH LTS 18-64,HOMECARE - C&V,2103744932,1000003398
02.09.2023,ADULT SOCIAL CARE,LONDON CARE LTD,"1,476.28",MH LTS 18-64,HOMECARE - C&V,2103745028,1000003398
02.09.2023,ADULT SOCIAL CARE,UNIQUE PERSONNEL (UK) LTD,303.2,MH LTS 18-64,HOMECARE - C&V,2103745326,1000075451
02.09.2023,ADULT SOCIAL CARE,UNIQUE PERSONNEL (UK) LTD,303.2,MH LTS 18-64,HOMECARE - C&V,2103745404,1000075451
02.09.2023,ADULT SOCIAL CARE,UNIQUE PERSONNEL (UK) LTD,"1,440.20",MH LTS 18-64,HOMECARE - C&V,2103745399,1000075451
02.09.2023,ADULT SOCIAL CARE,UNIQUE PERSONNEL (UK) LTD,"2,833.04",MH LTS 18-64,HOMECARE - C&V,2103745347,1000075451
02.09.2023,ADULT SOCIAL CARE,LONDON CARE LTD,278.08,MH LTS 65+,HOMECARE - C&V,2103744873,1000003398
02.09.2023,ADULT SOCIAL CARE,LONDON CARE LTD,321.31,MH LTS 65+,HOMECARE - C&V,2103745105,1000003398
02.09.2023,ADULT SOCIAL CARE,LONDON CARE LTD,331.83,MH LTS 65+,HOMECARE - C&V,2103745215,1000003398
02.09.2023,ADULT SOCIAL CARE,LONDON CARE LTD,"1,172.81",MH LTS 65+,HOMECARE - C&V,2103745140,1000003398
02.09.2023,ADULT SOCIAL CARE,LONDON CARE LTD,"1,182.38",MH LTS 65+,HOMECARE - C&V,2103744861,1000003398
02.09.2023,ADULT SOCIAL CARE,LONDON CARE LTD,"1,208.30",MH LTS 65+,HOMECARE - C&V,2103745179,1000003398
02.09.2023,ADULT SOCIAL CARE,LONDON CARE LTD,"2,449.83",MH LTS 65+,HOMECARE - C&V,2103744853,1000003398
02.09.2023,ADULT SOCIAL CARE,UNIQUE PERSONNEL (UK) LTD,303.2,MH LTS 65+,HOMECARE - C&V,2103745366,1000075451
02.09.2023,ADULT SOCIAL CARE,LONDON CARE LTD,919.46,MH LTS 65+,HOMECARE - SPOT,2103745055,1000003398
02.09.2023,ADULT SOCIAL CARE,LONDON CARE LTD,283.08,PHY LTS 18-64,HOMECARE - C&V,2103745048,1000003398
02.09.2023,ADULT SOCIAL CARE,LONDON CARE LTD,293.19,PHY LTS 18-64,HOMECARE - C&V,2103744935,1000003398
02.09.2023,ADULT SOCIAL CARE,LONDON CARE LTD,308.45,PHY LTS 18-64,HOMECARE - C&V,2103744912,1000003398
02.09.2023,ADULT SOCIAL CARE,LONDON CARE LTD,331.83,PHY LTS 18-64,HOMECARE - C&V,2103745194,1000003398
02.09.2023,ADULT SOCIAL CARE,LONDON CARE LTD,335.48,PHY LTS 18-64,HOMECARE - C&V,2103745057,1000003398
02.09.2023,ADULT SOCIAL CARE,LONDON CARE LTD,343.78,PHY LTS 18-64,HOMECARE - C&V,2103744903,1000003398
02.09.2023,ADULT SOCIAL CARE,LONDON CARE LTD,364.04,PHY LTS 18-64,HOMECARE - C&V,2103745007,1000003398
02.09.2023,ADULT SOCIAL CARE,LONDON CARE LTD,388.51,PHY LTS 18-64,HOMECARE - C&V,2103745206,1000003398
02.09.2023,ADULT SOCIAL CARE,LONDON CARE LTD,389.24,PHY LTS 18-64,HOMECARE - C&V,2103745132,1000003398
02.09.2023,ADULT SOCIAL CARE,LONDON CARE LTD,398,PHY LTS 18-64,HOMECARE - C&V,2103745216,1000003398
02.09.2023,ADULT SOCIAL CARE,LONDON CARE LTD,414.64,PHY LTS 18-64,HOMECARE - C&V,2103744900,1000003398
02.09.2023,ADULT SOCIAL CARE,LONDON CARE LTD,424.62,PHY LTS 18-64,HOMECARE - C&V,2103745058,1000003398
02.09.2023,ADULT SOCIAL CARE,LONDON CARE LTD,429.81,PHY LTS 18-64,HOMECARE - C&V,2103745191,1000003398
02.09.2023,ADULT SOCIAL CARE,LONDON CARE LTD,449.63,PHY LTS 18-64,HOMECARE - C&V,2103744856,1000003398
02.09.2023,ADULT SOCIAL CARE,LONDON CARE LTD,454.69,PHY LTS 18-64,HOMECARE - C&V,2103745229,1000003398
02.09.2023,ADULT SOCIAL CARE,LONDON CARE LTD,455.04,PHY LTS 18-64,HOMECARE - C&V,2103745156,1000003398
02.09.2023,ADULT SOCIAL CARE,LONDON CARE LTD,460.01,PHY LTS 18-64,HOMECARE - C&V,2103745193,1000003398
02.09.2023,ADULT SOCIAL CARE,LONDON CARE LTD,464.75,PHY LTS 18-64,HOMECARE - C&V,2103744888,1000003398
02.09.2023,ADULT SOCIAL CARE,LONDON CARE LTD,491.5,PHY LTS 18-64,HOMECARE - C&V,2103745025,1000003398
02.09.2023,ADULT SOCIAL CARE,LONDON CARE LTD,501.95,PHY LTS 18-64,HOMECARE - C&V,2103745023,1000003398
02.09.2023,ADULT SOCIAL CARE,LONDON CARE LTD,506.24,PHY LTS 18-64,HOMECARE - C&V,2103745019,1000003398
02.09.2023,ADULT SOCIAL CARE,LONDON CARE LTD,530.91,PHY LTS 18-64,HOMECARE - C&V,2103745082,1000003398
02.09.2023,ADULT SOCIAL CARE,LONDON CARE LTD,551.09,PHY LTS 18-64,HOMECARE - C&V,2103744885,1000003398
02.09.2023,ADULT SOCIAL CARE,LONDON CARE LTD,556.06,PHY LTS 18-64,HOMECARE - C&V,2103744907,1000003398
02.09.2023,ADULT SOCIAL CARE,LONDON CARE LTD,566.29,PHY LTS 18-64,HOMECARE - C&V,2103744933,1000003398
02.09.2023,ADULT SOCIAL CARE,LONDON CARE LTD,567.12,PHY LTS 18-64,HOMECARE - C&V,2103745173,1000003398
02.09.2023,ADULT SOCIAL CARE,LONDON CARE LTD,571.34,PHY LTS 18-64,HOMECARE - C&V,2103745151,1000003398
02.09.2023,ADULT SOCIAL CARE,LONDON CARE LTD,590.7,PHY LTS 18-64,HOMECARE - C&V,2103744857,1000003398
02.09.2023,ADULT SOCIAL CARE,LONDON CARE LTD,605.46,PHY LTS 18-64,HOMECARE - C&V,2103744934,1000003398
02.09.2023,ADULT SOCIAL CARE,LONDON CARE LTD,605.88,PHY LTS 18-64,HOMECARE - C&V,2103745159,1000003398
02.09.2023,ADULT SOCIAL CARE,LONDON CARE LTD,611.67,PHY LTS 18-64,HOMECARE - C&V,2103745141,1000003398
02.09.2023,ADULT SOCIAL CARE,LONDON CARE LTD,624.83,PHY LTS 18-64,HOMECARE - C&V,2103744987,1000003398
02.09.2023,ADULT SOCIAL CARE,LONDON CARE LTD,636.94,PHY LTS 18-64,HOMECARE - C&V,2103745203,1000003398
02.09.2023,ADULT SOCIAL CARE,LONDON CARE LTD,636.95,PHY LTS 18-64,HOMECARE - C&V,2103745224,1000003398
02.09.2023,ADULT SOCIAL CARE,LONDON CARE LTD,669.07,PHY LTS 18-64,HOMECARE - C&V,2103744994,1000003398
02.09.2023,ADULT SOCIAL CARE,LONDON CARE LTD,717.95,PHY LTS 18-64,HOMECARE - C&V,2103744905,1000003398
02.09.2023,ADULT SOCIAL CARE,LONDON CARE LTD,717.96,PHY LTS 18-64,HOMECARE - C&V,2103745232,1000003398
02.09.2023,ADULT SOCIAL CARE,LONDON CARE LTD,738.12,PHY LTS 18-64,HOMECARE - C&V,2103744952,1000003398
02.09.2023,ADULT SOCIAL CARE,LONDON CARE LTD,743.19,PHY LTS 18-64,HOMECARE - C&V,2103745117,1000003398
02.09.2023,ADULT SOCIAL CARE,LONDON CARE LTD,743.25,PHY LTS 18-64,HOMECARE - C&V,2103745198,1000003398
02.09.2023,ADULT SOCIAL CARE,LONDON CARE LTD,748.28,PHY LTS 18-64,HOMECARE - C&V,2103744955,1000003398
02.09.2023,ADULT SOCIAL CARE,LONDON CARE LTD,768.49,PHY LTS 18-64,HOMECARE - C&V,2103745113,1000003398
02.09.2023,ADULT SOCIAL CARE,LONDON CARE LTD,770.42,PHY LTS 18-64,HOMECARE - C&V,2103745158,1000003398
02.09.2023,ADULT SOCIAL CARE,LONDON CARE LTD,780.75,PHY LTS 18-64,HOMECARE - C&V,2103745138,1000003398
02.09.2023,ADULT SOCIAL CARE,LONDON CARE LTD,783.68,PHY LTS 18-64,HOMECARE - C&V,2103744878,1000003398
02.09.2023,ADULT SOCIAL CARE,LONDON CARE LTD,788.72,PHY LTS 18-64,HOMECARE - C&V,2103745043,1000003398
02.09.2023,ADULT SOCIAL CARE,LONDON CARE LTD,819.03,PHY LTS 18-64,HOMECARE - C&V,2103744863,1000003398
02.09.2023,ADULT SOCIAL CARE,LONDON CARE LTD,849.24,PHY LTS 18-64,HOMECARE - C&V,2103744899,1000003398
02.09.2023,ADULT SOCIAL CARE,LONDON CARE LTD,869.56,PHY LTS 18-64,HOMECARE - C&V,2103745204,1000003398
02.09.2023,ADULT SOCIAL CARE,LONDON CARE LTD,904.92,PHY LTS 18-64,HOMECARE - C&V,2103744986,1000003398
02.09.2023,ADULT SOCIAL CARE,LONDON CARE LTD,"1,061.77",PHY LTS 18-64,HOMECARE - C&V,2103744879,1000003398
02.09.2023,ADULT SOCIAL CARE,LONDON CARE LTD,"1,067.98",PHY LTS 18-64,HOMECARE - C&V,2103744858,1000003398
02.09.2023,ADULT SOCIAL CARE,LONDON CARE LTD,"1,187.94",PHY LTS 18-64,HOMECARE - C&V,2103745218,1000003398
02.09.2023,ADULT SOCIAL CARE,LONDON CARE LTD,"1,243.63",PHY LTS 18-64,HOMECARE - C&V,2103745152,1000003398
02.09.2023,ADULT SOCIAL CARE,LONDON CARE LTD,"1,445.92",PHY LTS 18-64,HOMECARE - C&V,2103745220,1000003398
02.09.2023,ADULT SOCIAL CARE,LONDON CARE LTD,"1,499.17",PHY LTS 18-64,HOMECARE - C&V,2103745004,1000003398
02.09.2023,ADULT SOCIAL CARE,LONDON CARE LTD,"1,626.91",PHY LTS 18-64,HOMECARE - C&V,2103744931,1000003398
02.09.2023,ADULT SOCIAL CARE,LONDON CARE LTD,"1,703.56",PHY LTS 18-64,HOMECARE - C&V,2103745149,1000003398
02.09.2023,ADULT SOCIAL CARE,LONDON CARE LTD,"1,703.72",PHY LTS 18-64,HOMECARE - C&V,2103745011,1000003398
02.09.2023,ADULT SOCIAL CARE,LONDON CARE LTD,"1,926.16",PHY LTS 18-64,HOMECARE - C&V,2103744891,1000003398
02.09.2023,ADULT SOCIAL CARE,LONDON CARE LTD,"2,015.52",PHY LTS 18-64,HOMECARE - C&V,2103745111,1000003398
02.09.2023,ADULT SOCIAL CARE,LONDON CARE LTD,"2,553.07",PHY LTS 18-64,HOMECARE - C&V,2103745165,1000003398
02.09.2023,ADULT SOCIAL CARE,LONDON CARE LTD,"3,971.37",PHY LTS 18-64,HOMECARE - C&V,2103745197,1000003398
02.09.2023,ADULT SOCIAL CARE,UNIQUE PERSONNEL (UK) LTD,473.76,PHY LTS 18-64,HOMECARE - C&V,2103745306,1000075451
02.09.2023,ADULT SOCIAL CARE,UNIQUE PERSONNEL (UK) LTD,473.76,PHY LTS 18-64,HOMECARE - C&V,2103745340,1000075451
02.09.2023,ADULT SOCIAL CARE,UNIQUE PERSONNEL (UK) LTD,473.76,PHY LTS 18-64,HOMECARE - C&V,2103745413,1000075451
02.09.2023,ADULT SOCIAL CARE,UNIQUE PERSONNEL (UK) LTD,509.76,PHY LTS 18-64,HOMECARE - C&V,2103745414,1000075451
02.09.2023,ADULT SOCIAL CARE,UNIQUE PERSONNEL (UK) LTD,530.6,PHY LTS 18-64,HOMECARE - C&V,2103745363,1000075451
02.09.2023,ADULT SOCIAL CARE,UNIQUE PERSONNEL (UK) LTD,630.09,PHY LTS 18-64,HOMECARE - C&V,2103745418,1000075451
02.09.2023,ADULT SOCIAL CARE,UNIQUE PERSONNEL (UK) LTD,663.24,PHY LTS 18-64,HOMECARE - C&V,2103745345,1000075451
02.09.2023,ADULT SOCIAL CARE,UNIQUE PERSONNEL (UK) LTD,691.68,PHY LTS 18-64,HOMECARE - C&V,2103745424,1000075451
02.09.2023,ADULT SOCIAL CARE,UNIQUE PERSONNEL (UK) LTD,739.04,PHY LTS 18-64,HOMECARE - C&V,2103745309,1000075451
02.09.2023,ADULT SOCIAL CARE,UNIQUE PERSONNEL (UK) LTD,748.54,PHY LTS 18-64,HOMECARE - C&V,2103745385,1000075451
02.09.2023,ADULT SOCIAL CARE,UNIQUE PERSONNEL (UK) LTD,776.96,PHY LTS 18-64,HOMECARE - C&V,2103745334,1000075451
02.09.2023,ADULT SOCIAL CARE,UNIQUE PERSONNEL (UK) LTD,795.92,PHY LTS 18-64,HOMECARE - C&V,2103745406,1000075451
02.09.2023,ADULT SOCIAL CARE,UNIQUE PERSONNEL (UK) LTD,947.52,PHY LTS 18-64,HOMECARE - C&V,2103745307,1000075451
02.09.2023,ADULT SOCIAL CARE,UNIQUE PERSONNEL (UK) LTD,947.52,PHY LTS 18-64,HOMECARE - C&V,2103745320,1000075451
02.09.2023,ADULT SOCIAL CARE,UNIQUE PERSONNEL (UK) LTD,"1,042.24",PHY LTS 18-64,HOMECARE - C&V,2103745362,1000075451
02.09.2023,ADULT SOCIAL CARE,UNIQUE PERSONNEL (UK) LTD,"1,193.84",PHY LTS 18-64,HOMECARE - C&V,2103745308,1000075451
02.09.2023,ADULT SOCIAL CARE,UNIQUE PERSONNEL (UK) LTD,"1,326.52",PHY LTS 18-64,HOMECARE - C&V,2103745389,1000075451
02.09.2023,ADULT SOCIAL CARE,UNIQUE PERSONNEL (UK) LTD,"1,411.80",PHY LTS 18-64,HOMECARE - C&V,2103745379,1000075451
02.09.2023,ADULT SOCIAL CARE,UNIQUE PERSONNEL (UK) LTD,"1,539.70",PHY LTS 18-64,HOMECARE - C&V,2103745358,1000075451
02.09.2023,ADULT SOCIAL CARE,UNIQUE PERSONNEL (UK) LTD,"1,876.04",PHY LTS 18-64,HOMECARE - C&V,2103745343,1000075451
02.09.2023,ADULT SOCIAL CARE,UNIQUE PERSONNEL (UK) LTD,"2,075.04",PHY LTS 18-64,HOMECARE - C&V,2103745386,1000075451
02.09.2023,ADULT SOCIAL CARE,UNIQUE PERSONNEL (UK) LTD,"2,122.40",PHY LTS 18-64,HOMECARE - C&V,2103745323,1000075451
02.09.2023,ADULT SOCIAL CARE,UNIQUE PERSONNEL (UK) LTD,"2,345.07",PHY LTS 18-64,HOMECARE - C&V,2103745412,1000075451
02.09.2023,ADULT SOCIAL CARE,UNIQUE PERSONNEL (UK) LTD,"2,387.72",PHY LTS 18-64,HOMECARE - C&V,2103745338,1000075451
02.09.2023,ADULT SOCIAL CARE,UNIQUE PERSONNEL (UK) LTD,"2,387.72",PHY LTS 18-64,HOMECARE - C&V,2103745382,1000075451
02.09.2023,ADULT SOCIAL CARE,UNIQUE PERSONNEL (UK) LTD,"2,714.59",PHY LTS 18-64,HOMECARE - C&V,2103745324,1000075451
02.09.2023,ADULT SOCIAL CARE,UNIQUE PERSONNEL (UK) LTD,"2,861.44",PHY LTS 18-64,HOMECARE - C&V,2103745387,1000075451
02.09.2023,ADULT SOCIAL CARE,SAGECARE LTD,338.95,PHY LTS 18-64,HOMECARE - C&V,2103745265,1000080924
02.09.2023,ADULT SOCIAL CARE,SAGECARE LTD,343.97,PHY LTS 18-64,HOMECARE - C&V,2103745271,1000080924
02.09.2023,ADULT SOCIAL CARE,SAGECARE LTD,"1,309.55",PHY LTS 18-64,HOMECARE - C&V,2103745261,1000080924
02.09.2023,ADULT SOCIAL CARE,ZOT LTD,260,PHY LTS 65+,CLIENT TRANSPORT,2103745430,1000082848
02.09.2023,ADULT SOCIAL CARE,ZOT LTD,330,PHY LTS 65+,CLIENT TRANSPORT,2103744849,1000082848
02.09.2023,ADULT SOCIAL CARE,ZOT LTD,"1,200.00",PHY LTS 65+,CLIENT TRANSPORT,2103745428,1000082848
02.09.2023,ADULT SOCIAL CARE,LONDON CARE LTD,255.16,PHY LTS 65+,HOMECARE - C&V,2103744872,1000003398
02.09.2023,ADULT SOCIAL CARE,LONDON CARE LTD,256.86,PHY LTS 65+,HOMECARE - C&V,2103745110,1000003398
02.09.2023,ADULT SOCIAL CARE,LONDON CARE LTD,264.68,PHY LTS 65+,HOMECARE - C&V,2103744977,1000003398
02.09.2023,ADULT SOCIAL CARE,LONDON CARE LTD,269.42,PHY LTS 65+,HOMECARE - C&V,2103745219,1000003398
02.09.2023,ADULT SOCIAL CARE,LONDON CARE LTD,283.5,PHY LTS 65+,HOMECARE - C&V,2103744889,1000003398
02.09.2023,ADULT SOCIAL CARE,LONDON CARE LTD,284.18,PHY LTS 65+,HOMECARE - C&V,2103745012,1000003398
02.09.2023,ADULT SOCIAL CARE,LONDON CARE LTD,286.3,PHY LTS 65+,HOMECARE - C&V,2103744949,1000003398
02.09.2023,ADULT SOCIAL CARE,LONDON CARE LTD,288.14,PHY LTS 65+,HOMECARE - C&V,2103745172,1000003398
02.09.2023,ADULT SOCIAL CARE,LONDON CARE LTD,299.36,PHY LTS 65+,HOMECARE - C&V,2103745133,1000003398
02.09.2023,ADULT SOCIAL CARE,LONDON CARE LTD,313.42,PHY LTS 65+,HOMECARE - C&V,2103745160,1000003398
02.09.2023,ADULT SOCIAL CARE,LONDON CARE LTD,317.24,PHY LTS 65+,HOMECARE - C&V,2103745071,1000003398
02.09.2023,ADULT SOCIAL CARE,LONDON CARE LTD,318.49,PHY LTS 65+,HOMECARE - C&V,2103745155,1000003398
02.09.2023,ADULT SOCIAL CARE,LONDON CARE LTD,318.57,PHY LTS 65+,HOMECARE - C&V,2103744921,1000003398
02.09.2023,ADULT SOCIAL CARE,LONDON CARE LTD,328.58,PHY LTS 65+,HOMECARE - C&V,2103744957,1000003398
02.09.2023,ADULT SOCIAL CARE,LONDON CARE LTD,328.58,PHY LTS 65+,HOMECARE - C&V,2103745065,1000003398
02.09.2023,ADULT SOCIAL CARE,LONDON CARE LTD,338.72,PHY LTS 65+,HOMECARE - C&V,2103745182,1000003398
02.09.2023,ADULT SOCIAL CARE,LONDON CARE LTD,341.39,PHY LTS 65+,HOMECARE - C&V,2103745109,1000003398
02.09.2023,ADULT SOCIAL CARE,LONDON CARE LTD,343.75,PHY LTS 65+,HOMECARE - C&V,2103744996,1000003398
02.09.2023,ADULT SOCIAL CARE,LONDON CARE LTD,353.85,PHY LTS 65+,HOMECARE - C&V,2103745081,1000003398
02.09.2023,ADULT SOCIAL CARE,LONDON CARE LTD,364.51,PHY LTS 65+,HOMECARE - C&V,2103744860,1000003398
02.09.2023,ADULT SOCIAL CARE,LONDON CARE LTD,364.93,PHY LTS 65+,HOMECARE - C&V,2103745002,1000003398
02.09.2023,ADULT SOCIAL CARE,LONDON CARE LTD,387.53,PHY LTS 65+,HOMECARE - C&V,2103745136,1000003398
02.09.2023,ADULT SOCIAL CARE,LONDON CARE LTD,389.25,PHY LTS 65+,HOMECARE - C&V,2103744953,1000003398
02.09.2023,ADULT SOCIAL CARE,LONDON CARE LTD,397.56,PHY LTS 65+,HOMECARE - C&V,2103744947,1000003398
02.09.2023,ADULT SOCIAL CARE,LONDON CARE LTD,398.03,PHY LTS 65+,HOMECARE - C&V,2103745164,1000003398
02.09.2023,ADULT SOCIAL CARE,LONDON CARE LTD,398.03,PHY LTS 65+,HOMECARE - C&V,2103745188,1000003398
02.09.2023,ADULT SOCIAL CARE,LONDON CARE LTD,402.7,PHY LTS 65+,HOMECARE - C&V,2103745184,1000003398
02.09.2023,ADULT SOCIAL CARE,LONDON CARE LTD,407.47,PHY LTS 65+,HOMECARE - C&V,2103745187,1000003398
02.09.2023,ADULT SOCIAL CARE,LONDON CARE LTD,409.53,PHY LTS 65+,HOMECARE - C&V,2103745097,1000003398
02.09.2023,ADULT SOCIAL CARE,LONDON CARE LTD,411.08,PHY LTS 65+,HOMECARE - C&V,2103744979,1000003398
02.09.2023,ADULT SOCIAL CARE,LONDON CARE LTD,411.74,PHY LTS 65+,HOMECARE - C&V,2103745214,1000003398
02.09.2023,ADULT SOCIAL CARE,LONDON CARE LTD,419.65,PHY LTS 65+,HOMECARE - C&V,2103744892,1000003398
02.09.2023,ADULT SOCIAL CARE,LONDON CARE LTD,424.71,PHY LTS 65+,HOMECARE - C&V,2103744997,1000003398
02.09.2023,ADULT SOCIAL CARE,LONDON CARE LTD,424.76,PHY LTS 65+,HOMECARE - C&V,2103744859,1000003398
02.09.2023,ADULT SOCIAL CARE,LONDON CARE LTD,430,PHY LTS 65+,HOMECARE - C&V,2103745162,1000003398
02.09.2023,ADULT SOCIAL CARE,LONDON CARE LTD,439.8,PHY LTS 65+,HOMECARE - C&V,2103745231,1000003398
02.09.2023,ADULT SOCIAL CARE,LONDON CARE LTD,482.61,PHY LTS 65+,HOMECARE - C&V,2103745131,1000003398
02.09.2023,ADULT SOCIAL CARE,LONDON CARE LTD,490.42,PHY LTS 65+,HOMECARE - C&V,2103744929,1000003398
02.09.2023,ADULT SOCIAL CARE,LONDON CARE LTD,502.19,PHY LTS 65+,HOMECARE - C&V,2103745003,1000003398
02.09.2023,ADULT SOCIAL CARE,LONDON CARE LTD,510.67,PHY LTS 65+,HOMECARE - C&V,2103744999,1000003398
02.09.2023,ADULT SOCIAL CARE,LONDON CARE LTD,520.77,PHY LTS 65+,HOMECARE - C&V,2103745108,1000003398
02.09.2023,ADULT SOCIAL CARE,LONDON CARE LTD,530.85,PHY LTS 65+,HOMECARE - C&V,2103744923,1000003398
02.09.2023,ADULT SOCIAL CARE,LONDON CARE LTD,540.91,PHY LTS 65+,HOMECARE - C&V,2103745118,1000003398
02.09.2023,ADULT SOCIAL CARE,LONDON CARE LTD,544.15,PHY LTS 65+,HOMECARE - C&V,2103744984,1000003398
02.09.2023,ADULT SOCIAL CARE,LONDON CARE LTD,546.04,PHY LTS 65+,HOMECARE - C&V,2103744910,1000003398
02.09.2023,ADULT SOCIAL CARE,LONDON CARE LTD,548.24,PHY LTS 65+,HOMECARE - C&V,2103745087,1000003398
02.09.2023,ADULT SOCIAL CARE,LONDON CARE LTD,553.92,PHY LTS 65+,HOMECARE - C&V,2103744868,1000003398
02.09.2023,ADULT SOCIAL CARE,LONDON CARE LTD,556.06,PHY LTS 65+,HOMECARE - C&V,2103744991,1000003398
02.09.2023,ADULT SOCIAL CARE,LONDON CARE LTD,556.07,PHY LTS 65+,HOMECARE - C&V,2103745175,1000003398
02.09.2023,ADULT SOCIAL CARE,LONDON CARE LTD,561.11,PHY LTS 65+,HOMECARE - C&V,2103745033,1000003398
02.09.2023,ADULT SOCIAL CARE,LONDON CARE LTD,562.37,PHY LTS 65+,HOMECARE - C&V,2103744855,1000003398
02.09.2023,ADULT SOCIAL CARE,LONDON CARE LTD,566.16,PHY LTS 65+,HOMECARE - C&V,2103744993,1000003398
02.09.2023,ADULT SOCIAL CARE,LONDON CARE LTD,591.29,PHY LTS 65+,HOMECARE - C&V,2103745227,1000003398
02.09.2023,ADULT SOCIAL CARE,LONDON CARE LTD,591.54,PHY LTS 65+,HOMECARE - C&V,2103745035,1000003398
02.09.2023,ADULT SOCIAL CARE,LONDON CARE LTD,600.83,PHY LTS 65+,HOMECARE - C&V,2103744968,1000003398
02.09.2023,ADULT SOCIAL CARE,LONDON CARE LTD,604.92,PHY LTS 65+,HOMECARE - C&V,2103744867,1000003398
02.09.2023,ADULT SOCIAL CARE,LONDON CARE LTD,605.9,PHY LTS 65+,HOMECARE - C&V,2103745223,1000003398
02.09.2023,ADULT SOCIAL CARE,LONDON CARE LTD,614.92,PHY LTS 65+,HOMECARE - C&V,2103745024,1000003398
02.09.2023,ADULT SOCIAL CARE,LONDON CARE LTD,616.72,PHY LTS 65+,HOMECARE - C&V,2103744894,1000003398
02.09.2023,ADULT SOCIAL CARE,LONDON CARE LTD,616.79,PHY LTS 65+,HOMECARE - C&V,2103745207,1000003398
02.09.2023,ADULT SOCIAL CARE,LONDON CARE LTD,620.33,PHY LTS 65+,HOMECARE - C&V,2103745154,1000003398
02.09.2023,ADULT SOCIAL CARE,LONDON CARE LTD,641.04,PHY LTS 65+,HOMECARE - C&V,2103744940,1000003398
02.09.2023,ADULT SOCIAL CARE,LONDON CARE LTD,652.1,PHY LTS 65+,HOMECARE - C&V,2103744950,1000003398
02.09.2023,ADULT SOCIAL CARE,LONDON CARE LTD,662.22,PHY LTS 65+,HOMECARE - C&V,2103745213,1000003398
02.09.2023,ADULT SOCIAL CARE,LONDON CARE LTD,672.05,PHY LTS 65+,HOMECARE - C&V,2103745063,1000003398
02.09.2023,ADULT SOCIAL CARE,LONDON CARE LTD,680.41,PHY LTS 65+,HOMECARE - C&V,2103744875,1000003398
02.09.2023,ADULT SOCIAL CARE,LONDON CARE LTD,682.44,PHY LTS 65+,HOMECARE - C&V,2103745046,1000003398
02.09.2023,ADULT SOCIAL CARE,LONDON CARE LTD,687.5,PHY LTS 65+,HOMECARE - C&V,2103745210,1000003398
02.09.2023,ADULT SOCIAL CARE,LONDON CARE LTD,692.68,PHY LTS 65+,HOMECARE - C&V,2103745039,1000003398
02.09.2023,ADULT SOCIAL CARE,LONDON CARE LTD,697.73,PHY LTS 65+,HOMECARE - C&V,2103745040,1000003398
02.09.2023,ADULT SOCIAL CARE,LONDON CARE LTD,697.73,PHY LTS 65+,HOMECARE - C&V,2103745126,1000003398
02.09.2023,ADULT SOCIAL CARE,LONDON CARE LTD,697.82,PHY LTS 65+,HOMECARE - C&V,2103745044,1000003398
02.09.2023,ADULT SOCIAL CARE,LONDON CARE LTD,700.39,PHY LTS 65+,HOMECARE - C&V,2103744945,1000003398
02.09.2023,ADULT SOCIAL CARE,LONDON CARE LTD,705.35,PHY LTS 65+,HOMECARE - C&V,2103744981,1000003398
02.09.2023,ADULT SOCIAL CARE,LONDON CARE LTD,719.35,PHY LTS 65+,HOMECARE - C&V,2103744985,1000003398
02.09.2023,ADULT SOCIAL CARE,LONDON CARE LTD,723.62,PHY LTS 65+,HOMECARE - C&V,2103745020,1000003398
02.09.2023,ADULT SOCIAL CARE,LONDON CARE LTD,727.92,PHY LTS 65+,HOMECARE - C&V,2103745052,1000003398
02.09.2023,ADULT SOCIAL CARE,LONDON CARE LTD,733.09,PHY LTS 65+,HOMECARE - C&V,2103745115,1000003398
02.09.2023,ADULT SOCIAL CARE,LONDON CARE LTD,733.11,PHY LTS 65+,HOMECARE - C&V,2103744882,1000003398
02.09.2023,ADULT SOCIAL CARE,LONDON CARE LTD,738.25,PHY LTS 65+,HOMECARE - C&V,2103745212,1000003398
02.09.2023,ADULT SOCIAL CARE,LONDON CARE LTD,741.96,PHY LTS 65+,HOMECARE - C&V,2103745073,1000003398
02.09.2023,ADULT SOCIAL CARE,LONDON CARE LTD,748.24,PHY LTS 65+,HOMECARE - C&V,2103744901,1000003398
02.09.2023,ADULT SOCIAL CARE,LONDON CARE LTD,753.2,PHY LTS 65+,HOMECARE - C&V,2103745083,1000003398
02.09.2023,ADULT SOCIAL CARE,LONDON CARE LTD,768.49,PHY LTS 65+,HOMECARE - C&V,2103744946,1000003398
02.09.2023,ADULT SOCIAL CARE,LONDON CARE LTD,773.54,PHY LTS 65+,HOMECARE - C&V,2103745127,1000003398
02.09.2023,ADULT SOCIAL CARE,LONDON CARE LTD,773.58,PHY LTS 65+,HOMECARE - C&V,2103745122,1000003398
02.09.2023,ADULT SOCIAL CARE,LONDON CARE LTD,788.61,PHY LTS 65+,HOMECARE - C&V,2103744941,1000003398
02.09.2023,ADULT SOCIAL CARE,LONDON CARE LTD,788.7,PHY LTS 65+,HOMECARE - C&V,2103745119,1000003398
02.09.2023,ADULT SOCIAL CARE,LONDON CARE LTD,793.71,PHY LTS 65+,HOMECARE - C&V,2103745027,1000003398
02.09.2023,ADULT SOCIAL CARE,LONDON CARE LTD,793.74,PHY LTS 65+,HOMECARE - C&V,2103744989,1000003398
02.09.2023,ADULT SOCIAL CARE,LONDON CARE LTD,798.72,PHY LTS 65+,HOMECARE - C&V,2103745142,1000003398
02.09.2023,ADULT SOCIAL CARE,LONDON CARE LTD,803.3,PHY LTS 65+,HOMECARE - C&V,2103745017,1000003398
02.09.2023,ADULT SOCIAL CARE,LONDON CARE LTD,803.86,PHY LTS 65+,HOMECARE - C&V,2103745054,1000003398
02.09.2023,ADULT SOCIAL CARE,LONDON CARE LTD,808.03,PHY LTS 65+,HOMECARE - C&V,2103745195,1000003398
02.09.2023,ADULT SOCIAL CARE,LONDON CARE LTD,808.92,PHY LTS 65+,HOMECARE - C&V,2103745029,1000003398
02.09.2023,ADULT SOCIAL CARE,LONDON CARE LTD,812.84,PHY LTS 65+,HOMECARE - C&V,2103745183,1000003398
02.09.2023,ADULT SOCIAL CARE,LONDON CARE LTD,816.73,PHY LTS 65+,HOMECARE - C&V,2103744898,1000003398
02.09.2023,ADULT SOCIAL CARE,LONDON CARE LTD,819.17,PHY LTS 65+,HOMECARE - C&V,2103744995,1000003398
02.09.2023,ADULT SOCIAL CARE,LONDON CARE LTD,823.98,PHY LTS 65+,HOMECARE - C&V,2103745021,1000003398
02.09.2023,ADULT SOCIAL CARE,LONDON CARE LTD,824.23,PHY LTS 65+,HOMECARE - C&V,2103744916,1000003398
02.09.2023,ADULT SOCIAL CARE,LONDON CARE LTD,849.24,PHY LTS 65+,HOMECARE - C&V,2103745038,1000003398
02.09.2023,ADULT SOCIAL CARE,LONDON CARE LTD,849.41,PHY LTS 65+,HOMECARE - C&V,2103745181,1000003398
02.09.2023,ADULT SOCIAL CARE,LONDON CARE LTD,864.56,PHY LTS 65+,HOMECARE - C&V,2103744902,1000003398
02.09.2023,ADULT SOCIAL CARE,LONDON CARE LTD,864.81,PHY LTS 65+,HOMECARE - C&V,2103745121,1000003398
02.09.2023,ADULT SOCIAL CARE,LONDON CARE LTD,869.73,PHY LTS 65+,HOMECARE - C&V,2103744926,1000003398
02.09.2023,ADULT SOCIAL CARE,LONDON CARE LTD,870.77,PHY LTS 65+,HOMECARE - C&V,2103745144,1000003398
02.09.2023,ADULT SOCIAL CARE,LONDON CARE LTD,875.32,PHY LTS 65+,HOMECARE - C&V,2103744975,1000003398
02.09.2023,ADULT SOCIAL CARE,LONDON CARE LTD,894.77,PHY LTS 65+,HOMECARE - C&V,2103744871,1000003398
02.09.2023,ADULT SOCIAL CARE,LONDON CARE LTD,899.8,PHY LTS 65+,HOMECARE - C&V,2103745226,1000003398
02.09.2023,ADULT SOCIAL CARE,LONDON CARE LTD,909.39,PHY LTS 65+,HOMECARE - C&V,2103744988,1000003398
02.09.2023,ADULT SOCIAL CARE,LONDON CARE LTD,909.91,PHY LTS 65+,HOMECARE - C&V,2103745030,1000003398
02.09.2023,ADULT SOCIAL CARE,LONDON CARE LTD,914.96,PHY LTS 65+,HOMECARE - C&V,2103744954,1000003398
02.09.2023,ADULT SOCIAL CARE,LONDON CARE LTD,920.2,PHY LTS 65+,HOMECARE - C&V,2103744922,1000003398
02.09.2023,ADULT SOCIAL CARE,LONDON CARE LTD,935.27,PHY LTS 65+,HOMECARE - C&V,2103745047,1000003398
02.09.2023,ADULT SOCIAL CARE,LONDON CARE LTD,935.28,PHY LTS 65+,HOMECARE - C&V,2103745125,1000003398
02.09.2023,ADULT SOCIAL CARE,LONDON CARE LTD,935.3,PHY LTS 65+,HOMECARE - C&V,2103744886,1000003398
02.09.2023,ADULT SOCIAL CARE,LONDON CARE LTD,935.7,PHY LTS 65+,HOMECARE - C&V,2103744967,1000003398
02.09.2023,ADULT SOCIAL CARE,LONDON CARE LTD,950.47,PHY LTS 65+,HOMECARE - C&V,2103744893,1000003398
02.09.2023,ADULT SOCIAL CARE,LONDON CARE LTD,955.6,PHY LTS 65+,HOMECARE - C&V,2103744880,1000003398
02.09.2023,ADULT SOCIAL CARE,LONDON CARE LTD,960.28,PHY LTS 65+,HOMECARE - C&V,2103745104,1000003398
02.09.2023,ADULT SOCIAL CARE,LONDON CARE LTD,970.69,PHY LTS 65+,HOMECARE - C&V,2103744914,1000003398
02.09.2023,ADULT SOCIAL CARE,LONDON CARE LTD,975.72,PHY LTS 65+,HOMECARE - C&V,2103745041,1000003398
02.09.2023,ADULT SOCIAL CARE,LONDON CARE LTD,975.73,PHY LTS 65+,HOMECARE - C&V,2103744881,1000003398
02.09.2023,ADULT SOCIAL CARE,LONDON CARE LTD,975.76,PHY LTS 65+,HOMECARE - C&V,2103744992,1000003398
02.09.2023,ADULT SOCIAL CARE,LONDON CARE LTD,980.69,PHY LTS 65+,HOMECARE - C&V,2103744944,1000003398
02.09.2023,ADULT SOCIAL CARE,LONDON CARE LTD,985.86,PHY LTS 65+,HOMECARE - C&V,2103744874,1000003398
02.09.2023,ADULT SOCIAL CARE,LONDON CARE LTD,985.87,PHY LTS 65+,HOMECARE - C&V,2103744913,1000003398
02.09.2023,ADULT SOCIAL CARE,LONDON CARE LTD,995.9,PHY LTS 65+,HOMECARE - C&V,2103745178,1000003398
02.09.2023,ADULT SOCIAL CARE,LONDON CARE LTD,995.96,PHY LTS 65+,HOMECARE - C&V,2103744904,1000003398
02.09.2023,ADULT SOCIAL CARE,LONDON CARE LTD,998.7,PHY LTS 65+,HOMECARE - C&V,2103745153,1000003398
02.09.2023,ADULT SOCIAL CARE,LONDON CARE LTD,"1,001.03",PHY LTS 65+,HOMECARE - C&V,2103745075,1000003398
02.09.2023,ADULT SOCIAL CARE,LONDON CARE LTD,"1,002.83",PHY LTS 65+,HOMECARE - C&V,2103744865,1000003398
02.09.2023,ADULT SOCIAL CARE,LONDON CARE LTD,"1,005.97",PHY LTS 65+,HOMECARE - C&V,2103745064,1000003398
02.09.2023,ADULT SOCIAL CARE,LONDON CARE LTD,"1,006.57",PHY LTS 65+,HOMECARE - C&V,2103745157,1000003398
02.09.2023,ADULT SOCIAL CARE,LONDON CARE LTD,"1,012.18",PHY LTS 65+,HOMECARE - C&V,2103744951,1000003398
02.09.2023,ADULT SOCIAL CARE,LONDON CARE LTD,"1,036.30",PHY LTS 65+,HOMECARE - C&V,2103744906,1000003398
02.09.2023,ADULT SOCIAL CARE,LONDON CARE LTD,"1,040.91",PHY LTS 65+,HOMECARE - C&V,2103744908,1000003398
02.09.2023,ADULT SOCIAL CARE,LONDON CARE LTD,"1,050.18",PHY LTS 65+,HOMECARE - C&V,2103744938,1000003398
02.09.2023,ADULT SOCIAL CARE,LONDON CARE LTD,"1,051.44",PHY LTS 65+,HOMECARE - C&V,2103745134,1000003398
02.09.2023,ADULT SOCIAL CARE,LONDON CARE LTD,"1,064.46",PHY LTS 65+,HOMECARE - C&V,2103745189,1000003398
02.09.2023,ADULT SOCIAL CARE,LONDON CARE LTD,"1,112.25",PHY LTS 65+,HOMECARE - C&V,2103745085,1000003398
02.09.2023,ADULT SOCIAL CARE,LONDON CARE LTD,"1,117.17",PHY LTS 65+,HOMECARE - C&V,2103744980,1000003398
02.09.2023,ADULT SOCIAL CARE,LONDON CARE LTD,"1,137.42",PHY LTS 65+,HOMECARE - C&V,2103745170,1000003398
02.09.2023,ADULT SOCIAL CARE,LONDON CARE LTD,"1,140.20",PHY LTS 65+,HOMECARE - C&V,2103745061,1000003398
02.09.2023,ADULT SOCIAL CARE,LONDON CARE LTD,"1,142.70",PHY LTS 65+,HOMECARE - C&V,2103744909,1000003398
02.09.2023,ADULT SOCIAL CARE,LONDON CARE LTD,"1,157.80",PHY LTS 65+,HOMECARE - C&V,2103744919,1000003398
02.09.2023,ADULT SOCIAL CARE,LONDON CARE LTD,"1,162.83",PHY LTS 65+,HOMECARE - C&V,2103744862,1000003398
02.09.2023,ADULT SOCIAL CARE,LONDON CARE LTD,"1,172.93",PHY LTS 65+,HOMECARE - C&V,2103744971,1000003398
02.09.2023,ADULT SOCIAL CARE,LONDON CARE LTD,"1,172.98",PHY LTS 65+,HOMECARE - C&V,2103745018,1000003398
02.09.2023,ADULT SOCIAL CARE,LONDON CARE LTD,"1,183.99",PHY LTS 65+,HOMECARE - C&V,2103745034,1000003398
02.09.2023,ADULT SOCIAL CARE,LONDON CARE LTD,"1,196.56",PHY LTS 65+,HOMECARE - C&V,2103744864,1000003398
02.09.2023,ADULT SOCIAL CARE,LONDON CARE LTD,"1,198.11",PHY LTS 65+,HOMECARE - C&V,2103745103,1000003398
02.09.2023,ADULT SOCIAL CARE,LONDON CARE LTD,"1,206.25",PHY LTS 65+,HOMECARE - C&V,2103745221,1000003398
02.09.2023,ADULT SOCIAL CARE,LONDON CARE LTD,"1,228.51",PHY LTS 65+,HOMECARE - C&V,2103745228,1000003398
02.09.2023,ADULT SOCIAL CARE,LONDON CARE LTD,"1,238.20",PHY LTS 65+,HOMECARE - C&V,2103745112,1000003398
02.09.2023,ADULT SOCIAL CARE,LONDON CARE LTD,"1,244.02",PHY LTS 65+,HOMECARE - C&V,2103744920,1000003398
02.09.2023,ADULT SOCIAL CARE,LONDON CARE LTD,"1,248.81",PHY LTS 65+,HOMECARE - C&V,2103745026,1000003398
02.09.2023,ADULT SOCIAL CARE,LONDON CARE LTD,"1,273.94",PHY LTS 65+,HOMECARE - C&V,2103745062,1000003398
02.09.2023,ADULT SOCIAL CARE,LONDON CARE LTD,"1,299.25",PHY LTS 65+,HOMECARE - C&V,2103745137,1000003398
02.09.2023,ADULT SOCIAL CARE,LONDON CARE LTD,"1,314.42",PHY LTS 65+,HOMECARE - C&V,2103745192,1000003398
02.09.2023,ADULT SOCIAL CARE,LONDON CARE LTD,"1,339.06",PHY LTS 65+,HOMECARE - C&V,2103745077,1000003398
02.09.2023,ADULT SOCIAL CARE,LONDON CARE LTD,"1,380.23",PHY LTS 65+,HOMECARE - C&V,2103744964,1000003398
02.09.2023,ADULT SOCIAL CARE,LONDON CARE LTD,"1,400.26",PHY LTS 65+,HOMECARE - C&V,2103745053,1000003398
02.09.2023,ADULT SOCIAL CARE,LONDON CARE LTD,"1,415.43",PHY LTS 65+,HOMECARE - C&V,2103745186,1000003398
02.09.2023,ADULT SOCIAL CARE,LONDON CARE LTD,"1,437.68",PHY LTS 65+,HOMECARE - C&V,2103744966,1000003398
02.09.2023,ADULT SOCIAL CARE,LONDON CARE LTD,"1,445.99",PHY LTS 65+,HOMECARE - C&V,2103745107,1000003398
02.09.2023,ADULT SOCIAL CARE,LONDON CARE LTD,"1,456.16",PHY LTS 65+,HOMECARE - C&V,2103745205,1000003398
02.09.2023,ADULT SOCIAL CARE,LONDON CARE LTD,"1,466.08",PHY LTS 65+,HOMECARE - C&V,2103745123,1000003398
02.09.2023,ADULT SOCIAL CARE,LONDON CARE LTD,"1,598.56",PHY LTS 65+,HOMECARE - C&V,2103745015,1000003398
02.09.2023,ADULT SOCIAL CARE,LONDON CARE LTD,"1,643.06",PHY LTS 65+,HOMECARE - C&V,2103745120,1000003398
02.09.2023,ADULT SOCIAL CARE,LONDON CARE LTD,"1,688.57",PHY LTS 65+,HOMECARE - C&V,2103745006,1000003398
02.09.2023,ADULT SOCIAL CARE,LONDON CARE LTD,"1,698.55",PHY LTS 65+,HOMECARE - C&V,2103745166,1000003398
02.09.2023,ADULT SOCIAL CARE,LONDON CARE LTD,"1,769.37",PHY LTS 65+,HOMECARE - C&V,2103745200,1000003398
02.09.2023,ADULT SOCIAL CARE,LONDON CARE LTD,"1,779.48",PHY LTS 65+,HOMECARE - C&V,2103745185,1000003398
02.09.2023,ADULT SOCIAL CARE,LONDON CARE LTD,"1,784.51",PHY LTS 65+,HOMECARE - C&V,2103744924,1000003398
02.09.2023,ADULT SOCIAL CARE,LONDON CARE LTD,"1,792.98",PHY LTS 65+,HOMECARE - C&V,2103745150,1000003398
02.09.2023,ADULT SOCIAL CARE,LONDON CARE LTD,"1,820.17",PHY LTS 65+,HOMECARE - C&V,2103745068,1000003398
02.09.2023,ADULT SOCIAL CARE,LONDON CARE LTD,"1,840.40",PHY LTS 65+,HOMECARE - C&V,2103744887,1000003398
02.09.2023,ADULT SOCIAL CARE,LONDON CARE LTD,"1,911.02",PHY LTS 65+,HOMECARE - C&V,2103745148,1000003398
02.09.2023,ADULT SOCIAL CARE,LONDON CARE LTD,"1,997.00",PHY LTS 65+,HOMECARE - C&V,2103745086,1000003398
02.09.2023,ADULT SOCIAL CARE,LONDON CARE LTD,"2,037.44",PHY LTS 65+,HOMECARE - C&V,2103744896,1000003398
02.09.2023,ADULT SOCIAL CARE,LONDON CARE LTD,"2,072.77",PHY LTS 65+,HOMECARE - C&V,2103744883,1000003398
02.09.2023,ADULT SOCIAL CARE,LONDON CARE LTD,"2,076.93",PHY LTS 65+,HOMECARE - C&V,2103745008,1000003398
02.09.2023,ADULT SOCIAL CARE,LONDON CARE LTD,"2,168.89",PHY LTS 65+,HOMECARE - C&V,2103745100,1000003398
02.09.2023,ADULT SOCIAL CARE,LONDON CARE LTD,"2,214.35",PHY LTS 65+,HOMECARE - C&V,2103744963,1000003398
02.09.2023,ADULT SOCIAL CARE,LONDON CARE LTD,"2,360.99",PHY LTS 65+,HOMECARE - C&V,2103745174,1000003398
02.09.2023,ADULT SOCIAL CARE,LONDON CARE LTD,"2,397.90",PHY LTS 65+,HOMECARE - C&V,2103745208,1000003398
02.09.2023,ADULT SOCIAL CARE,LONDON CARE LTD,"2,471.57",PHY LTS 65+,HOMECARE - C&V,2103744943,1000003398
02.09.2023,ADULT SOCIAL CARE,LONDON CARE LTD,"2,588.46",PHY LTS 65+,HOMECARE - C&V,2103745211,1000003398
02.09.2023,ADULT SOCIAL CARE,LONDON CARE LTD,"2,684.50",PHY LTS 65+,HOMECARE - C&V,2103745091,1000003398
02.09.2023,ADULT SOCIAL CARE,LONDON CARE LTD,"2,691.33",PHY LTS 65+,HOMECARE - C&V,2103745080,1000003398
02.09.2023,ADULT SOCIAL CARE,LONDON CARE LTD,"2,752.75",PHY LTS 65+,HOMECARE - C&V,2103745089,1000003398
02.09.2023,ADULT SOCIAL CARE,LONDON CARE LTD,"2,825.76",PHY LTS 65+,HOMECARE - C&V,2103745042,1000003398
02.09.2023,ADULT SOCIAL CARE,LONDON CARE LTD,"2,925.21",PHY LTS 65+,HOMECARE - C&V,2103745092,1000003398
02.09.2023,ADULT SOCIAL CARE,LONDON CARE LTD,"2,926.94",PHY LTS 65+,HOMECARE - C&V,2103745146,1000003398
02.09.2023,ADULT SOCIAL CARE,LONDON CARE LTD,"2,940.61",PHY LTS 65+,HOMECARE - C&V,2103745139,1000003398
02.09.2023,ADULT SOCIAL CARE,LONDON CARE LTD,"3,063.78",PHY LTS 65+,HOMECARE - C&V,2103745014,1000003398
02.09.2023,ADULT SOCIAL CARE,LONDON CARE LTD,"3,128.26",PHY LTS 65+,HOMECARE - C&V,2103745128,1000003398
02.09.2023,ADULT SOCIAL CARE,LONDON CARE LTD,"3,154.61",PHY LTS 65+,HOMECARE - C&V,2103745217,1000003398
02.09.2023,ADULT SOCIAL CARE,LONDON CARE LTD,"3,405.61",PHY LTS 65+,HOMECARE - C&V,2103745000,1000003398
02.09.2023,ADULT SOCIAL CARE,LONDON CARE LTD,"3,528.28",PHY LTS 65+,HOMECARE - C&V,2103745090,1000003398
02.09.2023,ADULT SOCIAL CARE,LONDON CARE LTD,"3,741.43",PHY LTS 65+,HOMECARE - C&V,2103744976,1000003398
02.09.2023,ADULT SOCIAL CARE,LONDON CARE LTD,"3,867.43",PHY LTS 65+,HOMECARE - C&V,2103745049,1000003398
02.09.2023,ADULT SOCIAL CARE,SUPREME CARE SERVICES LTD,"2,147.10",PHY LTS 65+,HOMECARE - C&V,2103744852,1000059416
02.09.2023,ADULT SOCIAL CARE,UNIQUE PERSONNEL (UK) LTD,255.84,PHY LTS 65+,HOMECARE - C&V,2103745422,1000075451
02.09.2023,ADULT SOCIAL CARE,UNIQUE PERSONNEL (UK) LTD,265.32,PHY LTS 65+,HOMECARE - C&V,2103745421,1000075451
02.09.2023,ADULT SOCIAL CARE,UNIQUE PERSONNEL (UK) LTD,350.57,PHY LTS 65+,HOMECARE - C&V,2103745321,1000075451
02.09.2023,ADULT SOCIAL CARE,UNIQUE PERSONNEL (UK) LTD,397.96,PHY LTS 65+,HOMECARE - C&V,2103745327,1000075451
02.09.2023,ADULT SOCIAL CARE,UNIQUE PERSONNEL (UK) LTD,416.92,PHY LTS 65+,HOMECARE - C&V,2103745304,1000075451
02.09.2023,ADULT SOCIAL CARE,UNIQUE PERSONNEL (UK) LTD,454.81,PHY LTS 65+,HOMECARE - C&V,2103745305,1000075451
02.09.2023,ADULT SOCIAL CARE,UNIQUE PERSONNEL (UK) LTD,454.81,PHY LTS 65+,HOMECARE - C&V,2103745341,1000075451
02.09.2023,ADULT SOCIAL CARE,UNIQUE PERSONNEL (UK) LTD,492.71,PHY LTS 65+,HOMECARE - C&V,2103745393,1000075451
02.09.2023,ADULT SOCIAL CARE,UNIQUE PERSONNEL (UK) LTD,521.13,PHY LTS 65+,HOMECARE - C&V,2103745311,1000075451
02.09.2023,ADULT SOCIAL CARE,UNIQUE PERSONNEL (UK) LTD,544.81,PHY LTS 65+,HOMECARE - C&V,2103745367,1000075451
02.09.2023,ADULT SOCIAL CARE,UNIQUE PERSONNEL (UK) LTD,568.49,PHY LTS 65+,HOMECARE - C&V,2103745312,1000075451
02.09.2023,ADULT SOCIAL CARE,UNIQUE PERSONNEL (UK) LTD,606.4,PHY LTS 65+,HOMECARE - C&V,2103745365,1000075451
02.09.2023,ADULT SOCIAL CARE,UNIQUE PERSONNEL (UK) LTD,634.84,PHY LTS 65+,HOMECARE - C&V,2103745390,1000075451
02.09.2023,ADULT SOCIAL CARE,UNIQUE PERSONNEL (UK) LTD,663.24,PHY LTS 65+,HOMECARE - C&V,2103745315,1000075451
02.09.2023,ADULT SOCIAL CARE,UNIQUE PERSONNEL (UK) LTD,663.24,PHY LTS 65+,HOMECARE - C&V,2103745356,1000075451
02.09.2023,ADULT SOCIAL CARE,UNIQUE PERSONNEL (UK) LTD,663.24,PHY LTS 65+,HOMECARE - C&V,2103745361,1000075451
02.09.2023,ADULT SOCIAL CARE,UNIQUE PERSONNEL (UK) LTD,672.22,PHY LTS 65+,HOMECARE - C&V,2103745417,1000075451
02.09.2023,ADULT SOCIAL CARE,UNIQUE PERSONNEL (UK) LTD,710.63,PHY LTS 65+,HOMECARE - C&V,2103745419,1000075451
02.09.2023,ADULT SOCIAL CARE,UNIQUE PERSONNEL (UK) LTD,715.36,PHY LTS 65+,HOMECARE - C&V,2103745407,1000075451
02.09.2023,ADULT SOCIAL CARE,UNIQUE PERSONNEL (UK) LTD,739.04,PHY LTS 65+,HOMECARE - C&V,2103745325,1000075451
02.09.2023,ADULT SOCIAL CARE,UNIQUE PERSONNEL (UK) LTD,758.02,PHY LTS 65+,HOMECARE - C&V,2103745391,1000075451
02.09.2023,ADULT SOCIAL CARE,UNIQUE PERSONNEL (UK) LTD,776.96,PHY LTS 65+,HOMECARE - C&V,2103745336,1000075451
02.09.2023,ADULT SOCIAL CARE,UNIQUE PERSONNEL (UK) LTD,795.92,PHY LTS 65+,HOMECARE - C&V,2103745348,1000075451
02.09.2023,ADULT SOCIAL CARE,UNIQUE PERSONNEL (UK) LTD,795.92,PHY LTS 65+,HOMECARE - C&V,2103745408,1000075451
02.09.2023,ADULT SOCIAL CARE,UNIQUE PERSONNEL (UK) LTD,819.58,PHY LTS 65+,HOMECARE - C&V,2103745339,1000075451
02.09.2023,ADULT SOCIAL CARE,UNIQUE PERSONNEL (UK) LTD,833.8,PHY LTS 65+,HOMECARE - C&V,2103745329,1000075451
02.09.2023,ADULT SOCIAL CARE,UNIQUE PERSONNEL (UK) LTD,928.56,PHY LTS 65+,HOMECARE - C&V,2103745369,1000075451
02.09.2023,ADULT SOCIAL CARE,UNIQUE PERSONNEL (UK) LTD,928.56,PHY LTS 65+,HOMECARE - C&V,2103745402,1000075451
02.09.2023,ADULT SOCIAL CARE,UNIQUE PERSONNEL (UK) LTD,971.19,PHY LTS 65+,HOMECARE - C&V,2103745318,1000075451
02.09.2023,ADULT SOCIAL CARE,UNIQUE PERSONNEL (UK) LTD,985.4,PHY LTS 65+,HOMECARE - C&V,2103745346,1000075451
02.09.2023,ADULT SOCIAL CARE,UNIQUE PERSONNEL (UK) LTD,"1,004.36",PHY LTS 65+,HOMECARE - C&V,2103745396,1000075451
02.09.2023,ADULT SOCIAL CARE,UNIQUE PERSONNEL (UK) LTD,"1,032.78",PHY LTS 65+,HOMECARE - C&V,2103745403,1000075451
02.09.2023,ADULT SOCIAL CARE,UNIQUE PERSONNEL (UK) LTD,"1,042.24",PHY LTS 65+,HOMECARE - C&V,2103745357,1000075451
02.09.2023,ADULT SOCIAL CARE,UNIQUE PERSONNEL (UK) LTD,"1,080.16",PHY LTS 65+,HOMECARE - C&V,2103745376,1000075451
02.09.2023,ADULT SOCIAL CARE,UNIQUE PERSONNEL (UK) LTD,"1,080.16",PHY LTS 65+,HOMECARE - C&V,2103745381,1000075451
02.09.2023,ADULT SOCIAL CARE,UNIQUE PERSONNEL (UK) LTD,"1,080.16",PHY LTS 65+,HOMECARE - C&V,2103745400,1000075451
02.09.2023,ADULT SOCIAL CARE,UNIQUE PERSONNEL (UK) LTD,"1,118.04",PHY LTS 65+,HOMECARE - C&V,2103745344,1000075451
02.09.2023,ADULT SOCIAL CARE,UNIQUE PERSONNEL (UK) LTD,"1,137.00",PHY LTS 65+,HOMECARE - C&V,2103745370,1000075451
02.09.2023,ADULT SOCIAL CARE,UNIQUE PERSONNEL (UK) LTD,"1,155.10",PHY LTS 65+,HOMECARE - C&V,2103745342,1000075451
02.09.2023,ADULT SOCIAL CARE,UNIQUE PERSONNEL (UK) LTD,"1,193.84",PHY LTS 65+,HOMECARE - C&V,2103745395,1000075451
02.09.2023,ADULT SOCIAL CARE,UNIQUE PERSONNEL (UK) LTD,"1,250.69",PHY LTS 65+,HOMECARE - C&V,2103745353,1000075451
02.09.2023,ADULT SOCIAL CARE,UNIQUE PERSONNEL (UK) LTD,"1,345.44",PHY LTS 65+,HOMECARE - C&V,2103745380,1000075451
02.09.2023,ADULT SOCIAL CARE,UNIQUE PERSONNEL (UK) LTD,"1,345.44",PHY LTS 65+,HOMECARE - C&V,2103745383,1000075451
02.09.2023,ADULT SOCIAL CARE,UNIQUE PERSONNEL (UK) LTD,"1,373.88",PHY LTS 65+,HOMECARE - C&V,2103745351,1000075451
02.09.2023,ADULT SOCIAL CARE,UNIQUE PERSONNEL (UK) LTD,"1,440.20",PHY LTS 65+,HOMECARE - C&V,2103745373,1000075451
02.09.2023,ADULT SOCIAL CARE,UNIQUE PERSONNEL (UK) LTD,"1,478.12",PHY LTS 65+,HOMECARE - C&V,2103745368,1000075451
02.09.2023,ADULT SOCIAL CARE,UNIQUE PERSONNEL (UK) LTD,"1,591.80",PHY LTS 65+,HOMECARE - C&V,2103745372,1000075451
02.09.2023,ADULT SOCIAL CARE,UNIQUE PERSONNEL (UK) LTD,"1,686.56",PHY LTS 65+,HOMECARE - C&V,2103745352,1000075451
02.09.2023,ADULT SOCIAL CARE,UNIQUE PERSONNEL (UK) LTD,"1,705.51",PHY LTS 65+,HOMECARE - C&V,2103745401,1000075451
02.09.2023,ADULT SOCIAL CARE,UNIQUE PERSONNEL (UK) LTD,"1,800.24",PHY LTS 65+,HOMECARE - C&V,2103745384,1000075451
02.09.2023,ADULT SOCIAL CARE,UNIQUE PERSONNEL (UK) LTD,"1,842.90",PHY LTS 65+,HOMECARE - C&V,2103745398,1000075451
02.09.2023,ADULT SOCIAL CARE,UNIQUE PERSONNEL (UK) LTD,"1,913.95",PHY LTS 65+,HOMECARE - C&V,2103745409,1000075451
02.09.2023,ADULT SOCIAL CARE,UNIQUE PERSONNEL (UK) LTD,"1,970.80",PHY LTS 65+,HOMECARE - C&V,2103745416,1000075451
02.09.2023,ADULT SOCIAL CARE,UNIQUE PERSONNEL (UK) LTD,"2,236.12",PHY LTS 65+,HOMECARE - C&V,2103745423,1000075451
02.09.2023,ADULT SOCIAL CARE,UNIQUE PERSONNEL (UK) LTD,"2,259.79",PHY LTS 65+,HOMECARE - C&V,2103745335,1000075451
02.09.2023,ADULT SOCIAL CARE,UNIQUE PERSONNEL (UK) LTD,"2,387.72",PHY LTS 65+,HOMECARE - C&V,2103745310,1000075451
02.09.2023,ADULT SOCIAL CARE,UNIQUE PERSONNEL (UK) LTD,"2,387.72",PHY LTS 65+,HOMECARE - C&V,2103745333,1000075451
02.09.2023,ADULT SOCIAL CARE,UNIQUE PERSONNEL (UK) LTD,"2,387.72",PHY LTS 65+,HOMECARE - C&V,2103745349,1000075451
02.09.2023,ADULT SOCIAL CARE,UNIQUE PERSONNEL (UK) LTD,"2,539.32",PHY LTS 65+,HOMECARE - C&V,2103745375,1000075451
02.09.2023,ADULT SOCIAL CARE,UNIQUE PERSONNEL (UK) LTD,"2,653.00",PHY LTS 65+,HOMECARE - C&V,2103745388,1000075451
02.09.2023,ADULT SOCIAL CARE,UNIQUE PERSONNEL (UK) LTD,"2,653.00",PHY LTS 65+,HOMECARE - C&V,2103745411,1000075451
02.09.2023,ADULT SOCIAL CARE,UNIQUE PERSONNEL (UK) LTD,"2,771.44",PHY LTS 65+,HOMECARE - C&V,2103745332,1000075451
02.09.2023,ADULT SOCIAL CARE,UNIQUE PERSONNEL (UK) LTD,"2,861.44",PHY LTS 65+,HOMECARE - C&V,2103745405,1000075451
02.09.2023,ADULT SOCIAL CARE,UNIQUE PERSONNEL (UK) LTD,"2,927.77",PHY LTS 65+,HOMECARE - C&V,2103745360,1000075451
02.09.2023,ADULT SOCIAL CARE,UNIQUE PERSONNEL (UK) LTD,"3,164.65",PHY LTS 65+,HOMECARE - C&V,2103745410,1000075451
02.09.2023,ADULT SOCIAL CARE,UNIQUE PERSONNEL (UK) LTD,"3,183.60",PHY LTS 65+,HOMECARE - C&V,2103745337,1000075451
02.09.2023,ADULT SOCIAL CARE,UNIQUE PERSONNEL (UK) LTD,"3,183.60",PHY LTS 65+,HOMECARE - C&V,2103745420,1000075451
02.09.2023,ADULT SOCIAL CARE,UNIQUE PERSONNEL (UK) LTD,"3,245.19",PHY LTS 65+,HOMECARE - C&V,2103745378,1000075451
02.09.2023,ADULT SOCIAL CARE,UNIQUE PERSONNEL (UK) LTD,"3,259.40",PHY LTS 65+,HOMECARE - C&V,2103745322,1000075451
02.09.2023,ADULT SOCIAL CARE,UNIQUE PERSONNEL (UK) LTD,"3,441.34",PHY LTS 65+,HOMECARE - C&V,2103745364,1000075451
02.09.2023,ADULT SOCIAL CARE,UNIQUE PERSONNEL (UK) LTD,"3,448.92",PHY LTS 65+,HOMECARE - C&V,2103745317,1000075451
02.09.2023,ADULT SOCIAL CARE,UNIQUE PERSONNEL (UK) LTD,"3,448.92",PHY LTS 65+,HOMECARE - C&V,2103745319,1000075451
02.09.2023,ADULT SOCIAL CARE,UNIQUE PERSONNEL (UK) LTD,"3,624.19",PHY LTS 65+,HOMECARE - C&V,2103745377,1000075451
02.09.2023,ADULT SOCIAL CARE,UNIQUE PERSONNEL (UK) LTD,"4,358.52",PHY LTS 65+,HOMECARE - C&V,2103745392,1000075451
02.09.2023,ADULT SOCIAL CARE,UNIQUE PERSONNEL (UK) LTD,"4,396.40",PHY LTS 65+,HOMECARE - C&V,2103745331,1000075451
02.09.2023,ADULT SOCIAL CARE,UNIQUE PERSONNEL (UK) LTD,"4,585.92",PHY LTS 65+,HOMECARE - C&V,2103745371,1000075451
02.09.2023,ADULT SOCIAL CARE,SAGECARE LTD,269,PHY LTS 65+,HOMECARE - C&V,2103745296,1000080924
02.09.2023,ADULT SOCIAL CARE,SAGECARE LTD,288.76,PHY LTS 65+,HOMECARE - C&V,2103745297,1000080924
02.09.2023,ADULT SOCIAL CARE,SAGECARE LTD,330.92,PHY LTS 65+,HOMECARE - C&V,2103745301,1000080924
02.09.2023,ADULT SOCIAL CARE,SAGECARE LTD,348.91,PHY LTS 65+,HOMECARE - C&V,2103745258,1000080924
02.09.2023,ADULT SOCIAL CARE,SAGECARE LTD,566.72,PHY LTS 65+,HOMECARE - C&V,2103745264,1000080924
02.09.2023,ADULT SOCIAL CARE,SAGECARE LTD,759,PHY LTS 65+,HOMECARE - C&V,2103745257,1000080924
02.09.2023,ADULT SOCIAL CARE,SAGECARE LTD,929.26,PHY LTS 65+,HOMECARE - C&V,2103745279,1000080924
02.09.2023,ADULT SOCIAL CARE,SAGECARE LTD,"1,173.44",PHY LTS 65+,HOMECARE - C&V,2103745250,1000080924
02.09.2023,ADULT SOCIAL CARE,SAGECARE LTD,"1,724.33",PHY LTS 65+,HOMECARE - C&V,2103745263,1000080924
02.09.2023,ADULT SOCIAL CARE,LONDON CARE LTD,667.27,PHY LTS 65+,HOMECARE - SPOT,2103745016,1000003398
02.09.2023,ADULT SOCIAL CARE,METRO HOMECARE LTD,276.38,PHY LTS 65+,HOMECARE - SPOT,2103745427,1000070695
02.09.2023,ADULT SOCIAL CARE,METRO HOMECARE LTD,915.75,PHY LTS 65+,HOMECARE - SPOT,2103745432,1000070695
02.09.2023,ADULT SOCIAL CARE,UNIQUE PERSONNEL (UK) LTD,606.4,PHY LTS 65+,HOMECARE - SPOT,2103745316,1000075451
02.09.2023,ADULT SOCIAL CARE,UNIQUE PERSONNEL (UK) LTD,606.4,PHY LTS 65+,HOMECARE - SPOT,2103745374,1000075451
02.09.2023,ADULT SOCIAL CARE,UNIQUE PERSONNEL (UK) LTD,720.12,PHY LTS 65+,HOMECARE - SPOT,2103745397,1000075451
02.09.2023,ADULT SOCIAL CARE,UNIQUE PERSONNEL (UK) LTD,"1,193.84",PHY LTS 65+,HOMECARE - SPOT,2103745330,1000075451
02.09.2023,ADULT SOCIAL CARE,LONDON CARE LTD,636.95,PHY STS 18-64,HOMECARE - IC,2103745225,1000003398
02.09.2023,ADULT SOCIAL CARE,LONDON CARE LTD,538.36,PHY STS 65+,HOMECARE - IC,2103745036,1000003398
02.09.2023,ADULT SOCIAL CARE,LONDON CARE LTD,590.49,PHY STS 65+,HOMECARE - IC,2103744948,1000003398
02.09.2023,ADULT SOCIAL CARE,SAGECARE LTD,524.29,PHY STS 65+,HOMECARE - IC,2103745251,1000080924
02.09.2023,ADULT SOCIAL CARE,SAGECARE LTD,"1,628.97",PHY STS 65+,HOMECARE - IC,2103745262,1000080924
02.09.2023,ADULT SOCIAL CARE,LONDON CARE LTD,535.84,SOCIAL ISOLATION,HOMECARE - C&V,2103745010,1000003398
02.09.2023,ADULT SOCIAL CARE,LONDON CARE LTD,850.5,SOCIAL ISOLATION,HOMECARE - C&V,2103745102,1000003398
02.09.2023,ADULT SOCIAL CARE,SAGECARE LTD,655.28,SOCIAL ISOLATION,HOMECARE - C&V,2103745298,1000080924
02.09.2023,ADULT SOCIAL CARE,LONDON CARE LTD,439.89,SUB LTS 18-64,HOMECARE - C&V,2103745124,1000003398
02.09.2023,ASSET MANAGEMENT,ARMINA LTD,329.88,DISREPAIR,BUILDING R&M,2103745451,3000002121
02.09.2023,ASSET MANAGEMENT,ARMINA LTD,721.39,DISREPAIR,BUILDING R&M,2103744701,3000002121
02.09.2023,ASSET MANAGEMENT,ARMINA LTD,849.42,DISREPAIR,BUILDING R&M,2103745450,3000002121
02.09.2023,ASSET MANAGEMENT,ARMINA LTD,950.27,DISREPAIR,BUILDING R&M,2103744700,3000002121
02.09.2023,ASSET MANAGEMENT,ARMINA LTD,"1,970.07",DISREPAIR,BUILDING R&M,2103744699,3000002121
02.09.2023,ASSET MANAGEMENT,ARMINA LTD,"2,671.91",DISREPAIR,BUILDING R&M,2103745452,3000002121
02.09.2023,ASSET MANAGEMENT,ARMINA LTD,"3,454.52",DISREPAIR,BUILDING R&M,2103744702,3000002121
02.09.2023,ASSET MANAGEMENT,LONDON FIRE BRIGADE,364,LIFTS,LIFTS,5902596264,1000083629
02.09.2023,ASSET MANAGEMENT,LONDON FIRE BRIGADE,364,LIFTS,LIFTS,5902596265,1000083629
02.09.2023,ASSET MANAGEMENT,LONDON FIRE BRIGADE,364,LIFTS,LIFTS,5902596267,1000083629
02.09.2023,CENTRAL FUNCTIONS,DRAIN SCAN (LONDON) LIMITED,360,COMMERCIAL PROPERTIES,BUILDING R&M,5902597273,1908746
02.09.2023,CENTRAL FUNCTIONS,BRESLIN CONSTRUCTION LTD,680,COMMERCIAL PROPERTIES,BUILDING R&M,2103745453,3000001948
02.09.2023,CENTRAL FUNCTIONS,BRESLIN CONSTRUCTION LTD,"1,980.00",COMMERCIAL PROPERTIES,BUILDING R&M,2103745454,3000001948
02.09.2023,CENTRAL FUNCTIONS,FRANKHAM CONSULTANCY GROUP LTD,"9,247.50",COMMERCIAL PROPERTIES,PROFESSIONAL FEES,5902597246,1000043952
02.09.2023,CENTRAL FUNCTIONS,PRB ESTATES LTD,"19,980.39",GARAGE REPAIRS,BUILDING R&M,2103745445,3000001691
02.09.2023,CHILDREN AND FAMILIES,REDACTED PERSONAL DATA,"2,245.00",ADOPTION SUPP FUND 2,EXTERNAL AGENCIES AND BODIES,REDACTED,REDACTED
02.09.2023,CHILDREN AND FAMILIES,REDACTED PERSONAL DATA,287.5,ADOPTION SUPP FUND 2,EXTERNAL AGENCIES AND BODIES,REDACTED,REDACTED
02.09.2023,CHILDREN AND FAMILIES,YOU FULFILLED LTD,440,ADOPTION SUPP FUND 3,EXTERNAL AGENCIES AND BODIES,5902596272,1000090012
02.09.2023,CHILDREN AND FAMILIES,REDACTED PERSONAL DATA,"2,455.00",ADOPTION SUPP FUND 3,EXTERNAL AGENCIES AND BODIES,REDACTED,REDACTED
02.09.2023,CHILDREN AND FAMILIES,REDACTED PERSONAL DATA,"2,455.00",ADOPTION SUPP FUND 3,EXTERNAL AGENCIES AND BODIES,REDACTED,REDACTED
02.09.2023,CHILDREN AND FAMILIES,REDACTED PERSONAL DATA,"2,496.25",ADOPTION SUPP FUND 3,EXTERNAL AGENCIES AND BODIES,REDACTED,REDACTED
02.09.2023,CHILDREN AND FAMILIES,REDACTED PERSONAL DATA,"2,965.00",ADOPTION SUPP FUND 3,EXTERNAL AGENCIES AND BODIES,REDACTED,REDACTED
02.09.2023,CHILDREN AND FAMILIES,REDACTED PERSONAL DATA,"3,320.00",ADOPTION SUPP FUND 3,EXTERNAL AGENCIES AND BODIES,REDACTED,REDACTED
02.09.2023,CHILDREN AND FAMILIES,REDACTED PERSONAL DATA,"3,472.50",ADOPTION SUPP FUND 3,EXTERNAL AGENCIES AND BODIES,REDACTED,REDACTED
02.09.2023,CHILDREN AND FAMILIES,REDACTED PERSONAL DATA,"3,870.00",ADOPTION SUPP FUND 3,EXTERNAL AGENCIES AND BODIES,REDACTED,REDACTED
02.09.2023,CHILDREN AND FAMILIES,REDACTED PERSONAL DATA,"4,552.50",ADOPTION SUPP FUND 3,EXTERNAL AGENCIES AND BODIES,REDACTED,REDACTED
02.09.2023,CHILDREN AND FAMILIES,REDACTED PERSONAL DATA,"4,552.50",ADOPTION SUPP FUND 3,EXTERNAL AGENCIES AND BODIES,REDACTED,REDACTED
02.09.2023,CHILDREN AND FAMILIES,REDACTED PERSONAL DATA,"4,820.00",ADOPTION SUPP FUND 3,EXTERNAL AGENCIES AND BODIES,REDACTED,REDACTED
02.09.2023,CHILDREN AND FAMILIES,REDACTED PERSONAL DATA,560,ADOPTION SUPP FUND 3,EXTERNAL AGENCIES AND BODIES,REDACTED,REDACTED
02.09.2023,CHILDREN AND FAMILIES,REDACTED PERSONAL DATA,560,ADOPTION SUPP FUND 3,EXTERNAL AGENCIES AND BODIES,REDACTED,REDACTED
02.09.2023,CHILDREN AND FAMILIES,JURITA LTD,"42,071.43",CHILDREN�S RESID,RESIDENTIAL CARE,2103745246,1000088813
02.09.2023,CHILDREN AND FAMILIES,HIGHVIEW CARE LTD,"3,000.00",CHILDREN�S RESID,RESIDENTIAL CARE,2103745248,1000089728
02.09.2023,CHILDREN AND FAMILIES,HIGHVIEW CARE LTD,"19,485.67",CHILDREN�S RESID,RESIDENTIAL CARE,2103745247,1000089728
02.09.2023,CHILDREN AND FAMILIES,HIGHVIEW CARE LTD,"19,485.67",CHILDREN�S RESID,RESIDENTIAL CARE,2103745249,1000089728
02.09.2023,CHILDREN AND FAMILIES,RAINBOW FOSTERING SERVICES LTD,"3,963.57",FRIENDS & FAMILY FOSTERING,EXTERNAL AGENCIES AND BODIES,2103745243,1000076620
02.09.2023,CHILDREN AND FAMILIES,RAINBOW FOSTERING SERVICES LTD,"6,200.00",FRIENDS & FAMILY FOSTERING,EXTERNAL AGENCIES AND BODIES,2103745242,1000076620
02.09.2023,CHILDREN AND FAMILIES,FAMILY WORKS FOSTERING LTD,"6,421.65",FRIENDS & FAMILY FOSTERING,EXTERNAL AGENCIES AND BODIES,2103745241,1000082529
02.09.2023,CHILDREN AND FAMILIES,KINGSWOOD ARTS CIC,"1,400.00",P & R CARE TEAM,HIRE OF ROOMS/HALLS,5902597242,1000090129
02.09.2023,CHILDREN AND FAMILIES,FRESH START CARE SOLUTIONS LTD,"21,478.56",SEMI-IND LAC 16-17,EXTERNAL AGENCIES AND BODIES,2103745245,1000070537
02.09.2023,CHILDREN AND FAMILIES,SILVER BIRCH CARE LTD,"6,696.62",SEMI-IND LAC 16-17,EXTERNAL AGENCIES AND BODIES,2103744839,1000076525
02.09.2023,CHILDREN AND FAMILIES,FRESH START CARE SOLUTIONS LTD,265.72,SEMI-IND LAC 16-17,OTHER PAYMENTS FOR CLIENTS,2103745244,1000070537
02.09.2023,CHILDREN AND FAMILIES,ORCHID CELLMARK LTD,504,SFS MGMT & SUPPORT,LEGAL FEES & COURT COSTS,2103744817,1000078050
02.09.2023,CHILDREN AND FAMILIES,ORCHID CELLMARK LTD,730,SFS MGMT & SUPPORT,LEGAL FEES & COURT COSTS,2103744818,1000078050
02.09.2023,CHILDREN AND FAMILIES,MAX MELSA,350,SFS MGMT & SUPPORT,LEGAL FEES & COURT COSTS,2103744824,1000083902
02.09.2023,CHILDREN AND FAMILIES,DIAMOND PROPERTY MANAGEMENT LTD,"1,612.00",TEMP ACCOM FOR IH,EXTERNAL AGENCIES AND BODIES,5902597248,1000088789
02.09.2023,CHILDREN AND FAMILIES,PANGEA SUPPORT SERVICES LIMITED,"3,040.00",UASC LAC 16-17,EXTERNAL AGENCIES AND BODIES,2103744838,1000090048
02.09.2023,CHILDREN AND FAMILIES,PANGEA SUPPORT SERVICES LIMITED,"3,200.00",UASC LAC 16-17,EXTERNAL AGENCIES AND BODIES,2103744840,1000090048
02.09.2023,COMMISSIONING & CENTRAL,RSM RISK ASSURANCE SERVICES LLP,"22,507.81",STRATEGIC DIRECTOR OF C&AS,SUBSCRIPTIONS,5902597275,1000050690
02.09.2023,COMMUNITIES,SK HOUSING LTD,"1,488.00",NO RECOURSE TO PUBLIC FUNDS,ACCOMMODATION CHARGES,5902597252,1000070716
02.09.2023,COMMUNITIES,METRO HOMECARE LTD,412.5,NO RECOURSE TO PUBLIC FUNDS,HOMECARE - C&V,2103745426,1000070695
02.09.2023,COMMUNITIES,UNIQUE PERSONNEL (UK) LTD,776.97,NO RECOURSE TO PUBLIC FUNDS,HOMECARE - C&V,2103745425,1000075451
02.09.2023,COMMUNITIES,JOYMAC CARE LTD,"1,664.00",NO RECOURSE TO PUBLIC FUNDS,HOMECARE - C&V,2103745234,1000088577
02.09.2023,COMMUNITIES,FRAMEWORK HOUSING ASSOCIATION,"1,995.00",ROUGH SLEEPERS SM,OTHER CONTRACTORS,5902597156,1000086098
02.09.2023,COMMUNITIES,JARED NORMAN,500,SASBU,LEGAL FEES & COURT COSTS,2103744820,1000064080
02.09.2023,COMMUNITIES,FRAMEWORK HOUSING ASSOCIATION,"19,380.00",TIER 4 SERVICES,OTHER CONTRACTORS,5902597153,1000086098
02.09.2023,COMMUNITIES,REDACTED PERSONAL DATA,500,UKRAINIAN PROGRAMME,GRANTS,REDACTED,REDACTED
02.09.2023,COMMUNITIES,REDACTED PERSONAL DATA,500,UKRAINIAN PROGRAMME,GRANTS,REDACTED,REDACTED
02.09.2023,COMMUNITIES,REDACTED PERSONAL DATA,500,UKRAINIAN PROGRAMME,GRANTS,REDACTED,REDACTED
02.09.2023,COMMUNITIES,REDACTED PERSONAL DATA,350,UKRAINIAN PROGRAMME,GRANTS,REDACTED,REDACTED
02.09.2023,COMMUNITIES,REDACTED PERSONAL DATA,500,UKRAINIAN PROGRAMME,GRANTS,REDACTED,REDACTED
02.09.2023,COMMUNITIES,REDACTED PERSONAL DATA,500,UKRAINIAN PROGRAMME,GRANTS,REDACTED,REDACTED
02.09.2023,CUSTOMER AND EXCHEQUER,RGM CONSULTING LTD,600,CORONER'S,PROFESSIONAL FEES,5902596277,1000090065
02.09.2023,CUSTOMER EXPERIENCE,ADRIAN GORDON,385,COMPLAINTS,PROFESSIONAL FEES,5902596790,1000090160
02.09.2023,DSG,ST. JOSEPH'S RC PRIMARY SCHOOL,275,INTERVENTION FUND,CONSULTANTS SERVICES,2103744703,1000089163
02.09.2023,DSG,ST. JOSEPH'S RC PRIMARY SCHOOL,550,INTERVENTION FUND,CONSULTANTS SERVICES,2103744704,1000089163
02.09.2023,DSG,ROCKINGHAM COMMUNITY DAY NURSERY,"37,919.25",NURSERY ED GRANT 3 AND 4 YR OLDS,GRANTS,2103744775,1095826
02.09.2023,DSG,TRINITY CHILD CARE,"28,499.25",NURSERY ED GRANT 3 AND 4 YR OLDS,GRANTS,2103744796,1151305
02.09.2023,DSG,S R C COMMUNITY NURSERY,"35,821.50",NURSERY ED GRANT 3 AND 4 YR OLDS,GRANTS,2103744785,1414681
02.09.2023,DSG,PLAYSHACK PLAYGROUP,"7,720.13",NURSERY ED GRANT 3 AND 4 YR OLDS,GRANTS,2103744770,1608859
02.09.2023,DSG,ROCKINGHAM PRE-SCHOOL,"4,923.75",NURSERY ED GRANT 3 AND 4 YR OLDS,GRANTS,2103744776,11002695
02.09.2023,DSG,PUDDLEDUCK NURSERY,"14,517.75",NURSERY ED GRANT 3 AND 4 YR OLDS,GRANTS,2103744771,11210722
02.09.2023,DSG,PLAYDAYS UK LTD,"20,396.25",NURSERY ED GRANT 3 AND 4 YR OLDS,GRANTS,2103744779,11210767
02.09.2023,DSG,THE BEECHES NURSERY GROUP LTD,"27,553.88",NURSERY ED GRANT 3 AND 4 YR OLDS,GRANTS,2103744733,11215743
02.09.2023,DSG,HALFMOON MONTESSORI NURSERY,"22,585.88",NURSERY ED GRANT 3 AND 4 YR OLDS,GRANTS,2103744742,11219161
02.09.2023,DSG,KINGS COLLEGE NHS FOUNDATION TRUST,"10,793.25",NURSERY ED GRANT 3 AND 4 YR OLDS,GRANTS,2103744750,11255665
02.09.2023,DSG,BRIGHT HORIZONS FAMILY SOLUTIONS,"26,446.88",NURSERY ED GRANT 3 AND 4 YR OLDS,GRANTS,2103744769,11294322
02.09.2023,DSG,MIATA EDUCATIONAL SERVICES LTD,"21,367.13",NURSERY ED GRANT 3 AND 4 YR OLDS,GRANTS,2103744730,1000003741
02.09.2023,DSG,THE VILLA SCHOOL & NURSERY LTD,"63,652.50",NURSERY ED GRANT 3 AND 4 YR OLDS,GRANTS,2103744793,1000003742
02.09.2023,DSG,LITTLE ACORNS DAY NURSERY,"28,153.13",NURSERY ED GRANT 3 AND 4 YR OLDS,GRANTS,2103744753,1000015844
02.09.2023,DSG,CRYSTAL NURSERY (UK),"16,789.50",NURSERY ED GRANT 3 AND 4 YR OLDS,GRANTS,2103744740,1000016621
02.09.2023,DSG,MOTHER GOOSE NURSERIES - GREENDALE FIELDS LTD,"16,189.88",NURSERY ED GRANT 3 AND 4 YR OLDS,GRANTS,2103744766,1000025888
02.09.2023,DSG,LITTLE WINNERS DAY NURSERY LTD,"11,757.75",NURSERY ED GRANT 3 AND 4 YR OLDS,GRANTS,2103744762,1000041814
02.09.2023,DSG,FOUNTAIN CHILDRENS CENTRE LIMITED,"18,594.00",NURSERY ED GRANT 3 AND 4 YR OLDS,GRANTS,2103744734,1000042265
02.09.2023,DSG,MAGIC ROUNDABOUT NURSERIES LTD,"29,761.88",NURSERY ED GRANT 3 AND 4 YR OLDS,GRANTS,2103744764,1000045128
02.09.2023,DSG,NICKI DAY NURSERY LTD,"27,491.25",NURSERY ED GRANT 3 AND 4 YR OLDS,GRANTS,2103744768,1000045363
02.09.2023,DSG,ARC COMMUNITY TRUSTEES,"12,286.50",NURSERY ED GRANT 3 AND 4 YR OLDS,GRANTS,2103744711,1000046206
02.09.2023,DSG,THE BOSCO CENTRE,"17,652.38",NURSERY ED GRANT 3 AND 4 YR OLDS,GRANTS,2103744716,1000046317
02.09.2023,DSG,1ST PLACE CHILDREN & PARENTS CENTRE,"32,645.63",NURSERY ED GRANT 3 AND 4 YR OLDS,GRANTS,2103744707,1000049952
02.09.2023,DSG,1ST PLACE CHILDREN & PARENTS CENTRE,"46,171.13",NURSERY ED GRANT 3 AND 4 YR OLDS,GRANTS,2103744706,1000049952
02.09.2023,DSG,CAMBERWELL AFTER SCHOOL PROJECT,"6,789.38",NURSERY ED GRANT 3 AND 4 YR OLDS,GRANTS,2103744722,1000051625
02.09.2023,DSG,JULIE THOMPSON,"20,507.18",NURSERY ED GRANT 3 AND 4 YR OLDS,GRANTS,2103744715,1000054116
02.09.2023,DSG,SMART START NURSERY,"26,342.63",NURSERY ED GRANT 3 AND 4 YR OLDS,GRANTS,2103744782,1000056317
02.09.2023,DSG,GERMAN KINDERGARTEN LTD,"7,195.50",NURSERY ED GRANT 3 AND 4 YR OLDS,GRANTS,2103744737,1000058090
02.09.2023,DSG,GERMAN KINDERGARTEN LTD,"10,793.25",NURSERY ED GRANT 3 AND 4 YR OLDS,GRANTS,2103744736,1000058090
02.09.2023,DSG,LITTLE ANGELS DAY NURSERY & CHILDCARE SERVICES LTD C/O TINU ODEKU ,"8,048.63",NURSERY ED GRANT 3 AND 4 YR OLDS,GRANTS,2103744755,1000058464
02.09.2023,DSG,LITTLE ANGELS 247 LTD,"8,994.38",NURSERY ED GRANT 3 AND 4 YR OLDS,GRANTS,2103744754,1000059329
02.09.2023,DSG,SUCCESS ASSOCIATES LIMITED,"28,236.34",NURSERY ED GRANT 3 AND 4 YR OLDS,GRANTS,2103744751,1000060300
02.09.2023,DSG,EXCEL CHILD CARE SERVICES LTD,"29,174.63",NURSERY ED GRANT 3 AND 4 YR OLDS,GRANTS,2103744732,1000060429
02.09.2023,DSG,CTY NURSERY LTD,"29,655.38",NURSERY ED GRANT 3 AND 4 YR OLDS,GRANTS,2103744725,1000063131
02.09.2023,DSG,K & O CHILDCARE LTD,"11,485.83",NURSERY ED GRANT 3 AND 4 YR OLDS,GRANTS,2103744749,1000065113
02.09.2023,DSG,SURE AND FIRM FOUNDATIONS,"10,193.63",NURSERY ED GRANT 3 AND 4 YR OLDS,GRANTS,2103744767,1000066223
02.09.2023,DSG,LITTLE JUNGLE (U.K.) LIMITED,"32,979.38",NURSERY ED GRANT 3 AND 4 YR OLDS,GRANTS,2103744758,1000067064
02.09.2023,DSG,GOOSE GREEN PRIMARY AND NURSERY SCHOOL,"29,889.00",NURSERY ED GRANT 3 AND 4 YR OLDS,GRANTS,2103744739,1000070613
02.09.2023,DSG,UNDER THE WILLOW NURSERY,"14,654.25",NURSERY ED GRANT 3 AND 4 YR OLDS,GRANTS,2103744797,1000071830
02.09.2023,DSG,UNDER THE WILLOW NURSERY,"17,696.63",NURSERY ED GRANT 3 AND 4 YR OLDS,GRANTS,2103744778,1000071830
02.09.2023,DSG,THE FRUIT TREE DAY NURSERY,"24,774.75",NURSERY ED GRANT 3 AND 4 YR OLDS,GRANTS,2103744792,1000072492
02.09.2023,DSG,GODS GRACE DAYCARE,"4,860.38",NURSERY ED GRANT 3 AND 4 YR OLDS,GRANTS,2103744738,1000072790
02.09.2023,DSG,LITTLE FINGERS MONTESSORI NURSERY LTD,"20,387.25",NURSERY ED GRANT 3 AND 4 YR OLDS,GRANTS,2103744757,1000073415
02.09.2023,DSG,LOGICOUS LTD,"36,231.00",NURSERY ED GRANT 3 AND 4 YR OLDS,GRANTS,2103744712,1000073852
02.09.2023,DSG,BRIGHT EXPLORERS DAY NURSERY,"20,358.00",NURSERY ED GRANT 3 AND 4 YR OLDS,GRANTS,2103744717,1000074268
02.09.2023,DSG,SMART KIDS DAY NURSERY LTD,"18,715.13",NURSERY ED GRANT 3 AND 4 YR OLDS,GRANTS,2103744781,1000074580
02.09.2023,DSG,PATRICIA IBIRONKE T/A JOYFUL STAR NURSERY,"14,460.00",NURSERY ED GRANT 3 AND 4 YR OLDS,GRANTS,2103744747,1000074638
02.09.2023,DSG,RYE GARDEN DAY NURSERY,"13,381.88",NURSERY ED GRANT 3 AND 4 YR OLDS,GRANTS,2103744777,1000074965
02.09.2023,DSG,FIRST CHOICE DAY NURSERY,"19,966.50",NURSERY ED GRANT 3 AND 4 YR OLDS,GRANTS,2103744705,1000075368
02.09.2023,DSG,ANGEL OAK ACADEMY,"7,195.50",NURSERY ED GRANT 3 AND 4 YR OLDS,GRANTS,2103744710,1000075379
02.09.2023,DSG,EAST DULWICH GROVE NURSERY LTD,"23,757.00",NURSERY ED GRANT 3 AND 4 YR OLDS,GRANTS,2103744731,1000077140
02.09.2023,DSG,LONDON EARLY YEARS FOUNDATION,"28,707.75",NURSERY ED GRANT 3 AND 4 YR OLDS,GRANTS,2103744783,1000077919
02.09.2023,DSG,LONDON EARLY YEARS FOUNDATION,"31,913.80",NURSERY ED GRANT 3 AND 4 YR OLDS,GRANTS,2103744721,1000077919
02.09.2023,DSG,LONDON EARLY YEARS FOUNDATION,"35,657.70",NURSERY ED GRANT 3 AND 4 YR OLDS,GRANTS,2103744741,1000077919
02.09.2023,DSG,LONDON EARLY YEARS FOUNDATION,"36,245.70",NURSERY ED GRANT 3 AND 4 YR OLDS,GRANTS,2103744714,1000077919
02.09.2023,DSG,LONDON EARLY YEARS FOUNDATION,"37,000.13",NURSERY ED GRANT 3 AND 4 YR OLDS,GRANTS,2103744719,1000077919
02.09.2023,DSG,LILIES DAY NURSERY,"26,331.38",NURSERY ED GRANT 3 AND 4 YR OLDS,GRANTS,2103744752,1000078155
02.09.2023,DSG,EAGLES FLIGHT MONTESSORI NURSERY,"1,925.63",NURSERY ED GRANT 3 AND 4 YR OLDS,GRANTS,2103744729,1000079087
02.09.2023,DSG,LITTLE PIPS PRESCHOOL,"13,635.38",NURSERY ED GRANT 3 AND 4 YR OLDS,GRANTS,2103744760,1000079580
02.09.2023,DSG,BRIGHT SOJOURNER NURSERY LTD,"29,352.38",NURSERY ED GRANT 3 AND 4 YR OLDS,GRANTS,2103744718,1000080155
02.09.2023,DSG,BUTTERFLY LANE NURSERY LTD,"10,920.00",NURSERY ED GRANT 3 AND 4 YR OLDS,GRANTS,2103744720,1000080549
02.09.2023,DSG,SUNSHINE FRUITS NURSERY LTD,"19,188.00",NURSERY ED GRANT 3 AND 4 YR OLDS,GRANTS,2103744790,1000081059
02.09.2023,DSG,LITTLE BEARS 4 LMITED T/A LITTLE BEARS IN ELEPHANT CENTRE,"14,607.08",NURSERY ED GRANT 3 AND 4 YR OLDS,GRANTS,2103744756,1000082505
02.09.2023,DSG,LITTLE ME CANADA WATER LTD,"38,720.63",NURSERY ED GRANT 3 AND 4 YR OLDS,GRANTS,2103744759,1000083348
02.09.2023,DSG,SUNHILL DAYCARE (EUROPE) LIMITED,"30,015.38",NURSERY ED GRANT 3 AND 4 YR OLDS,GRANTS,2103744789,1000083945
02.09.2023,DSG,TIGERS CHILDCARE LTD,"74,754.00",NURSERY ED GRANT 3 AND 4 YR OLDS,GRANTS,2103744794,1000084290
02.09.2023,DSG,LITTLE RABBIT DAY NURSERY,"29,167.88",NURSERY ED GRANT 3 AND 4 YR OLDS,GRANTS,2103744761,1000084320
02.09.2023,DSG,COLOURBOX CHILDCARE NURSERY LTD,"6,059.63",NURSERY ED GRANT 3 AND 4 YR OLDS,GRANTS,2103744724,1000085180
02.09.2023,DSG,GALAXY EXPLORERS DAY NURSERY LIMITED,"23,985.00",NURSERY ED GRANT 3 AND 4 YR OLDS,GRANTS,2103744735,1000085260
02.09.2023,DSG,ABC STUDIOS CHILDCARE,"4,797.00",NURSERY ED GRANT 3 AND 4 YR OLDS,GRANTS,2103744708,1000085422
02.09.2023,DSG,PURPLE JAY EAST DULWICH LTD,"8,138.33",NURSERY ED GRANT 3 AND 4 YR OLDS,GRANTS,2103744772,1000086696
02.09.2023,DSG,SMARTKIDDIES LIMITED,"14,266.50",NURSERY ED GRANT 3 AND 4 YR OLDS,GRANTS,2103744780,1000086931
02.09.2023,DSG,HATCHING DRAGONS SOUTHWARK LTD,"12,845.63",NURSERY ED GRANT 3 AND 4 YR OLDS,GRANTS,2103744744,1000087180
02.09.2023,DSG,PURPLE JAY LIMITED,"20,387.25",NURSERY ED GRANT 3 AND 4 YR OLDS,GRANTS,2103744773,1000087821
02.09.2023,DSG,VICTORIOUS VENTURA LIMITED,"9,619.50",NURSERY ED GRANT 3 AND 4 YR OLDS,GRANTS,2103744784,1000087823
02.09.2023,DSG,MARYAMS NURSERY LTD,"6,595.88",NURSERY ED GRANT 3 AND 4 YR OLDS,GRANTS,2103744765,1000088453
02.09.2023,DSG,TOTS RYE DAY NURSERY LTD,"11,314.88",NURSERY ED GRANT 3 AND 4 YR OLDS,GRANTS,2103744795,1000089357
02.09.2023,DSG,BIG N ALL PRESCHOOL AND DAY NURSERY,"4,057.50",NURSERY ED GRANT 3 AND 4 YR OLDS,GRANTS,2103744713,1000089398
02.09.2023,DSG,DULWICH VILLAGE PRE-SCHOOL,"13,984.39",NURSERY ED GRANT 3 AND 4 YR OLDS,GRANTS,2103744728,11171932
02.09.2023,DSG,ST JOHNS PRE SCHOOL,"14,209.88",NURSERY ED GRANT 3 AND 4 YR OLDS,GRANTS,2103744786,1000013380
02.09.2023,DSG,ALLEYNS JUNIOR SCHOOL,"7,841.25",NURSERY ED GRANT 3 AND 4 YR OLDS,GRANTS,2103744709,1000020848
02.09.2023,DSG,DULWICH MONTESSORI NURSERY SCHOOL,"34,305.38",NURSERY ED GRANT 3 AND 4 YR OLDS,GRANTS,2103744726,1000020859
02.09.2023,DSG,REDRIFF PRIMARY SCHOOL,"41,374.13",NURSERY ED GRANT 3 AND 4 YR OLDS,GRANTS,2103744774,1000067877
02.09.2023,DSG,HARRIS PRIMARY ACADEMY PECKHAM PARK,"14,391.00",NURSERY ED GRANT 3 AND 4 YR OLDS,GRANTS,2103744743,1000068029
02.09.2023,DSG,DULWICH OAKS MONTESSORI NURSERY SCHOOL,"62,865.79",NURSERY ED GRANT 3 AND 4 YR OLDS,GRANTS,2103744727,1000070726
02.09.2023,DSG,JUDITH KERR PRIMARY SCHOOL,"23,385.38",NURSERY ED GRANT 3 AND 4 YR OLDS,GRANTS,2103744748,1000073200
02.09.2023,DSG,JOHN DONNE PRIMARY SCHOOL,"23,385.38",NURSERY ED GRANT 3 AND 4 YR OLDS,GRANTS,2103744745,1000073253
02.09.2023,DSG,ST PAULS C OF E PRIMARY SCHOOL,"20,986.88",NURSERY ED GRANT 3 AND 4 YR OLDS,GRANTS,2103744788,1000082314
02.09.2023,DSG,JOHN KEATS PRIMARY SCHOOL,"25,184.25",NURSERY ED GRANT 3 AND 4 YR OLDS,GRANTS,2103744746,1000082645
02.09.2023,DSG,SURREY SQUARE PRIMARY SCHOOL,"34,558.88",NURSERY ED GRANT 3 AND 4 YR OLDS,GRANTS,2103744791,1000082648
02.09.2023,DSG,CHARLES DICKENS PRIMARY SCHOOL,"47,370.38",NURSERY ED GRANT 3 AND 4 YR OLDS,GRANTS,2103744723,1000085158
02.09.2023,DSG,CHARTER SCHOOLS EDUCATIONAL TRUST T/A LYNDHURST PRIMARY SCHOOL,"26,983.13",NURSERY ED GRANT 3 AND 4 YR OLDS,GRANTS,2103744763,1000086766
02.09.2023,DSG,ST. JOSEPH'S RC PRIMARY SCHOOL,"19,759.95",NURSERY ED GRANT 3 AND 4 YR OLDS,GRANTS,2103744787,1000089163
02.09.2023,EDUCATION,BLOOM PROCUREMENT SERVICES LTD,"4,050.00",CAPITAL PS (EDUCATION),CONSTRUCTION FEES,5902597253,1000082531
02.09.2023,EDUCATION,CULLINAN STUDIO LTD,"23,376.30",CAPITAL PS (EDUCATION),CONSTRUCTION FEES - ARCHITECT,5902597200,1000087576
02.09.2023,EDUCATION,SHARPE PRITCHARD LLP,734.8,CAPITAL PS (EDUCATION),CONSTRUCTION FEES - LEGAL,5902597255,1790085
02.09.2023,EDUCATION,SHARPE PRITCHARD LLP,"1,383.20",CAPITAL PS (EDUCATION),CONSTRUCTION FEES - LEGAL,5902597257,1790085
02.09.2023,EDUCATION,SHARPE PRITCHARD LLP,"1,986.70",CAPITAL PS (EDUCATION),CONSTRUCTION FEES - LEGAL,5902597218,1790085
02.09.2023,EDUCATION,PANTHER CATERERS LTD T/A CINQ SANDWICHES,363,L&A SALARIES,REFRESHMENTS FOR MEETINGS,5902597301,1000089000
02.09.2023,ENV & LEIS,WATERMAN INFRASTRUCTURE & ENVIRONMENT LTD,"6,321.20",CAPITAL PS (LEISURE),CONSTR'N SUB CONTRACT - NON CERTIFICATED,5902597167,1000060529
02.09.2023,ENV & LEIS,FITZPATRICK WOOLMER DESIGN & PUBLISHING LTD,"2,476.50",CAPITAL PS (LEISURE),CONSTRUCTION FEES  - EXTERNAL,5902596355,1000044126
02.09.2023,ENV & LEIS,BELL BRUSH COMPANY,"4,024.95",MANAGEMENT TEAM,MATERIALS,5902596564,1259776
02.09.2023,ENV&LEIS,LONDON NORTH WEST UNIVERSITY HEALTHCARE NHS TRUST,457.85,SEXUAL HEALTH - STI,MEDICAL / HEALTH & SAFETY SERVICES,5902596779,1000075293
02.09.2023,ENV&LEIS,EVERYONE HEALTH LTD,"7,980.00",STOP SMOKING,EXTERNAL AGENCIES AND BODIES,5902597044,1000084159
02.09.2023,ENV&LEIS,EVERYONE HEALTH LTD,"10,276.00",STOP SMOKING,EXTERNAL AGENCIES AND BODIES,5902597044,1000084159
02.09.2023,ENVIRONMENT DIRECTORATE,DAWSON RENTALS BUS & COACH LTD,"1,455.65",COMMERCIAL VEH CTRL A/C,HIRED VEHICLES,5902597198,1000042174
02.09.2023,ENVIRONMENT DIRECTORATE,UNIVERSAL TYRE & AUTOCENTRES,261.56,COMMERCIAL VEH CTRL A/C,OTHER VEHICLE RUNNING COSTS,5902597138,1000072475
02.09.2023,ENVIRONMENT DIRECTORATE,GREENHAM TRADING LTD,"3,064.18",ESTATE CLEANING-GENERAL,MATERIALS,5902597259,1000006610
02.09.2023,ENVIRONMENT DIRECTORATE,BETA DISTRIBUTION (SOUTH) LTD,618.76,HIGHWAYS DEVELOPMENT,OFFICE EXPENSES,5902597276,1000044844
02.09.2023,ENVIRONMENT DIRECTORATE,BETA DISTRIBUTION (SOUTH) LTD,"1,454.34",HIGHWAYS DEVELOPMENT,OFFICE EXPENSES,5902597272,1000044844
02.09.2023,ENVIRONMENT DIRECTORATE,JONATHAN GREEN,500,RESIDENTIAL SERVICES,LEGAL FEES & COURT COSTS,2103744821,1000068985
02.09.2023,HOUSING,OCO LIMITED,"161,372.83",PAYMENTS CONTROL ACCOUNT - OCO,I-WORLD CONTRACTORS HOLDING ACCOUNT,5902597183,1006066
02.09.2023,HOUSING,SILK & MACKMAN SERVICES LTD,"77,121.52",PAYMENTS CONTROL ACCOUNT SILK & MACKMAN,I-WORLD CONTRACTORS HOLDING ACCOUNT,5902597281,1000035282
02.09.2023,HOUSING,PENNINGTON CHOICES LTD,"5,154.16",PENNINGTON,I-WORLD CONTRACTORS HOLDING ACCOUNT,5902597166,1000067888
02.09.2023,HOUSING,PRB ESTATES LTD,"12,964.16",PRBE,I-WORLD CONTRACTORS HOLDING ACCOUNT,2103745449,3000001691
02.09.2023,HOUSING,PRB ESTATES LTD,"76,615.20",PRBE,I-WORLD CONTRACTORS HOLDING ACCOUNT,2103745447,3000001691
02.09.2023,HOUSING,PRB ESTATES LTD,"102,015.20",PRBE,I-WORLD CONTRACTORS HOLDING ACCOUNT,2103745448,3000001691
02.09.2023,HOUSING,PRB ESTATES LTD,"134,044.63",PRBE,I-WORLD CONTRACTORS HOLDING ACCOUNT,2103745446,3000001691
02.09.2023,HOUSING,SMITH & BYFORD LTD,"140,141.00",SMITH AND BYFORD,I-WORLD CONTRACTORS HOLDING ACCOUNT,5902597184,11212119
02.09.2023,HOUSING HRA,LONDON UNDERGROUND LTD,792,CAPITAL PS (HRA),CONSTRUCTION FEES  - EXTERNAL,5902597158,1000059727
02.09.2023,HOUSING HRA,WHITBY WOOD LTD,"2,750.00",CAPITAL PS (HRA),CONSTRUCTION FEES  - EXTERNAL,5902597160,1000086224
02.09.2023,HOUSING HRA,KARAKUSEVIC CARSON ARCHITECTS,"40,672.00",CAPITAL PS (HRA),CONSTRUCTION FEES - ARCHITECT,5902597211,1000055150
02.09.2023,HOUSING HRA,CALFORD SEADEN LLP,"1,550.00",CAPITAL PS (HRA),CONSTRUCTION FEES - EMPLOYERS AGENT,5902597168,1061592
02.09.2023,HOUSING HRA,EQUANS REGENERATION LTD,"436,225.46",CAPITAL PS (HRA),CONSTRUCTION MAIN CONTRACT -CERTIFICATED,2103745455,3000002035
02.09.2023,HUMAN RESOURCES,TMP (UK) LIMITED,"1,093.50",ADVERTISING,OTHER EMPLOYEE EXPENSES,5902597197,1000041810
02.09.2023,HUMAN RESOURCES,TMP (UK) LIMITED,"1,559.65",ADVERTISING,OTHER EMPLOYEE EXPENSES,5902597195,1000041810
02.09.2023,HUMAN RESOURCES,TMP (UK) LIMITED,"4,051.50",ADVERTISING,OTHER EMPLOYEE EXPENSES,5902597196,1000041810
02.09.2023,LEADERS & CABINET OFFICE,ELEPHANT & CASTLE BUSINESS FORUM,"9,000.00",BUSINESS SUPPORT,GRANTS,5902596392,1000089857
02.09.2023,LEISURE DIRECTORATE,FACULTATIEVE TECHNOLOGIES LTD,"18,097.75",CREMATORIUM,PLANNED MAINTENANCE,5902596890,1000077525
02.09.2023,LEISURE DIRECTORATE,SALIX MECHANICAL SERVICES LLP,253,LEISURE CENTRAL COST,BUILDING R&M,5902596143,1000088961
02.09.2023,LEISURE DIRECTORATE,KONG CLIMBING LTD,945,PLAY MANAGEMENT & ADMINISTRATION,TRAINING,5902597017,1000089931
02.09.2023,LEISURE DIRECTORATE,J P LENNARD LTD,"2,881.87",THE CASTLE CENTRE,EQUIPMENT PURCHASE & REPAIR,5902596438,1000048708
02.09.2023,LEISURE DIRECTORATE,SMART PLATFORM RENTAL LTD,625,TREES � IN-HOUSE TEAM,HIRED VEHICLES,5902597286,1000082961
02.09.2023,LEISURE DIRECTORATE,GLENDALE COUNTRYSIDE LTD,"11,795.04",TREES TERM CONTRACT,TREE MAINTENANCE,5902596797,1000070980
02.09.2023,LEISURE DIRECTORATE,GLENDALE COUNTRYSIDE LTD,"27,880.80",TREES TERM CONTRACT,TREE MAINTENANCE,5902596794,1000070980
02.09.2023,PLANNING & GROWTH,THIS SOLID GROUND LTD,"1,795.00","COURAGE YARD, SHAD THAMES",MARKETING & PUBLICITY SERVICES,5902597209,1000082494
02.09.2023,PLANNING & GROWTH,MALCOLM MARTIN,350,"COURAGE YARD, SHAD THAMES",PROFESSIONAL FEES,5902597274,1000067652
02.09.2023,PLANNING & GROWTH,PORTALPLANQUEST LTD,924,DEV MGT ADMIN & INCOME,MANDATORY STATUTORY FEES & CHARGES,5902596169,1000081761
02.09.2023,PLANNING & GROWTH,ATITLAN CONSULTING LIMITED,"8,750.00",STRATEGIC APPLICATIONS,PROFESSIONAL FEES,5902596704,1000089982
02.09.2023,REGEN & NEIGHBOURHOODS,SHERGROUP LTD,270.5,CAPITAL PS (REGEN),CONSTRUCTION FEES  - EXTERNAL,5902597199,1000087977
02.09.2023,REGEN & NEIGHBOURHOODS,SHERGROUP LTD,777,CAPITAL PS (REGEN),CONSTRUCTION FEES  - EXTERNAL,5902597199,1000087977
02.09.2023,REGEN & NEIGHBOURHOODS,BOND BRYAN ARCHITECTS LTD,"10,000.00",CAPITAL PS (REGEN),CONSTRUCTION MAIN CONTRACT,5902596219,1000090006
02.09.2023,RESIDENT SERVICES,ELIZABETH ENGLAND,387.5,OPERATIONS/OFFICES ACCOMMODATION,LEGAL FEES & COURT COSTS,2103744819,1000078563
02.09.2023,RESIDENT SERVICES,SCARLET TAYLOR-WALLER,"1,150.00",OPERATIONS/OFFICES ACCOMMODATION,LEGAL FEES & COURT COSTS,2103744827,1000089209
02.09.2023,RESIDENT SERVICES,LIDIA IANCU,300,PARKING CONTROL,LEGAL FEES & COURT COSTS,2103744823,1000089735
02.09.2023,RESIDENT SERVICES HGF,LETTING INTERNATIONAL LTD,355,HOMELESS PROJECTS,LEGAL FEES & COURT COSTS,5902597282,1000070102
02.09.2023,RESIDENT SERVICES HGF,HYDE HOUSING ASSOCIATION LTD,"1,082.12",HOUSING OPTIONS,EXTERNAL AGENCIES AND BODIES,5902597278,1000013980
02.09.2023,RESIDENT SERVICES HGF,BFS GROUP LTD T/A BIDFOOD,265.61,JOE RICHARDS HOSTEL,CATERING MATERIALS & SUPPLIES,5902597154,1000089816
02.09.2023,RESIDENT SERVICES HGF,FINEFAIR LTD,"30,330.67",PSL PLACEMENTS,EXTERNAL AGENCIES AND BODIES,5902597285,1000075570
02.09.2023,RESIDENT SERVICES HGF,FINEFAIR LTD,"211,225.84",PSL PLACEMENTS,EXTERNAL AGENCIES AND BODIES,5902597283,1000075570
02.09.2023,RESIDENT SERVICES HGF,FINEFAIR LTD,"4,504.77",RAPID REHOUSING,EXTERNAL AGENCIES AND BODIES,5902597287,1000075570
02.09.2023,RESIDENT SERVICES HGF,MAIER LANG LIMITED,"1,650.00",RAPID REHOUSING,EXTERNAL AGENCIES AND BODIES,5902597249,1000084930
02.09.2023,RESIDENT SERVICES HGF,MAIER LANG LIMITED,"1,705.00",RAPID REHOUSING,EXTERNAL AGENCIES AND BODIES,5902597251,1000084930
02.09.2023,SBS OPERATIONS,AKW MEDI-CARE LTD,538.66,ROTHERHITHE & BERMONDSEY DD,MATERIALS,5902596754,1000047103
02.09.2023,SBS OPERATIONS,AKW MEDI-CARE LTD,546.91,ROTHERHITHE & BERMONDSEY DD,MATERIALS,5902596754,1000047103
02.09.2023,SBS OPERATIONS,HOWDENS JOINERY CO,470.02,WALWORTH DD,MATERIALS,5902596731,1000027491
02.09.2023,SOUTHWARK BUILDING SERVICES,EDWARDES BROS (DULWICH) LTD,600,STORES/LOGISTICS,CREDITORS -GR/IR CLEARING ACCOUNT,5902597141,1004945
02.09.2023,SOUTHWARK BUILDING SERVICES,EDWARDES BROS (DULWICH) LTD,636.68,STORES/LOGISTICS,CREDITORS -GR/IR CLEARING ACCOUNT,5902597143,1004945
02.09.2023,SOUTHWARK BUILDING SERVICES,EDWARDES BROS (DULWICH) LTD,880,STORES/LOGISTICS,CREDITORS -GR/IR CLEARING ACCOUNT,5902597141,1004945
02.09.2023,SOUTHWARK BUILDING SERVICES,EDWARDES BROS (DULWICH) LTD,890,STORES/LOGISTICS,CREDITORS -GR/IR CLEARING ACCOUNT,5902597141,1004945
02.09.2023,SOUTHWARK BUILDING SERVICES,EDWARDES BROS (DULWICH) LTD,905,STORES/LOGISTICS,CREDITORS -GR/IR CLEARING ACCOUNT,5902597143,1004945
02.09.2023,SOUTHWARK BUILDING SERVICES,EDWARDES BROS (DULWICH) LTD,"2,715.00",STORES/LOGISTICS,CREDITORS -GR/IR CLEARING ACCOUNT,5902597142,1004945
03.09.2023,ADULT SOCIAL CARE,AGINCARE (SOUTHWARK) LIMITED,"87,195.57",PHY LTS 65+,RESIDENTIAL CARE,5902596441,1000089635
03.09.2023,ASSET MANAGEMENT,SGN CONNECTIONS LTD,"1,420.80",VOIDS (SOUTH),OTHER R&M,5902597047,1000055428
03.09.2023,CENTRAL FUNCTIONS,NEC SOFTWARE SOLUTIONS UK LTD,850,HOME OWNERSHIP,SOFTWARE,5902596805,1000087043
03.09.2023,CHILDREN AND FAMILIES,SOUTH LONDON & MAUDSLEY HOSPITAL,"2,498.32",ADOPTION SUPP FUND 2,EXTERNAL AGENCIES AND BODIES,5902596424,1000013096
03.09.2023,CHILDREN AND FAMILIES,SOUTH LONDON & MAUDSLEY HOSPITAL,"2,004.00",ADOPTION SUPP FUND 3,EXTERNAL AGENCIES AND BODIES,5902596422,1000013096
03.09.2023,COMMISSIONING & CENTRAL,BRESLIN CONSTRUCTION LTD,600,COMMISSIONING DIRECTORATE,SECURITY EQUIPMENT F&F,5902597238,1000078031
03.09.2023,CORPORATE FACILITIES MANAGEMENT,KENT COUNTY COUNCIL - LASER,"-8,695.29",34 PECKHAM ROAD,ELECTRICITY,2103742850,1000012926
03.09.2023,CORPORATE FACILITIES MANAGEMENT,KENT COUNTY COUNCIL - LASER,"-8,686.55",34 PECKHAM ROAD,ELECTRICITY,2103742844,1000012926
03.09.2023,CORPORATE FACILITIES MANAGEMENT,KENT COUNTY COUNCIL - LASER,"-8,582.06",34 PECKHAM ROAD,ELECTRICITY,2103742848,1000012926
03.09.2023,CORPORATE FACILITIES MANAGEMENT,KENT COUNTY COUNCIL - LASER,"-8,518.06",34 PECKHAM ROAD,ELECTRICITY,2103742851,1000012926
03.09.2023,CORPORATE FACILITIES MANAGEMENT,KENT COUNTY COUNCIL - LASER,"-8,504.19",34 PECKHAM ROAD,ELECTRICITY,2103742853,1000012926
03.09.2023,CORPORATE FACILITIES MANAGEMENT,KENT COUNTY COUNCIL - LASER,"-8,300.73",34 PECKHAM ROAD,ELECTRICITY,2103742846,1000012926
03.09.2023,CORPORATE FACILITIES MANAGEMENT,KENT COUNTY COUNCIL - LASER,"-7,899.00",34 PECKHAM ROAD,ELECTRICITY,2103742847,1000012926
03.09.2023,CORPORATE FACILITIES MANAGEMENT,KENT COUNTY COUNCIL - LASER,"-5,859.57",34 PECKHAM ROAD,ELECTRICITY,2103742854,1000012926
03.09.2023,CORPORATE FACILITIES MANAGEMENT,KENT COUNTY COUNCIL - LASER,"-5,591.12",34 PECKHAM ROAD,ELECTRICITY,2103742855,1000012926
03.09.2023,CORPORATE FACILITIES MANAGEMENT,KENT COUNTY COUNCIL - LASER,"-5,205.47",34 PECKHAM ROAD,ELECTRICITY,2103742852,1000012926
03.09.2023,CORPORATE FACILITIES MANAGEMENT,KENT COUNTY COUNCIL - LASER,"-2,994.44",34 PECKHAM ROAD,ELECTRICITY,2103742849,1000012926
03.09.2023,CORPORATE FACILITIES MANAGEMENT,KENT COUNTY COUNCIL - LASER,"15,348.46",34 PECKHAM ROAD,ELECTRICITY,2103742841,1000012926
03.09.2023,CORPORATE FACILITIES MANAGEMENT,KENT COUNTY COUNCIL - LASER,"15,400.77",34 PECKHAM ROAD,ELECTRICITY,2103742840,1000012926
03.09.2023,CORPORATE FACILITIES MANAGEMENT,KENT COUNTY COUNCIL - LASER,"18,856.95",34 PECKHAM ROAD,ELECTRICITY,2103742839,1000012926
03.09.2023,CORPORATE FACILITIES MANAGEMENT,KENT COUNTY COUNCIL - LASER,"23,480.80",34 PECKHAM ROAD,ELECTRICITY,2103742842,1000012926
03.09.2023,CORPORATE FACILITIES MANAGEMENT,KENT COUNTY COUNCIL - LASER,"24,351.56",34 PECKHAM ROAD,ELECTRICITY,2103742843,1000012926
03.09.2023,EDUCATION,ASSN FOR ADULT EDUCATION & TRAINING ORGANISATIONS,945,ALC MANAGEMENT AND SUPPORT,TRAINING,5902596798,11040792
03.09.2023,ENV & LEIS,F M CONWAY LTD,"27,963.13",CAPITAL PS (LEISURE),CONSTR'N SUB CONTRACT - NON CERTIFICATED,2103743371,4001384
03.09.2023,ENV & LEIS,F M CONWAY LTD,"44,240.11",CAPITAL PS (LEISURE),CONSTR'N SUB CONTRACT - NON CERTIFICATED,2103743372,4001384
03.09.2023,ENVIRONMENT DIRECTORATE,KENT COUNTY COUNCIL - LASER,"6,250.26",MULTI STOREY CAR PARK,ELECTRICITY,5902596563,1000012926
03.09.2023,ENVIRONMENT DIRECTORATE,KENT COUNTY COUNCIL - LASER,"6,266.79",MULTI STOREY CAR PARK,ELECTRICITY,5902596583,1000012926
03.09.2023,ENVIRONMENT DIRECTORATE,TRANSOFT SOLUTIONS (UK) LTD,"25,680.00",PROJECT SUPPORT,SOFTWARE,5902596395,1000025779
03.09.2023,HOUSING HRA,BAILY  GARNER LLP,"2,944.00",CAPITAL PS (HRA),CONSTRUCTION FEES  - EXTERNAL,5902597005,1000663
03.09.2023,HOUSING HRA,CALFORD SEADEN LLP,"1,100.00",CAPITAL PS (HRA),CONSTRUCTION FEES  - EXTERNAL,5902596446,1061592
03.09.2023,HOUSING HRA,PULSE ASSOCIATES LTD (T/A PULSE CONSULT),"10,250.00",CAPITAL PS (HRA),CONSTRUCTION FEES  - EXTERNAL,5902596509,1000087233
03.09.2023,HOUSING HRA,PULSE ASSOCIATES LTD (T/A PULSE CONSULT),"14,225.00",CAPITAL PS (HRA),CONSTRUCTION FEES  - EXTERNAL,5902596510,1000087233
03.09.2023,HOUSING HRA,SILVER DCC LTD,800,CAPITAL PS (HRA),CONSTRUCTION FEES  - EXTERNAL,5902597216,1000087546
03.09.2023,HOUSING HRA,BUILDING ASSOCIATES LTD,"56,824.85",CAPITAL PS (HRA),CONSTRUCTION MAIN CONTRACT,2103741123,3000002218
03.09.2023,LEADERS & CABINET OFFICE,ELEPHANT & CASTLE BUSINESS FORUM,"12,000.00",BUSINESS SUPPORT,GRANTS,5902597057,1000089857
03.09.2023,LEISURE DIRECTORATE,KENT COUNTY COUNCIL - LASER,"1,574.52",BURGESS AREA TEAM,ELECTRICITY,5902596373,1000012926
03.09.2023,LEISURE DIRECTORATE,QUADRON SERVICES LIMITED,307.52,BURGESS AREA TEAM,GROUNDS MAINTENANCE,5902596485,1000066528
03.09.2023,LEISURE DIRECTORATE,P D CONSTRUCTION LTD,476,BURGESS AREA TEAM,OTHER R&M,5902596885,1000000390
03.09.2023,LEISURE DIRECTORATE,KENT COUNTY COUNCIL - LASER,"7,044.18",BURGESS SPORTS CENTRE,ELECTRICITY,5902596228,1000012926
03.09.2023,LEISURE DIRECTORATE,KENT COUNTY COUNCIL - LASER,"16,385.31",CAMBERWELL LEISURE CENTRE,ELECTRICITY,5902596378,1000012926
03.09.2023,LEISURE DIRECTORATE,KENT COUNTY COUNCIL - LASER,"4,034.24",CREMATORIUM,ELECTRICITY,5902596192,1000012926
03.09.2023,LEISURE DIRECTORATE,KENT COUNTY COUNCIL - LASER,"9,161.07",CREMATORIUM,GAS,5902596208,1000012926
03.09.2023,LEISURE DIRECTORATE,KENT COUNTY COUNCIL - LASER,"10,080.06",CREMATORIUM,GAS,5902596211,1000012926
03.09.2023,LEISURE DIRECTORATE,KENT COUNTY COUNCIL - LASER,"2,009.50",GMH GERALDINE MARY HARMSWORTH,ELECTRICITY,5902596413,1000012926
03.09.2023,LEISURE DIRECTORATE,KENT COUNTY COUNCIL - LASER,"16,024.14",SEVEN ISLANDS LEISURE CENTRE,ELECTRICITY,5902595249,1000012926
03.09.2023,LEISURE DIRECTORATE,KENT COUNTY COUNCIL - LASER,"16,024.14",SEVEN ISLANDS LEISURE CENTRE,ELECTRICITY,5902596361,1000012926
03.09.2023,LEISURE DIRECTORATE,KENT COUNTY COUNCIL - LASER,"16,797.74",SEVEN ISLANDS LEISURE CENTRE,ELECTRICITY,5902595247,1000012926
03.09.2023,LEISURE DIRECTORATE,KENT COUNTY COUNCIL - LASER,"17,259.87",SEVEN ISLANDS LEISURE CENTRE,ELECTRICITY,5902596359,1000012926
03.09.2023,LEISURE DIRECTORATE,KENT COUNTY COUNCIL - LASER,"-2,009.50",SOUTHWARK ATHLETICS CENTRE,GAS,5902596460,1000012926
03.09.2023,PLANNING & GROWTH,ATITLAN CONSULTING LIMITED,800,MAJOR APPLICATIONS,PROFESSIONAL FEES,5902596705,1000089982
03.09.2023,PLANNING & GROWTH,CIPFA BUSINESS LTD,"1,125.00",PROPERTY SERVICES,SUBSCRIPTIONS,5902597173,1000024688
03.09.2023,PLANNING & GROWTH,BPS CHARTERED SURVEYORS,"7,584.00",STRATEGIC APPLICATIONS,PROFESSIONAL FEES,5902596702,1000077923
03.09.2023,PLANNING & GROWTH,BPS CHARTERED SURVEYORS,"9,667.20",STRATEGIC APPLICATIONS,PROFESSIONAL FEES,5902596701,1000077923
03.09.2023,REGEN & NEIGHBOURHOODS,SHERGROUP LTD,"3,360.00",CAPITAL PS (REGEN),CONSTRUCTION SITE COSTS,5902597207,1000087977
04.09.2023,ASSET MANAGEMENT,LONDON FIRE BRIGADE,364,LIFTS,LIFTS,5902596616,1000083629
04.09.2023,ASSET MANAGEMENT,LONDON FIRE BRIGADE,364,LIFTS,LIFTS,5902596617,1000083629
04.09.2023,ASSET MANAGEMENT,LONDON FIRE BRIGADE,364,LIFTS,LIFTS,5902596619,1000083629
04.09.2023,ASSET MANAGEMENT,LONDON FIRE BRIGADE,364,LIFTS,LIFTS,5902596622,1000083629
04.09.2023,CENTRAL FUNCTIONS,BIFFA WASTE SERVICES LTD,"1,391.39",COMMERCIAL PROPERTIES,REFUSE COLLECTION CONTRACT,5902597175,1147051
04.09.2023,CENTRAL FUNCTIONS,BIFFA WASTE SERVICES LTD,"1,918.15",COMMERCIAL PROPERTIES,REFUSE COLLECTION CONTRACT,5902597174,1147051
04.09.2023,CHILDREN AND FAMILIES,PLACEMENT SUPPORT LTD,500,ADOPTION SUPP FUND 3,EXTERNAL AGENCIES AND BODIES,5902596547,1000085153
04.09.2023,CHILDREN AND FAMILIES,PLACEMENT SUPPORT LTD,500,ADOPTION SUPP FUND 3,EXTERNAL AGENCIES AND BODIES,5902596551,1000085153
04.09.2023,CHILDREN AND FAMILIES,REDACTED PERSONAL DATA,300,ADOPTION SUPP FUND 3,EXTERNAL AGENCIES AND BODIES,REDACTED,REDACTED
04.09.2023,COMMUNITIES,ST MARTIN OF TOURS HOUSING ASSOCIATION LTD ,"5,147.51",NO RECOURSE TO PUBLIC FUNDS,ACCOMMODATION CHARGES,5902597206,1000083581
04.09.2023,EDUCATION,TOGETHER FOR CHILDREN,"13,545.00",SCH TRANS � TRAVEL,M&M ALLOWANCE CO-OPS,5902597052,1000089719
04.09.2023,ENV & LEIS,WATERMAN INFRASTRUCTURE & ENVIRONMENT LTD,"1,132.21",CAPITAL PS (LEISURE),CONSTR'N SUB CONTRACT - NON CERTIFICATED,5902597064,1000060529
04.09.2023,ENV & LEIS,PLAYFIX LIMITED,"5,154.50",CAPITAL PS (LEISURE),CONSTRUCTION FEES  - EXTERNAL,5902596698,1000090132
04.09.2023,ENVIRONMENT DIRECTORATE,AUTO SISTANCE LTD,406,HIGHWAYS DEVELOPMENT,OTHER CONTRACTORS,5902596883,1000070536
04.09.2023,ENVIRONMENT DIRECTORATE,AUTO SISTANCE LTD,580,HIGHWAYS DEVELOPMENT,OTHER CONTRACTORS,5902596879,1000070536
04.09.2023,ENVIRONMENT DIRECTORATE,AUTO SISTANCE LTD,"1,160.00",HIGHWAYS DEVELOPMENT,OTHER CONTRACTORS,5902596878,1000070536
04.09.2023,ENVIRONMENT DIRECTORATE,AUTO SISTANCE LTD,"1,276.00",HIGHWAYS DEVELOPMENT,OTHER CONTRACTORS,5902596882,1000070536
04.09.2023,ENVIRONMENT DIRECTORATE,WATERMAN INFRASTRUCTURE & ENVIRONMENT LTD,"1,888.34",STRUCTURES MINOR ROADS,HIGHWAYS TERM CONTRACT,5902597065,1000060529
04.09.2023,ENVIRONMENT DIRECTORATE,WATERMAN INFRASTRUCTURE & ENVIRONMENT LTD,357.12,STRUCTURES RECOVERABLE WORKS,HIGHWAYS TERM CONTRACT,5902597074,1000060529
04.09.2023,ENVIRONMENT DIRECTORATE,WATERMAN INFRASTRUCTURE & ENVIRONMENT LTD,357.12,STRUCTURES RECOVERABLE WORKS,HIGHWAYS TERM CONTRACT,5902597075,1000060529
04.09.2023,ENVIRONMENT DIRECTORATE,WATERMAN INFRASTRUCTURE & ENVIRONMENT LTD,"2,228.75",STRUCTURES RECOVERABLE WORKS,HIGHWAYS TERM CONTRACT,5902597078,1000060529
04.09.2023,HOUSING HRA,CALFORD SEADEN LLP,"1,677.00",CAPITAL PS (HRA),CONSTRUCTION FEES  - EXTERNAL,5902596799,1061592
04.09.2023,HOUSING HRA,CALFORD SEADEN LLP,"2,525.00",CAPITAL PS (HRA),CONSTRUCTION FEES - QUANTITY SURVEYOR,5902596792,1061592
04.09.2023,HOUSING HRA,ANAYSSE-JACOBS SOLICITORS,"35,000.00",CAPITAL PS (HRA),CAPITAL GRANTS,2103743829,1000086247
04.09.2023,HUMAN RESOURCES,KORN FERRY HAY GROUP LTD,"13,213.00",HR PAYROLL COSTS,PAYMENTS FOR PERSONNEL MANAGEMENT SERVS,5902596710,1000079084
04.09.2023,LAW AND GOVERNANCE,DX NETWORK SERVICES LTD,"2,307.00",LEGAL SVCES MANAGEMENT,SUBSCRIPTIONS,5902597176,1000002937
04.09.2023,LEISURE DIRECTORATE,SOFTCAT PLC,"1,152.63",LEISURE INSOURCING MOBILISATION COST,CONSULTANTS SERVICES,5902596816,1000088809
04.09.2023,LEISURE DIRECTORATE,SOFTCAT PLC,"3,147.37",LEISURE INSOURCING MOBILISATION COST,CONSULTANTS SERVICES,5902596848,1000088809
04.09.2023,LEISURE DIRECTORATE,PRODUCTIVITY @ WORK LIMITED,"1,750.01",LEISURE INSOURCING MOBILISATION COST,CONSULTANTS SERVICES,5902596451,1000089724
04.09.2023,REGEN & NEIGHBOURHOODS,MACE LTD,"10,748.08",CAPITAL PS (REGEN),CONSTRUCTION FEES,5902596707,1000067959
04.09.2023,REGEN & NEIGHBOURHOODS,MOBIUS BUILDING CONSULTANCY LTD,"2,750.00",CAPITAL PS (REGEN),CONSTRUCTION FEES  - EXTERNAL,5902596804,1000089433
04.09.2023,REGEN & NEIGHBOURHOODS,MOBIUS BUILDING CONSULTANCY LTD,"3,250.00",CAPITAL PS (REGEN),CONSTRUCTION FEES  - EXTERNAL,5902596802,1000089433
04.09.2023,REGEN & NEIGHBOURHOODS,CALFORD SEADEN LLP,"2,453.00",CAPITAL PS (REGEN),CONSTRUCTION FEES - EMPLOYERS AGENT,5902597004,1061592
05.09.2023,ADULT SOCIAL CARE,TIME & TALENTS ASSOCIATION,"10,000.00",DIR OF ASC,EXTERNAL AGENCIES AND BODIES,5902597358,1757632
05.09.2023,ADULT SOCIAL CARE,OUT AND ABOUT COMMUNITY SERVICES,360,LD LTS 18-64,DAYCARE,2103746162,1000078603
05.09.2023,ADULT SOCIAL CARE,OUT AND ABOUT COMMUNITY SERVICES,360,LD LTS 18-64,DAYCARE,2103746163,1000078603
05.09.2023,ADULT SOCIAL CARE,BUDDI LTD,360,LD LTS 18-64,EQUIPMENT PURCHASE & REPAIR,2103746110,1000067243
05.09.2023,ADULT SOCIAL CARE,SUPREME CARE SERVICES LTD,251.49,LD LTS 18-64,HOMECARE - C&V,2103745542,1000059416
05.09.2023,ADULT SOCIAL CARE,SUPREME CARE SERVICES LTD,368.6,LD LTS 18-64,HOMECARE - C&V,2103745658,1000059416
05.09.2023,ADULT SOCIAL CARE,SUPREME CARE SERVICES LTD,597.08,LD LTS 18-64,HOMECARE - C&V,2103745781,1000059416
05.09.2023,ADULT SOCIAL CARE,CAPITAL HOMECARE (UK) LTD,344.64,LD LTS 18-64,HOMECARE - SPOT,2103746111,1000042589
05.09.2023,ADULT SOCIAL CARE,CHOICE SUPPORT,257.2,LD LTS 18-64,SUPPORTED LIVING,2103746166,1104183
05.09.2023,ADULT SOCIAL CARE,CHOICE SUPPORT,293.92,LD LTS 18-64,SUPPORTED LIVING,2103746165,1104183
05.09.2023,ADULT SOCIAL CARE,OUT AND ABOUT COMMUNITY SERVICES,432,LD LTS 18-64,SUPPORTED LIVING,2103746161,1000078603
05.09.2023,ADULT SOCIAL CARE,OUT AND ABOUT COMMUNITY SERVICES,504,LD LTS 18-64,SUPPORTED LIVING,2103746164,1000078603
05.09.2023,ADULT SOCIAL CARE,REDACTED PERSONAL DATA,"3,682.28",LD LTS 18-64,SUPPORTED LIVING,REDACTED,REDACTED
05.09.2023,ADULT SOCIAL CARE,REDACTED PERSONAL DATA,298.72,LD LTS 18-64,SUPPORTED LIVING,REDACTED,REDACTED
05.09.2023,ADULT SOCIAL CARE,REDACTED PERSONAL DATA,527.8,LD LTS 18-64,SUPPORTED LIVING,REDACTED,REDACTED
05.09.2023,ADULT SOCIAL CARE,REDACTED PERSONAL DATA,746.8,LD LTS 18-64,SUPPORTED LIVING,REDACTED,REDACTED
05.09.2023,ADULT SOCIAL CARE,SUPREME CARE SERVICES LTD,771.55,LD LTS 65+,HOMECARE - C&V,2103745777,1000059416
05.09.2023,ADULT SOCIAL CARE,SUPREME CARE SERVICES LTD,954.8,LD LTS 65+,HOMECARE - C&V,2103745625,1000059416
05.09.2023,ADULT SOCIAL CARE,CHOICE SUPPORT,"1,028.72",LD LTS 65+,SUPPORTED LIVING,2103746158,1104183
05.09.2023,ADULT SOCIAL CARE,SUPREME CARE SERVICES LTD,461.13,MEM LTS 18-64,HOMECARE - C&V,2103745548,1000059416
05.09.2023,ADULT SOCIAL CARE,SUPREME CARE SERVICES LTD,"1,710.69",MEM LTS 18-64,HOMECARE - C&V,2103745832,1000059416
05.09.2023,ADULT SOCIAL CARE,MIHOMECARE LTD,"2,161.09",MEM LTS 65+,HOMECARE - C&V,2103746097,1000042594
05.09.2023,ADULT SOCIAL CARE,MIHOMECARE LTD,"3,815.22",MEM LTS 65+,HOMECARE - C&V,2103746096,1000042594
05.09.2023,ADULT SOCIAL CARE,SUPREME CARE SERVICES LTD,285.08,MEM LTS 65+,HOMECARE - C&V,2103745884,1000059416
05.09.2023,ADULT SOCIAL CARE,SUPREME CARE SERVICES LTD,347.02,MEM LTS 65+,HOMECARE - C&V,2103745652,1000059416
05.09.2023,ADULT SOCIAL CARE,SUPREME CARE SERVICES LTD,457.12,MEM LTS 65+,HOMECARE - C&V,2103745586,1000059416
05.09.2023,ADULT SOCIAL CARE,SUPREME CARE SERVICES LTD,594.76,MEM LTS 65+,HOMECARE - C&V,2103745693,1000059416
05.09.2023,ADULT SOCIAL CARE,SUPREME CARE SERVICES LTD,663.57,MEM LTS 65+,HOMECARE - C&V,2103745936,1000059416
05.09.2023,ADULT SOCIAL CARE,SUPREME CARE SERVICES LTD,805.74,MEM LTS 65+,HOMECARE - C&V,2103745751,1000059416
05.09.2023,ADULT SOCIAL CARE,SUPREME CARE SERVICES LTD,870.19,MEM LTS 65+,HOMECARE - C&V,2103745931,1000059416
05.09.2023,ADULT SOCIAL CARE,SUPREME CARE SERVICES LTD,983.13,MEM LTS 65+,HOMECARE - C&V,2103745585,1000059416
05.09.2023,ADULT SOCIAL CARE,SUPREME CARE SERVICES LTD,267.2,MH LTS 18-64,HOMECARE - C&V,2103745632,1000059416
05.09.2023,ADULT SOCIAL CARE,SUPREME CARE SERVICES LTD,645.03,MH LTS 18-64,HOMECARE - C&V,2103745864,1000059416
05.09.2023,ADULT SOCIAL CARE,SUPREME CARE SERVICES LTD,786.4,MH LTS 18-64,HOMECARE - C&V,2103745684,1000059416
05.09.2023,ADULT SOCIAL CARE,SUPREME CARE SERVICES LTD,909.28,MH LTS 18-64,HOMECARE - C&V,2103745801,1000059416
05.09.2023,ADULT SOCIAL CARE,REDACTED PERSONAL DATA,373.4,MH LTS 18-64,HOMECARE - C&V,REDACTED,REDACTED
05.09.2023,ADULT SOCIAL CARE,REDACTED PERSONAL DATA,395.8,MH LTS 18-64,HOMECARE - SPOT,REDACTED,REDACTED
05.09.2023,ADULT SOCIAL CARE,REDACTED PERSONAL DATA,261.38,MH LTS 18-64,SUPPORTED LIVING,REDACTED,REDACTED
05.09.2023,ADULT SOCIAL CARE,REDACTED PERSONAL DATA,261.38,MH LTS 18-64,SUPPORTED LIVING,REDACTED,REDACTED
05.09.2023,ADULT SOCIAL CARE,REDACTED PERSONAL DATA,298.72,MH LTS 18-64,SUPPORTED LIVING,REDACTED,REDACTED
05.09.2023,ADULT SOCIAL CARE,REDACTED PERSONAL DATA,298.72,MH LTS 18-64,SUPPORTED LIVING,REDACTED,REDACTED
05.09.2023,ADULT SOCIAL CARE,REDACTED PERSONAL DATA,298.72,MH LTS 18-64,SUPPORTED LIVING,REDACTED,REDACTED
05.09.2023,ADULT SOCIAL CARE,REDACTED PERSONAL DATA,298.72,MH LTS 18-64,SUPPORTED LIVING,REDACTED,REDACTED
05.09.2023,ADULT SOCIAL CARE,REDACTED PERSONAL DATA,298.72,MH LTS 18-64,SUPPORTED LIVING,REDACTED,REDACTED
05.09.2023,ADULT SOCIAL CARE,REDACTED PERSONAL DATA,298.72,MH LTS 18-64,SUPPORTED LIVING,REDACTED,REDACTED
05.09.2023,ADULT SOCIAL CARE,REDACTED PERSONAL DATA,298.72,MH LTS 18-64,SUPPORTED LIVING,REDACTED,REDACTED
05.09.2023,ADULT SOCIAL CARE,REDACTED PERSONAL DATA,298.72,MH LTS 18-64,SUPPORTED LIVING,REDACTED,REDACTED
05.09.2023,ADULT SOCIAL CARE,REDACTED PERSONAL DATA,298.72,MH LTS 18-64,SUPPORTED LIVING,REDACTED,REDACTED
05.09.2023,ADULT SOCIAL CARE,REDACTED PERSONAL DATA,298.72,MH LTS 18-64,SUPPORTED LIVING,REDACTED,REDACTED
05.09.2023,ADULT SOCIAL CARE,REDACTED PERSONAL DATA,298.72,MH LTS 18-64,SUPPORTED LIVING,REDACTED,REDACTED
05.09.2023,ADULT SOCIAL CARE,REDACTED PERSONAL DATA,336.06,MH LTS 18-64,SUPPORTED LIVING,REDACTED,REDACTED
05.09.2023,ADULT SOCIAL CARE,REDACTED PERSONAL DATA,336.06,MH LTS 18-64,SUPPORTED LIVING,REDACTED,REDACTED
05.09.2023,ADULT SOCIAL CARE,REDACTED PERSONAL DATA,336.06,MH LTS 18-64,SUPPORTED LIVING,REDACTED,REDACTED
05.09.2023,ADULT SOCIAL CARE,REDACTED PERSONAL DATA,336.06,MH LTS 18-64,SUPPORTED LIVING,REDACTED,REDACTED
05.09.2023,ADULT SOCIAL CARE,REDACTED PERSONAL DATA,336.06,MH LTS 18-64,SUPPORTED LIVING,REDACTED,REDACTED
05.09.2023,ADULT SOCIAL CARE,REDACTED PERSONAL DATA,373.4,MH LTS 18-64,SUPPORTED LIVING,REDACTED,REDACTED
05.09.2023,ADULT SOCIAL CARE,REDACTED PERSONAL DATA,373.4,MH LTS 18-64,SUPPORTED LIVING,REDACTED,REDACTED
05.09.2023,ADULT SOCIAL CARE,REDACTED PERSONAL DATA,373.4,MH LTS 18-64,SUPPORTED LIVING,REDACTED,REDACTED
05.09.2023,ADULT SOCIAL CARE,REDACTED PERSONAL DATA,373.4,MH LTS 18-64,SUPPORTED LIVING,REDACTED,REDACTED
05.09.2023,ADULT SOCIAL CARE,REDACTED PERSONAL DATA,410.72,MH LTS 18-64,SUPPORTED LIVING,REDACTED,REDACTED
05.09.2023,ADULT SOCIAL CARE,REDACTED PERSONAL DATA,448.08,MH LTS 18-64,SUPPORTED LIVING,REDACTED,REDACTED
05.09.2023,ADULT SOCIAL CARE,REDACTED PERSONAL DATA,448.08,MH LTS 18-64,SUPPORTED LIVING,REDACTED,REDACTED
05.09.2023,ADULT SOCIAL CARE,REDACTED PERSONAL DATA,485.42,MH LTS 18-64,SUPPORTED LIVING,REDACTED,REDACTED
05.09.2023,ADULT SOCIAL CARE,REDACTED PERSONAL DATA,485.42,MH LTS 18-64,SUPPORTED LIVING,REDACTED,REDACTED
05.09.2023,ADULT SOCIAL CARE,REDACTED PERSONAL DATA,522.76,MH LTS 18-64,SUPPORTED LIVING,REDACTED,REDACTED
05.09.2023,ADULT SOCIAL CARE,REDACTED PERSONAL DATA,522.76,MH LTS 18-64,SUPPORTED LIVING,REDACTED,REDACTED
05.09.2023,ADULT SOCIAL CARE,REDACTED PERSONAL DATA,522.76,MH LTS 18-64,SUPPORTED LIVING,REDACTED,REDACTED
05.09.2023,ADULT SOCIAL CARE,REDACTED PERSONAL DATA,560.1,MH LTS 18-64,SUPPORTED LIVING,REDACTED,REDACTED
05.09.2023,ADULT SOCIAL CARE,REDACTED PERSONAL DATA,597.44,MH LTS 18-64,SUPPORTED LIVING,REDACTED,REDACTED
05.09.2023,ADULT SOCIAL CARE,REDACTED PERSONAL DATA,597.44,MH LTS 18-64,SUPPORTED LIVING,REDACTED,REDACTED
05.09.2023,ADULT SOCIAL CARE,REDACTED PERSONAL DATA,597.44,MH LTS 18-64,SUPPORTED LIVING,REDACTED,REDACTED
05.09.2023,ADULT SOCIAL CARE,REDACTED PERSONAL DATA,597.44,MH LTS 18-64,SUPPORTED LIVING,REDACTED,REDACTED
05.09.2023,ADULT SOCIAL CARE,REDACTED PERSONAL DATA,672.12,MH LTS 18-64,SUPPORTED LIVING,REDACTED,REDACTED
05.09.2023,ADULT SOCIAL CARE,REDACTED PERSONAL DATA,709.46,MH LTS 18-64,SUPPORTED LIVING,REDACTED,REDACTED
05.09.2023,ADULT SOCIAL CARE,REDACTED PERSONAL DATA,709.46,MH LTS 18-64,SUPPORTED LIVING,REDACTED,REDACTED
05.09.2023,ADULT SOCIAL CARE,REDACTED PERSONAL DATA,821.48,MH LTS 18-64,SUPPORTED LIVING,REDACTED,REDACTED
05.09.2023,ADULT SOCIAL CARE,REDACTED PERSONAL DATA,941.9,MH LTS 18-64,SUPPORTED LIVING,REDACTED,REDACTED
05.09.2023,ADULT SOCIAL CARE,REDACTED PERSONAL DATA,"1,045.52",MH LTS 18-64,SUPPORTED LIVING,REDACTED,REDACTED
05.09.2023,ADULT SOCIAL CARE,REDACTED PERSONAL DATA,"1,045.52",MH LTS 18-64,SUPPORTED LIVING,REDACTED,REDACTED
05.09.2023,ADULT SOCIAL CARE,MIHOMECARE LTD,605.22,MH LTS 65+,HOMECARE - C&V,2103746089,1000042594
05.09.2023,ADULT SOCIAL CARE,SUPREME CARE SERVICES LTD,275.24,MH LTS 65+,HOMECARE - C&V,2103745773,1000059416
05.09.2023,ADULT SOCIAL CARE,SUPREME CARE SERVICES LTD,334.28,MH LTS 65+,HOMECARE - C&V,2103745901,1000059416
05.09.2023,ADULT SOCIAL CARE,SUPREME CARE SERVICES LTD,422.76,MH LTS 65+,HOMECARE - C&V,2103745903,1000059416
05.09.2023,ADULT SOCIAL CARE,SUPREME CARE SERVICES LTD,481.68,MH LTS 65+,HOMECARE - C&V,2103745846,1000059416
05.09.2023,ADULT SOCIAL CARE,SUPREME CARE SERVICES LTD,"1,013.89",MH LTS 65+,HOMECARE - C&V,2103745634,1000059416
05.09.2023,ADULT SOCIAL CARE,SUPREME CARE SERVICES LTD,"1,100.96",MH LTS 65+,HOMECARE - C&V,2103745588,1000059416
05.09.2023,ADULT SOCIAL CARE,SUPREME CARE SERVICES LTD,"1,433.15",MH LTS 65+,HOMECARE - C&V,2103745648,1000059416
05.09.2023,ADULT SOCIAL CARE,REDACTED PERSONAL DATA,"1,456.26",MH LTS 65+,HOMECARE - SPOT,REDACTED,REDACTED
05.09.2023,ADULT SOCIAL CARE,REDACTED PERSONAL DATA,298.72,MH LTS 65+,SUPPORTED LIVING,REDACTED,REDACTED
05.09.2023,ADULT SOCIAL CARE,REDACTED PERSONAL DATA,429.41,MH LTS 65+,SUPPORTED LIVING,REDACTED,REDACTED
05.09.2023,ADULT SOCIAL CARE,REDACTED PERSONAL DATA,448.08,MH LTS 65+,SUPPORTED LIVING,REDACTED,REDACTED
05.09.2023,ADULT SOCIAL CARE,REDACTED PERSONAL DATA,"1,418.92",MH LTS 65+,SUPPORTED LIVING,REDACTED,REDACTED
05.09.2023,ADULT SOCIAL CARE,MIHOMECARE LTD,413.56,PHY LTS 18-64,HOMECARE - C&V,2103746064,1000042594
05.09.2023,ADULT SOCIAL CARE,MIHOMECARE LTD,757.99,PHY LTS 18-64,HOMECARE - C&V,2103746086,1000042594
05.09.2023,ADULT SOCIAL CARE,MIHOMECARE LTD,959.81,PHY LTS 18-64,HOMECARE - C&V,2103746071,1000042594
05.09.2023,ADULT SOCIAL CARE,MIHOMECARE LTD,"1,284.65",PHY LTS 18-64,HOMECARE - C&V,2103746092,1000042594
05.09.2023,ADULT SOCIAL CARE,MIHOMECARE LTD,"1,579.95",PHY LTS 18-64,HOMECARE - C&V,2103746052,1000042594
05.09.2023,ADULT SOCIAL CARE,MIHOMECARE LTD,"2,466.07",PHY LTS 18-64,HOMECARE - C&V,2103746066,1000042594
05.09.2023,ADULT SOCIAL CARE,SUPREME CARE SERVICES LTD,275.3,PHY LTS 18-64,HOMECARE - C&V,2103745560,1000059416
05.09.2023,ADULT SOCIAL CARE,SUPREME CARE SERVICES LTD,290.27,PHY LTS 18-64,HOMECARE - C&V,2103745564,1000059416
05.09.2023,ADULT SOCIAL CARE,SUPREME CARE SERVICES LTD,294.11,PHY LTS 18-64,HOMECARE - C&V,2103745686,1000059416
05.09.2023,ADULT SOCIAL CARE,SUPREME CARE SERVICES LTD,299.91,PHY LTS 18-64,HOMECARE - C&V,2103745605,1000059416
05.09.2023,ADULT SOCIAL CARE,SUPREME CARE SERVICES LTD,305.36,PHY LTS 18-64,HOMECARE - C&V,2103745617,1000059416
05.09.2023,ADULT SOCIAL CARE,SUPREME CARE SERVICES LTD,309.73,PHY LTS 18-64,HOMECARE - C&V,2103745771,1000059416
05.09.2023,ADULT SOCIAL CARE,SUPREME CARE SERVICES LTD,319.48,PHY LTS 18-64,HOMECARE - C&V,2103745819,1000059416
05.09.2023,ADULT SOCIAL CARE,SUPREME CARE SERVICES LTD,324.47,PHY LTS 18-64,HOMECARE - C&V,2103745615,1000059416
05.09.2023,ADULT SOCIAL CARE,SUPREME CARE SERVICES LTD,334.24,PHY LTS 18-64,HOMECARE - C&V,2103745814,1000059416
05.09.2023,ADULT SOCIAL CARE,SUPREME CARE SERVICES LTD,354,PHY LTS 18-64,HOMECARE - C&V,2103745800,1000059416
05.09.2023,ADULT SOCIAL CARE,SUPREME CARE SERVICES LTD,367.73,PHY LTS 18-64,HOMECARE - C&V,2103745611,1000059416
05.09.2023,ADULT SOCIAL CARE,SUPREME CARE SERVICES LTD,368.7,PHY LTS 18-64,HOMECARE - C&V,2103745679,1000059416
05.09.2023,ADULT SOCIAL CARE,SUPREME CARE SERVICES LTD,377.92,PHY LTS 18-64,HOMECARE - C&V,2103745783,1000059416
05.09.2023,ADULT SOCIAL CARE,SUPREME CARE SERVICES LTD,383.4,PHY LTS 18-64,HOMECARE - C&V,2103745636,1000059416
05.09.2023,ADULT SOCIAL CARE,SUPREME CARE SERVICES LTD,417.87,PHY LTS 18-64,HOMECARE - C&V,2103745740,1000059416
05.09.2023,ADULT SOCIAL CARE,SUPREME CARE SERVICES LTD,419.31,PHY LTS 18-64,HOMECARE - C&V,2103745830,1000059416
05.09.2023,ADULT SOCIAL CARE,SUPREME CARE SERVICES LTD,422.82,PHY LTS 18-64,HOMECARE - C&V,2103745545,1000059416
05.09.2023,ADULT SOCIAL CARE,SUPREME CARE SERVICES LTD,464.08,PHY LTS 18-64,HOMECARE - C&V,2103745929,1000059416
05.09.2023,ADULT SOCIAL CARE,SUPREME CARE SERVICES LTD,496.51,PHY LTS 18-64,HOMECARE - C&V,2103745682,1000059416
05.09.2023,ADULT SOCIAL CARE,SUPREME CARE SERVICES LTD,496.87,PHY LTS 18-64,HOMECARE - C&V,2103745626,1000059416
05.09.2023,ADULT SOCIAL CARE,SUPREME CARE SERVICES LTD,511.27,PHY LTS 18-64,HOMECARE - C&V,2103745750,1000059416
05.09.2023,ADULT SOCIAL CARE,SUPREME CARE SERVICES LTD,521.1,PHY LTS 18-64,HOMECARE - C&V,2103745913,1000059416
05.09.2023,ADULT SOCIAL CARE,SUPREME CARE SERVICES LTD,528.55,PHY LTS 18-64,HOMECARE - C&V,2103745628,1000059416
05.09.2023,ADULT SOCIAL CARE,SUPREME CARE SERVICES LTD,545.69,PHY LTS 18-64,HOMECARE - C&V,2103745818,1000059416
05.09.2023,ADULT SOCIAL CARE,SUPREME CARE SERVICES LTD,560.34,PHY LTS 18-64,HOMECARE - C&V,2103745795,1000059416
05.09.2023,ADULT SOCIAL CARE,SUPREME CARE SERVICES LTD,565.24,PHY LTS 18-64,HOMECARE - C&V,2103745607,1000059416
05.09.2023,ADULT SOCIAL CARE,SUPREME CARE SERVICES LTD,580.03,PHY LTS 18-64,HOMECARE - C&V,2103745733,1000059416
05.09.2023,ADULT SOCIAL CARE,SUPREME CARE SERVICES LTD,599.67,PHY LTS 18-64,HOMECARE - C&V,2103745621,1000059416
05.09.2023,ADULT SOCIAL CARE,SUPREME CARE SERVICES LTD,599.67,PHY LTS 18-64,HOMECARE - C&V,2103745905,1000059416
05.09.2023,ADULT SOCIAL CARE,SUPREME CARE SERVICES LTD,614.72,PHY LTS 18-64,HOMECARE - C&V,2103745606,1000059416
05.09.2023,ADULT SOCIAL CARE,SUPREME CARE SERVICES LTD,631.04,PHY LTS 18-64,HOMECARE - C&V,2103745917,1000059416
05.09.2023,ADULT SOCIAL CARE,SUPREME CARE SERVICES LTD,643.88,PHY LTS 18-64,HOMECARE - C&V,2103745721,1000059416
05.09.2023,ADULT SOCIAL CARE,SUPREME CARE SERVICES LTD,682.23,PHY LTS 18-64,HOMECARE - C&V,2103745908,1000059416
05.09.2023,ADULT SOCIAL CARE,SUPREME CARE SERVICES LTD,686.5,PHY LTS 18-64,HOMECARE - C&V,2103745582,1000059416
05.09.2023,ADULT SOCIAL CARE,SUPREME CARE SERVICES LTD,710.32,PHY LTS 18-64,HOMECARE - C&V,2103745715,1000059416
05.09.2023,ADULT SOCIAL CARE,SUPREME CARE SERVICES LTD,712.82,PHY LTS 18-64,HOMECARE - C&V,2103745592,1000059416
05.09.2023,ADULT SOCIAL CARE,SUPREME CARE SERVICES LTD,724.58,PHY LTS 18-64,HOMECARE - C&V,2103745664,1000059416
05.09.2023,ADULT SOCIAL CARE,SUPREME CARE SERVICES LTD,742.36,PHY LTS 18-64,HOMECARE - C&V,2103745654,1000059416
05.09.2023,ADULT SOCIAL CARE,SUPREME CARE SERVICES LTD,759.98,PHY LTS 18-64,HOMECARE - C&V,2103745789,1000059416
05.09.2023,ADULT SOCIAL CARE,SUPREME CARE SERVICES LTD,781.62,PHY LTS 18-64,HOMECARE - C&V,2103745546,1000059416
05.09.2023,ADULT SOCIAL CARE,SUPREME CARE SERVICES LTD,781.62,PHY LTS 18-64,HOMECARE - C&V,2103745930,1000059416
05.09.2023,ADULT SOCIAL CARE,SUPREME CARE SERVICES LTD,819.36,PHY LTS 18-64,HOMECARE - C&V,2103745643,1000059416
05.09.2023,ADULT SOCIAL CARE,SUPREME CARE SERVICES LTD,820.81,PHY LTS 18-64,HOMECARE - C&V,2103745551,1000059416
05.09.2023,ADULT SOCIAL CARE,SUPREME CARE SERVICES LTD,840.48,PHY LTS 18-64,HOMECARE - C&V,2103745718,1000059416
05.09.2023,ADULT SOCIAL CARE,SUPREME CARE SERVICES LTD,849.73,PHY LTS 18-64,HOMECARE - C&V,2103745566,1000059416
05.09.2023,ADULT SOCIAL CARE,SUPREME CARE SERVICES LTD,861.68,PHY LTS 18-64,HOMECARE - C&V,2103745877,1000059416
05.09.2023,ADULT SOCIAL CARE,SUPREME CARE SERVICES LTD,865.16,PHY LTS 18-64,HOMECARE - C&V,2103745649,1000059416
05.09.2023,ADULT SOCIAL CARE,SUPREME CARE SERVICES LTD,869.99,PHY LTS 18-64,HOMECARE - C&V,2103745790,1000059416
05.09.2023,ADULT SOCIAL CARE,SUPREME CARE SERVICES LTD,871.93,PHY LTS 18-64,HOMECARE - C&V,2103745680,1000059416
05.09.2023,ADULT SOCIAL CARE,SUPREME CARE SERVICES LTD,880.15,PHY LTS 18-64,HOMECARE - C&V,2103745872,1000059416
05.09.2023,ADULT SOCIAL CARE,SUPREME CARE SERVICES LTD,896.16,PHY LTS 18-64,HOMECARE - C&V,2103745731,1000059416
05.09.2023,ADULT SOCIAL CARE,SUPREME CARE SERVICES LTD,910.3,PHY LTS 18-64,HOMECARE - C&V,2103745633,1000059416
05.09.2023,ADULT SOCIAL CARE,SUPREME CARE SERVICES LTD,920.46,PHY LTS 18-64,HOMECARE - C&V,2103745663,1000059416
05.09.2023,ADULT SOCIAL CARE,SUPREME CARE SERVICES LTD,929.52,PHY LTS 18-64,HOMECARE - C&V,2103745826,1000059416
05.09.2023,ADULT SOCIAL CARE,SUPREME CARE SERVICES LTD,936.53,PHY LTS 18-64,HOMECARE - C&V,2103745890,1000059416
05.09.2023,ADULT SOCIAL CARE,SUPREME CARE SERVICES LTD,955.12,PHY LTS 18-64,HOMECARE - C&V,2103745844,1000059416
05.09.2023,ADULT SOCIAL CARE,SUPREME CARE SERVICES LTD,992.92,PHY LTS 18-64,HOMECARE - C&V,2103745587,1000059416
05.09.2023,ADULT SOCIAL CARE,SUPREME CARE SERVICES LTD,"1,012.65",PHY LTS 18-64,HOMECARE - C&V,2103745852,1000059416
05.09.2023,ADULT SOCIAL CARE,SUPREME CARE SERVICES LTD,"1,017.57",PHY LTS 18-64,HOMECARE - C&V,2103745869,1000059416
05.09.2023,ADULT SOCIAL CARE,SUPREME CARE SERVICES LTD,"1,027.51",PHY LTS 18-64,HOMECARE - C&V,2103745911,1000059416
05.09.2023,ADULT SOCIAL CARE,SUPREME CARE SERVICES LTD,"1,043.62",PHY LTS 18-64,HOMECARE - C&V,2103745563,1000059416
05.09.2023,ADULT SOCIAL CARE,SUPREME CARE SERVICES LTD,"1,088.08",PHY LTS 18-64,HOMECARE - C&V,2103745600,1000059416
05.09.2023,ADULT SOCIAL CARE,SUPREME CARE SERVICES LTD,"1,095.74",PHY LTS 18-64,HOMECARE - C&V,2103745779,1000059416
05.09.2023,ADULT SOCIAL CARE,SUPREME CARE SERVICES LTD,"1,096.18",PHY LTS 18-64,HOMECARE - C&V,2103745921,1000059416
05.09.2023,ADULT SOCIAL CARE,SUPREME CARE SERVICES LTD,"1,100.97",PHY LTS 18-64,HOMECARE - C&V,2103745729,1000059416
05.09.2023,ADULT SOCIAL CARE,SUPREME CARE SERVICES LTD,"1,125.71",PHY LTS 18-64,HOMECARE - C&V,2103745713,1000059416
05.09.2023,ADULT SOCIAL CARE,SUPREME CARE SERVICES LTD,"1,145.23",PHY LTS 18-64,HOMECARE - C&V,2103745622,1000059416
05.09.2023,ADULT SOCIAL CARE,SUPREME CARE SERVICES LTD,"1,152.25",PHY LTS 18-64,HOMECARE - C&V,2103745726,1000059416
05.09.2023,ADULT SOCIAL CARE,SUPREME CARE SERVICES LTD,"1,177.19",PHY LTS 18-64,HOMECARE - C&V,2103745627,1000059416
05.09.2023,ADULT SOCIAL CARE,SUPREME CARE SERVICES LTD,"1,209.22",PHY LTS 18-64,HOMECARE - C&V,2103745631,1000059416
05.09.2023,ADULT SOCIAL CARE,SUPREME CARE SERVICES LTD,"1,236.24",PHY LTS 18-64,HOMECARE - C&V,2103745775,1000059416
05.09.2023,ADULT SOCIAL CARE,SUPREME CARE SERVICES LTD,"1,257.58",PHY LTS 18-64,HOMECARE - C&V,2103745823,1000059416
05.09.2023,ADULT SOCIAL CARE,SUPREME CARE SERVICES LTD,"1,289.96",PHY LTS 18-64,HOMECARE - C&V,2103745637,1000059416
05.09.2023,ADULT SOCIAL CARE,SUPREME CARE SERVICES LTD,"1,319.34",PHY LTS 18-64,HOMECARE - C&V,2103745749,1000059416
05.09.2023,ADULT SOCIAL CARE,SUPREME CARE SERVICES LTD,"1,327.17",PHY LTS 18-64,HOMECARE - C&V,2103745796,1000059416
05.09.2023,ADULT SOCIAL CARE,SUPREME CARE SERVICES LTD,"1,364.57",PHY LTS 18-64,HOMECARE - C&V,2103745793,1000059416
05.09.2023,ADULT SOCIAL CARE,SUPREME CARE SERVICES LTD,"1,376.35",PHY LTS 18-64,HOMECARE - C&V,2103745857,1000059416
05.09.2023,ADULT SOCIAL CARE,SUPREME CARE SERVICES LTD,"1,430.29",PHY LTS 18-64,HOMECARE - C&V,2103745827,1000059416
05.09.2023,ADULT SOCIAL CARE,SUPREME CARE SERVICES LTD,"1,445.16",PHY LTS 18-64,HOMECARE - C&V,2103745851,1000059416
05.09.2023,ADULT SOCIAL CARE,SUPREME CARE SERVICES LTD,"1,494.20",PHY LTS 18-64,HOMECARE - C&V,2103745833,1000059416
05.09.2023,ADULT SOCIAL CARE,SUPREME CARE SERVICES LTD,"1,901.26",PHY LTS 18-64,HOMECARE - C&V,2103745836,1000059416
05.09.2023,ADULT SOCIAL CARE,SUPREME CARE SERVICES LTD,"2,230.20",PHY LTS 18-64,HOMECARE - C&V,2103745919,1000059416
05.09.2023,ADULT SOCIAL CARE,SUPREME CARE SERVICES LTD,"2,344.55",PHY LTS 18-64,HOMECARE - C&V,2103745629,1000059416
05.09.2023,ADULT SOCIAL CARE,SUPREME CARE SERVICES LTD,"2,688.88",PHY LTS 18-64,HOMECARE - C&V,2103745886,1000059416
05.09.2023,ADULT SOCIAL CARE,SUPREME CARE SERVICES LTD,"3,097.26",PHY LTS 18-64,HOMECARE - C&V,2103745703,1000059416
05.09.2023,ADULT SOCIAL CARE,SUPREME CARE SERVICES LTD,"3,185.36",PHY LTS 18-64,HOMECARE - C&V,2103745710,1000059416
05.09.2023,ADULT SOCIAL CARE,SUPREME CARE SERVICES LTD,"3,229.54",PHY LTS 18-64,HOMECARE - C&V,2103745565,1000059416
05.09.2023,ADULT SOCIAL CARE,SUPREME CARE SERVICES LTD,"3,396.35",PHY LTS 18-64,HOMECARE - C&V,2103745594,1000059416
05.09.2023,ADULT SOCIAL CARE,SUPREME CARE SERVICES LTD,"3,759.62",PHY LTS 18-64,HOMECARE - C&V,2103745907,1000059416
05.09.2023,ADULT SOCIAL CARE,SUPREME CARE SERVICES LTD,"4,001.42",PHY LTS 18-64,HOMECARE - C&V,2103745885,1000059416
05.09.2023,ADULT SOCIAL CARE,SUPREME CARE SERVICES LTD,"5,434.53",PHY LTS 18-64,HOMECARE - C&V,2103745738,1000059416
05.09.2023,ADULT SOCIAL CARE,KAPITAL CARE (UK) LIMITED,"5,559.85",PHY LTS 18-64,HOMECARE - SPOT,2103745944,1000086957
05.09.2023,ADULT SOCIAL CARE,KAPITAL CARE (UK) LIMITED,"5,759.00",PHY LTS 18-64,HOMECARE - SPOT,2103745943,1000086957
05.09.2023,ADULT SOCIAL CARE,KAPITAL CARE (UK) LIMITED,"5,858.71",PHY LTS 18-64,HOMECARE - SPOT,2103745942,1000086957
05.09.2023,ADULT SOCIAL CARE,REALITY FAMILY SUPPORT SERVICES LTD,"1,309.00",PHY LTS 18-64,OTHER PAYMENTS FOR CLIENTS,5902597306,1000087878
05.09.2023,ADULT SOCIAL CARE,LONDON CARE LTD,"2,802.15",PHY LTS 65+,HOMECARE - C&V,2103746107,1000003398
05.09.2023,ADULT SOCIAL CARE,MIHOMECARE LTD,344.54,PHY LTS 65+,HOMECARE - C&V,2103746050,1000042594
05.09.2023,ADULT SOCIAL CARE,MIHOMECARE LTD,349.49,PHY LTS 65+,HOMECARE - C&V,2103746059,1000042594
05.09.2023,ADULT SOCIAL CARE,MIHOMECARE LTD,354.52,PHY LTS 65+,HOMECARE - C&V,2103746087,1000042594
05.09.2023,ADULT SOCIAL CARE,MIHOMECARE LTD,369.25,PHY LTS 65+,HOMECARE - C&V,2103746078,1000042594
05.09.2023,ADULT SOCIAL CARE,MIHOMECARE LTD,379.09,PHY LTS 65+,HOMECARE - C&V,2103746091,1000042594
05.09.2023,ADULT SOCIAL CARE,MIHOMECARE LTD,403.64,PHY LTS 65+,HOMECARE - C&V,2103746084,1000042594
05.09.2023,ADULT SOCIAL CARE,MIHOMECARE LTD,403.7,PHY LTS 65+,HOMECARE - C&V,2103746054,1000042594
05.09.2023,ADULT SOCIAL CARE,MIHOMECARE LTD,403.72,PHY LTS 65+,HOMECARE - C&V,2103746051,1000042594
05.09.2023,ADULT SOCIAL CARE,MIHOMECARE LTD,472.32,PHY LTS 65+,HOMECARE - C&V,2103746056,1000042594
05.09.2023,ADULT SOCIAL CARE,MIHOMECARE LTD,472.5,PHY LTS 65+,HOMECARE - C&V,2103746100,1000042594
05.09.2023,ADULT SOCIAL CARE,MIHOMECARE LTD,487.27,PHY LTS 65+,HOMECARE - C&V,2103746104,1000042594
05.09.2023,ADULT SOCIAL CARE,MIHOMECARE LTD,505.11,PHY LTS 65+,HOMECARE - C&V,2103746055,1000042594
05.09.2023,ADULT SOCIAL CARE,MIHOMECARE LTD,546.13,PHY LTS 65+,HOMECARE - C&V,2103746085,1000042594
05.09.2023,ADULT SOCIAL CARE,MIHOMECARE LTD,580.78,PHY LTS 65+,HOMECARE - C&V,2103746062,1000042594
05.09.2023,ADULT SOCIAL CARE,MIHOMECARE LTD,580.82,PHY LTS 65+,HOMECARE - C&V,2103746060,1000042594
05.09.2023,ADULT SOCIAL CARE,MIHOMECARE LTD,610.36,PHY LTS 65+,HOMECARE - C&V,2103746049,1000042594
05.09.2023,ADULT SOCIAL CARE,MIHOMECARE LTD,641.24,PHY LTS 65+,HOMECARE - C&V,2103746099,1000042594
05.09.2023,ADULT SOCIAL CARE,MIHOMECARE LTD,659.54,PHY LTS 65+,HOMECARE - C&V,2103746068,1000042594
05.09.2023,ADULT SOCIAL CARE,MIHOMECARE LTD,684.29,PHY LTS 65+,HOMECARE - C&V,2103746058,1000042594
05.09.2023,ADULT SOCIAL CARE,MIHOMECARE LTD,689.08,PHY LTS 65+,HOMECARE - C&V,2103746077,1000042594
05.09.2023,ADULT SOCIAL CARE,MIHOMECARE LTD,748.16,PHY LTS 65+,HOMECARE - C&V,2103746072,1000042594
05.09.2023,ADULT SOCIAL CARE,MIHOMECARE LTD,766.17,PHY LTS 65+,HOMECARE - C&V,2103746101,1000042594
05.09.2023,ADULT SOCIAL CARE,MIHOMECARE LTD,787.23,PHY LTS 65+,HOMECARE - C&V,2103746102,1000042594
05.09.2023,ADULT SOCIAL CARE,MIHOMECARE LTD,807.44,PHY LTS 65+,HOMECARE - C&V,2103746063,1000042594
05.09.2023,ADULT SOCIAL CARE,MIHOMECARE LTD,934.86,PHY LTS 65+,HOMECARE - C&V,2103746103,1000042594
05.09.2023,ADULT SOCIAL CARE,MIHOMECARE LTD,954.74,PHY LTS 65+,HOMECARE - C&V,2103746065,1000042594
05.09.2023,ADULT SOCIAL CARE,MIHOMECARE LTD,984.3,PHY LTS 65+,HOMECARE - C&V,2103746069,1000042594
05.09.2023,ADULT SOCIAL CARE,MIHOMECARE LTD,"1,166.46",PHY LTS 65+,HOMECARE - C&V,2103746090,1000042594
05.09.2023,ADULT SOCIAL CARE,MIHOMECARE LTD,"1,190.94",PHY LTS 65+,HOMECARE - C&V,2103746080,1000042594
05.09.2023,ADULT SOCIAL CARE,MIHOMECARE LTD,"1,240.12",PHY LTS 65+,HOMECARE - C&V,2103746083,1000042594
05.09.2023,ADULT SOCIAL CARE,MIHOMECARE LTD,"1,294.26",PHY LTS 65+,HOMECARE - C&V,2103746057,1000042594
05.09.2023,ADULT SOCIAL CARE,MIHOMECARE LTD,"1,343.55",PHY LTS 65+,HOMECARE - C&V,2103746081,1000042594
05.09.2023,ADULT SOCIAL CARE,MIHOMECARE LTD,"1,456.88",PHY LTS 65+,HOMECARE - C&V,2103746067,1000042594
05.09.2023,ADULT SOCIAL CARE,MIHOMECARE LTD,"1,530.69",PHY LTS 65+,HOMECARE - C&V,2103746075,1000042594
05.09.2023,ADULT SOCIAL CARE,MIHOMECARE LTD,"1,580.33",PHY LTS 65+,HOMECARE - C&V,2103746105,1000042594
05.09.2023,ADULT SOCIAL CARE,MIHOMECARE LTD,"1,835.63",PHY LTS 65+,HOMECARE - C&V,2103746095,1000042594
05.09.2023,ADULT SOCIAL CARE,MIHOMECARE LTD,"2,322.40",PHY LTS 65+,HOMECARE - C&V,2103746061,1000042594
05.09.2023,ADULT SOCIAL CARE,MIHOMECARE LTD,"2,490.60",PHY LTS 65+,HOMECARE - C&V,2103746073,1000042594
05.09.2023,ADULT SOCIAL CARE,MIHOMECARE LTD,"2,839.50",PHY LTS 65+,HOMECARE - C&V,2103746070,1000042594
05.09.2023,ADULT SOCIAL CARE,MIHOMECARE LTD,"5,061.09",PHY LTS 65+,HOMECARE - C&V,2103746094,1000042594
05.09.2023,ADULT SOCIAL CARE,SUPREME CARE SERVICES LTD,250.72,PHY LTS 65+,HOMECARE - C&V,2103745620,1000059416
05.09.2023,ADULT SOCIAL CARE,SUPREME CARE SERVICES LTD,255.64,PHY LTS 65+,HOMECARE - C&V,2103745934,1000059416
05.09.2023,ADULT SOCIAL CARE,SUPREME CARE SERVICES LTD,275.24,PHY LTS 65+,HOMECARE - C&V,2103745593,1000059416
05.09.2023,ADULT SOCIAL CARE,SUPREME CARE SERVICES LTD,275.24,PHY LTS 65+,HOMECARE - C&V,2103745807,1000059416
05.09.2023,ADULT SOCIAL CARE,SUPREME CARE SERVICES LTD,275.26,PHY LTS 65+,HOMECARE - C&V,2103745685,1000059416
05.09.2023,ADULT SOCIAL CARE,SUPREME CARE SERVICES LTD,275.29,PHY LTS 65+,HOMECARE - C&V,2103745677,1000059416
05.09.2023,ADULT SOCIAL CARE,SUPREME CARE SERVICES LTD,279.87,PHY LTS 65+,HOMECARE - C&V,2103745735,1000059416
05.09.2023,ADULT SOCIAL CARE,SUPREME CARE SERVICES LTD,285.12,PHY LTS 65+,HOMECARE - C&V,2103745767,1000059416
05.09.2023,ADULT SOCIAL CARE,SUPREME CARE SERVICES LTD,299.88,PHY LTS 65+,HOMECARE - C&V,2103745816,1000059416
05.09.2023,ADULT SOCIAL CARE,SUPREME CARE SERVICES LTD,299.9,PHY LTS 65+,HOMECARE - C&V,2103745575,1000059416
05.09.2023,ADULT SOCIAL CARE,SUPREME CARE SERVICES LTD,314.56,PHY LTS 65+,HOMECARE - C&V,2103745863,1000059416
05.09.2023,ADULT SOCIAL CARE,SUPREME CARE SERVICES LTD,339.19,PHY LTS 65+,HOMECARE - C&V,2103745933,1000059416
05.09.2023,ADULT SOCIAL CARE,SUPREME CARE SERVICES LTD,339.25,PHY LTS 65+,HOMECARE - C&V,2103745705,1000059416
05.09.2023,ADULT SOCIAL CARE,SUPREME CARE SERVICES LTD,344.07,PHY LTS 65+,HOMECARE - C&V,2103745820,1000059416
05.09.2023,ADULT SOCIAL CARE,SUPREME CARE SERVICES LTD,358.04,PHY LTS 65+,HOMECARE - C&V,2103745670,1000059416
05.09.2023,ADULT SOCIAL CARE,SUPREME CARE SERVICES LTD,362.74,PHY LTS 65+,HOMECARE - C&V,2103745730,1000059416
05.09.2023,ADULT SOCIAL CARE,SUPREME CARE SERVICES LTD,383.39,PHY LTS 65+,HOMECARE - C&V,2103745651,1000059416
05.09.2023,ADULT SOCIAL CARE,SUPREME CARE SERVICES LTD,383.68,PHY LTS 65+,HOMECARE - C&V,2103745704,1000059416
05.09.2023,ADULT SOCIAL CARE,SUPREME CARE SERVICES LTD,406.02,PHY LTS 65+,HOMECARE - C&V,2103745904,1000059416
05.09.2023,ADULT SOCIAL CARE,SUPREME CARE SERVICES LTD,408.03,PHY LTS 65+,HOMECARE - C&V,2103745724,1000059416
05.09.2023,ADULT SOCIAL CARE,SUPREME CARE SERVICES LTD,412.87,PHY LTS 65+,HOMECARE - C&V,2103745747,1000059416
05.09.2023,ADULT SOCIAL CARE,SUPREME CARE SERVICES LTD,413,PHY LTS 65+,HOMECARE - C&V,2103745561,1000059416
05.09.2023,ADULT SOCIAL CARE,SUPREME CARE SERVICES LTD,413,PHY LTS 65+,HOMECARE - C&V,2103745562,1000059416
05.09.2023,ADULT SOCIAL CARE,SUPREME CARE SERVICES LTD,413,PHY LTS 65+,HOMECARE - C&V,2103745572,1000059416
05.09.2023,ADULT SOCIAL CARE,SUPREME CARE SERVICES LTD,413,PHY LTS 65+,HOMECARE - C&V,2103745691,1000059416
05.09.2023,ADULT SOCIAL CARE,SUPREME CARE SERVICES LTD,413,PHY LTS 65+,HOMECARE - C&V,2103745719,1000059416
05.09.2023,ADULT SOCIAL CARE,SUPREME CARE SERVICES LTD,413,PHY LTS 65+,HOMECARE - C&V,2103745812,1000059416
05.09.2023,ADULT SOCIAL CARE,SUPREME CARE SERVICES LTD,422.82,PHY LTS 65+,HOMECARE - C&V,2103745579,1000059416
05.09.2023,ADULT SOCIAL CARE,SUPREME CARE SERVICES LTD,422.82,PHY LTS 65+,HOMECARE - C&V,2103745624,1000059416
05.09.2023,ADULT SOCIAL CARE,SUPREME CARE SERVICES LTD,427.63,PHY LTS 65+,HOMECARE - C&V,2103745797,1000059416
05.09.2023,ADULT SOCIAL CARE,SUPREME CARE SERVICES LTD,427.73,PHY LTS 65+,HOMECARE - C&V,2103745935,1000059416
05.09.2023,ADULT SOCIAL CARE,SUPREME CARE SERVICES LTD,432.55,PHY LTS 65+,HOMECARE - C&V,2103745860,1000059416
05.09.2023,ADULT SOCIAL CARE,SUPREME CARE SERVICES LTD,439.07,PHY LTS 65+,HOMECARE - C&V,2103745647,1000059416
05.09.2023,ADULT SOCIAL CARE,SUPREME CARE SERVICES LTD,442.44,PHY LTS 65+,HOMECARE - C&V,2103745776,1000059416
05.09.2023,ADULT SOCIAL CARE,SUPREME CARE SERVICES LTD,447.28,PHY LTS 65+,HOMECARE - C&V,2103745784,1000059416
05.09.2023,ADULT SOCIAL CARE,SUPREME CARE SERVICES LTD,447.37,PHY LTS 65+,HOMECARE - C&V,2103745806,1000059416
05.09.2023,ADULT SOCIAL CARE,SUPREME CARE SERVICES LTD,457.16,PHY LTS 65+,HOMECARE - C&V,2103745822,1000059416
05.09.2023,ADULT SOCIAL CARE,SUPREME CARE SERVICES LTD,471.78,PHY LTS 65+,HOMECARE - C&V,2103745697,1000059416
05.09.2023,ADULT SOCIAL CARE,SUPREME CARE SERVICES LTD,481.71,PHY LTS 65+,HOMECARE - C&V,2103745616,1000059416
05.09.2023,ADULT SOCIAL CARE,SUPREME CARE SERVICES LTD,491.64,PHY LTS 65+,HOMECARE - C&V,2103745925,1000059416
05.09.2023,ADULT SOCIAL CARE,SUPREME CARE SERVICES LTD,493.59,PHY LTS 65+,HOMECARE - C&V,2103745788,1000059416
05.09.2023,ADULT SOCIAL CARE,SUPREME CARE SERVICES LTD,496.53,PHY LTS 65+,HOMECARE - C&V,2103745866,1000059416
05.09.2023,ADULT SOCIAL CARE,SUPREME CARE SERVICES LTD,496.54,PHY LTS 65+,HOMECARE - C&V,2103745889,1000059416
05.09.2023,ADULT SOCIAL CARE,SUPREME CARE SERVICES LTD,519.49,PHY LTS 65+,HOMECARE - C&V,2103745667,1000059416
05.09.2023,ADULT SOCIAL CARE,SUPREME CARE SERVICES LTD,531,PHY LTS 65+,HOMECARE - C&V,2103745669,1000059416
05.09.2023,ADULT SOCIAL CARE,SUPREME CARE SERVICES LTD,535.87,PHY LTS 65+,HOMECARE - C&V,2103745678,1000059416
05.09.2023,ADULT SOCIAL CARE,SUPREME CARE SERVICES LTD,540.68,PHY LTS 65+,HOMECARE - C&V,2103745764,1000059416
05.09.2023,ADULT SOCIAL CARE,SUPREME CARE SERVICES LTD,545.59,PHY LTS 65+,HOMECARE - C&V,2103745597,1000059416
05.09.2023,ADULT SOCIAL CARE,SUPREME CARE SERVICES LTD,555.4,PHY LTS 65+,HOMECARE - C&V,2103745746,1000059416
05.09.2023,ADULT SOCIAL CARE,SUPREME CARE SERVICES LTD,570.16,PHY LTS 65+,HOMECARE - C&V,2103745569,1000059416
05.09.2023,ADULT SOCIAL CARE,SUPREME CARE SERVICES LTD,570.28,PHY LTS 65+,HOMECARE - C&V,2103745720,1000059416
05.09.2023,ADULT SOCIAL CARE,SUPREME CARE SERVICES LTD,575.92,PHY LTS 65+,HOMECARE - C&V,2103745694,1000059416
05.09.2023,ADULT SOCIAL CARE,SUPREME CARE SERVICES LTD,580.46,PHY LTS 65+,HOMECARE - C&V,2103745753,1000059416
05.09.2023,ADULT SOCIAL CARE,SUPREME CARE SERVICES LTD,586.91,PHY LTS 65+,HOMECARE - C&V,2103745671,1000059416
05.09.2023,ADULT SOCIAL CARE,SUPREME CARE SERVICES LTD,589.92,PHY LTS 65+,HOMECARE - C&V,2103745927,1000059416
05.09.2023,ADULT SOCIAL CARE,SUPREME CARE SERVICES LTD,592.88,PHY LTS 65+,HOMECARE - C&V,2103745825,1000059416
05.09.2023,ADULT SOCIAL CARE,SUPREME CARE SERVICES LTD,593.82,PHY LTS 65+,HOMECARE - C&V,2103745794,1000059416
05.09.2023,ADULT SOCIAL CARE,SUPREME CARE SERVICES LTD,594.91,PHY LTS 65+,HOMECARE - C&V,2103745571,1000059416
05.09.2023,ADULT SOCIAL CARE,SUPREME CARE SERVICES LTD,596.76,PHY LTS 65+,HOMECARE - C&V,2103745831,1000059416
05.09.2023,ADULT SOCIAL CARE,SUPREME CARE SERVICES LTD,605.48,PHY LTS 65+,HOMECARE - C&V,2103745842,1000059416
05.09.2023,ADULT SOCIAL CARE,SUPREME CARE SERVICES LTD,609.48,PHY LTS 65+,HOMECARE - C&V,2103745791,1000059416
05.09.2023,ADULT SOCIAL CARE,SUPREME CARE SERVICES LTD,609.56,PHY LTS 65+,HOMECARE - C&V,2103745591,1000059416
05.09.2023,ADULT SOCIAL CARE,SUPREME CARE SERVICES LTD,617.45,PHY LTS 65+,HOMECARE - C&V,2103745696,1000059416
05.09.2023,ADULT SOCIAL CARE,SUPREME CARE SERVICES LTD,618.07,PHY LTS 65+,HOMECARE - C&V,2103745692,1000059416
05.09.2023,ADULT SOCIAL CARE,SUPREME CARE SERVICES LTD,648.12,PHY LTS 65+,HOMECARE - C&V,2103745845,1000059416
05.09.2023,ADULT SOCIAL CARE,SUPREME CARE SERVICES LTD,655.28,PHY LTS 65+,HOMECARE - C&V,2103745584,1000059416
05.09.2023,ADULT SOCIAL CARE,SUPREME CARE SERVICES LTD,673.63,PHY LTS 65+,HOMECARE - C&V,2103745906,1000059416
05.09.2023,ADULT SOCIAL CARE,SUPREME CARE SERVICES LTD,677.93,PHY LTS 65+,HOMECARE - C&V,2103745839,1000059416
05.09.2023,ADULT SOCIAL CARE,SUPREME CARE SERVICES LTD,680.87,PHY LTS 65+,HOMECARE - C&V,2103745871,1000059416
05.09.2023,ADULT SOCIAL CARE,SUPREME CARE SERVICES LTD,681.26,PHY LTS 65+,HOMECARE - C&V,2103745642,1000059416
05.09.2023,ADULT SOCIAL CARE,SUPREME CARE SERVICES LTD,683.51,PHY LTS 65+,HOMECARE - C&V,2103745717,1000059416
05.09.2023,ADULT SOCIAL CARE,SUPREME CARE SERVICES LTD,686.52,PHY LTS 65+,HOMECARE - C&V,2103745550,1000059416
05.09.2023,ADULT SOCIAL CARE,SUPREME CARE SERVICES LTD,688.24,PHY LTS 65+,HOMECARE - C&V,2103745676,1000059416
05.09.2023,ADULT SOCIAL CARE,SUPREME CARE SERVICES LTD,692.13,PHY LTS 65+,HOMECARE - C&V,2103745887,1000059416
05.09.2023,ADULT SOCIAL CARE,SUPREME CARE SERVICES LTD,706.88,PHY LTS 65+,HOMECARE - C&V,2103745722,1000059416
05.09.2023,ADULT SOCIAL CARE,SUPREME CARE SERVICES LTD,710.75,PHY LTS 65+,HOMECARE - C&V,2103745896,1000059416
05.09.2023,ADULT SOCIAL CARE,SUPREME CARE SERVICES LTD,712.68,PHY LTS 65+,HOMECARE - C&V,2103745880,1000059416
05.09.2023,ADULT SOCIAL CARE,SUPREME CARE SERVICES LTD,714.11,PHY LTS 65+,HOMECARE - C&V,2103745928,1000059416
05.09.2023,ADULT SOCIAL CARE,SUPREME CARE SERVICES LTD,714.34,PHY LTS 65+,HOMECARE - C&V,2103745552,1000059416
05.09.2023,ADULT SOCIAL CARE,SUPREME CARE SERVICES LTD,714.38,PHY LTS 65+,HOMECARE - C&V,2103745937,1000059416
05.09.2023,ADULT SOCIAL CARE,SUPREME CARE SERVICES LTD,727.55,PHY LTS 65+,HOMECARE - C&V,2103745702,1000059416
05.09.2023,ADULT SOCIAL CARE,SUPREME CARE SERVICES LTD,762.74,PHY LTS 65+,HOMECARE - C&V,2103745902,1000059416
05.09.2023,ADULT SOCIAL CARE,SUPREME CARE SERVICES LTD,766.88,PHY LTS 65+,HOMECARE - C&V,2103745854,1000059416
05.09.2023,ADULT SOCIAL CARE,SUPREME CARE SERVICES LTD,774.09,PHY LTS 65+,HOMECARE - C&V,2103745752,1000059416
05.09.2023,ADULT SOCIAL CARE,SUPREME CARE SERVICES LTD,776.73,PHY LTS 65+,HOMECARE - C&V,2103745657,1000059416
05.09.2023,ADULT SOCIAL CARE,SUPREME CARE SERVICES LTD,791.42,PHY LTS 65+,HOMECARE - C&V,2103745924,1000059416
05.09.2023,ADULT SOCIAL CARE,SUPREME CARE SERVICES LTD,794.28,PHY LTS 65+,HOMECARE - C&V,2103745817,1000059416
05.09.2023,ADULT SOCIAL CARE,SUPREME CARE SERVICES LTD,798.02,PHY LTS 65+,HOMECARE - C&V,2103745742,1000059416
05.09.2023,ADULT SOCIAL CARE,SUPREME CARE SERVICES LTD,804.58,PHY LTS 65+,HOMECARE - C&V,2103745821,1000059416
05.09.2023,ADULT SOCIAL CARE,SUPREME CARE SERVICES LTD,805.78,PHY LTS 65+,HOMECARE - C&V,2103745698,1000059416
05.09.2023,ADULT SOCIAL CARE,SUPREME CARE SERVICES LTD,806.19,PHY LTS 65+,HOMECARE - C&V,2103745766,1000059416
05.09.2023,ADULT SOCIAL CARE,SUPREME CARE SERVICES LTD,816.05,PHY LTS 65+,HOMECARE - C&V,2103745858,1000059416
05.09.2023,ADULT SOCIAL CARE,SUPREME CARE SERVICES LTD,816.07,PHY LTS 65+,HOMECARE - C&V,2103745856,1000059416
05.09.2023,ADULT SOCIAL CARE,SUPREME CARE SERVICES LTD,823.83,PHY LTS 65+,HOMECARE - C&V,2103745645,1000059416
05.09.2023,ADULT SOCIAL CARE,SUPREME CARE SERVICES LTD,825.75,PHY LTS 65+,HOMECARE - C&V,2103745668,1000059416
05.09.2023,ADULT SOCIAL CARE,SUPREME CARE SERVICES LTD,825.84,PHY LTS 65+,HOMECARE - C&V,2103745554,1000059416
05.09.2023,ADULT SOCIAL CARE,SUPREME CARE SERVICES LTD,845.4,PHY LTS 65+,HOMECARE - C&V,2103745737,1000059416
05.09.2023,ADULT SOCIAL CARE,SUPREME CARE SERVICES LTD,845.58,PHY LTS 65+,HOMECARE - C&V,2103745603,1000059416
05.09.2023,ADULT SOCIAL CARE,SUPREME CARE SERVICES LTD,847.92,PHY LTS 65+,HOMECARE - C&V,2103745774,1000059416
05.09.2023,ADULT SOCIAL CARE,SUPREME CARE SERVICES LTD,850.43,PHY LTS 65+,HOMECARE - C&V,2103745894,1000059416
05.09.2023,ADULT SOCIAL CARE,SUPREME CARE SERVICES LTD,860.29,PHY LTS 65+,HOMECARE - C&V,2103745868,1000059416
05.09.2023,ADULT SOCIAL CARE,SUPREME CARE SERVICES LTD,860.38,PHY LTS 65+,HOMECARE - C&V,2103745815,1000059416
05.09.2023,ADULT SOCIAL CARE,SUPREME CARE SERVICES LTD,861.19,PHY LTS 65+,HOMECARE - C&V,2103745770,1000059416
05.09.2023,ADULT SOCIAL CARE,SUPREME CARE SERVICES LTD,865.62,PHY LTS 65+,HOMECARE - C&V,2103745699,1000059416
05.09.2023,ADULT SOCIAL CARE,SUPREME CARE SERVICES LTD,870,PHY LTS 65+,HOMECARE - C&V,2103745570,1000059416
05.09.2023,ADULT SOCIAL CARE,SUPREME CARE SERVICES LTD,879.91,PHY LTS 65+,HOMECARE - C&V,2103745549,1000059416
05.09.2023,ADULT SOCIAL CARE,SUPREME CARE SERVICES LTD,884.85,PHY LTS 65+,HOMECARE - C&V,2103745574,1000059416
05.09.2023,ADULT SOCIAL CARE,SUPREME CARE SERVICES LTD,902.72,PHY LTS 65+,HOMECARE - C&V,2103745681,1000059416
05.09.2023,ADULT SOCIAL CARE,SUPREME CARE SERVICES LTD,903,PHY LTS 65+,HOMECARE - C&V,2103745910,1000059416
05.09.2023,ADULT SOCIAL CARE,SUPREME CARE SERVICES LTD,907.03,PHY LTS 65+,HOMECARE - C&V,2103745580,1000059416
05.09.2023,ADULT SOCIAL CARE,SUPREME CARE SERVICES LTD,912.48,PHY LTS 65+,HOMECARE - C&V,2103745695,1000059416
05.09.2023,ADULT SOCIAL CARE,SUPREME CARE SERVICES LTD,919.37,PHY LTS 65+,HOMECARE - C&V,2103745900,1000059416
05.09.2023,ADULT SOCIAL CARE,SUPREME CARE SERVICES LTD,920.84,PHY LTS 65+,HOMECARE - C&V,2103745596,1000059416
05.09.2023,ADULT SOCIAL CARE,SUPREME CARE SERVICES LTD,937.24,PHY LTS 65+,HOMECARE - C&V,2103745853,1000059416
05.09.2023,ADULT SOCIAL CARE,SUPREME CARE SERVICES LTD,938.1,PHY LTS 65+,HOMECARE - C&V,2103745711,1000059416
05.09.2023,ADULT SOCIAL CARE,SUPREME CARE SERVICES LTD,943.92,PHY LTS 65+,HOMECARE - C&V,2103745895,1000059416
05.09.2023,ADULT SOCIAL CARE,SUPREME CARE SERVICES LTD,968.36,PHY LTS 65+,HOMECARE - C&V,2103745602,1000059416
05.09.2023,ADULT SOCIAL CARE,SUPREME CARE SERVICES LTD,969.99,PHY LTS 65+,HOMECARE - C&V,2103745712,1000059416
05.09.2023,ADULT SOCIAL CARE,SUPREME CARE SERVICES LTD,972.89,PHY LTS 65+,HOMECARE - C&V,2103745915,1000059416
05.09.2023,ADULT SOCIAL CARE,SUPREME CARE SERVICES LTD,973.2,PHY LTS 65+,HOMECARE - C&V,2103745639,1000059416
05.09.2023,ADULT SOCIAL CARE,SUPREME CARE SERVICES LTD,977.33,PHY LTS 65+,HOMECARE - C&V,2103745881,1000059416
05.09.2023,ADULT SOCIAL CARE,SUPREME CARE SERVICES LTD,978.15,PHY LTS 65+,HOMECARE - C&V,2103745756,1000059416
05.09.2023,ADULT SOCIAL CARE,SUPREME CARE SERVICES LTD,979.3,PHY LTS 65+,HOMECARE - C&V,2103745923,1000059416
05.09.2023,ADULT SOCIAL CARE,SUPREME CARE SERVICES LTD,983.16,PHY LTS 65+,HOMECARE - C&V,2103745888,1000059416
05.09.2023,ADULT SOCIAL CARE,SUPREME CARE SERVICES LTD,992.98,PHY LTS 65+,HOMECARE - C&V,2103745736,1000059416
05.09.2023,ADULT SOCIAL CARE,SUPREME CARE SERVICES LTD,"1,002.77",PHY LTS 65+,HOMECARE - C&V,2103745598,1000059416
05.09.2023,ADULT SOCIAL CARE,SUPREME CARE SERVICES LTD,"1,002.80",PHY LTS 65+,HOMECARE - C&V,2103745653,1000059416
05.09.2023,ADULT SOCIAL CARE,SUPREME CARE SERVICES LTD,"1,006.80",PHY LTS 65+,HOMECARE - C&V,2103745609,1000059416
05.09.2023,ADULT SOCIAL CARE,SUPREME CARE SERVICES LTD,"1,014.81",PHY LTS 65+,HOMECARE - C&V,2103745848,1000059416
05.09.2023,ADULT SOCIAL CARE,SUPREME CARE SERVICES LTD,"1,015.61",PHY LTS 65+,HOMECARE - C&V,2103745939,1000059416
05.09.2023,ADULT SOCIAL CARE,SUPREME CARE SERVICES LTD,"1,037.16",PHY LTS 65+,HOMECARE - C&V,2103745581,1000059416
05.09.2023,ADULT SOCIAL CARE,SUPREME CARE SERVICES LTD,"1,038.20",PHY LTS 65+,HOMECARE - C&V,2103745739,1000059416
05.09.2023,ADULT SOCIAL CARE,SUPREME CARE SERVICES LTD,"1,042.13",PHY LTS 65+,HOMECARE - C&V,2103745690,1000059416
05.09.2023,ADULT SOCIAL CARE,SUPREME CARE SERVICES LTD,"1,052.80",PHY LTS 65+,HOMECARE - C&V,2103745728,1000059416
05.09.2023,ADULT SOCIAL CARE,SUPREME CARE SERVICES LTD,"1,055.21",PHY LTS 65+,HOMECARE - C&V,2103745874,1000059416
05.09.2023,ADULT SOCIAL CARE,SUPREME CARE SERVICES LTD,"1,061.79",PHY LTS 65+,HOMECARE - C&V,2103745808,1000059416
05.09.2023,ADULT SOCIAL CARE,SUPREME CARE SERVICES LTD,"1,066.72",PHY LTS 65+,HOMECARE - C&V,2103745689,1000059416
05.09.2023,ADULT SOCIAL CARE,SUPREME CARE SERVICES LTD,"1,076.42",PHY LTS 65+,HOMECARE - C&V,2103745646,1000059416
05.09.2023,ADULT SOCIAL CARE,SUPREME CARE SERVICES LTD,"1,078.53",PHY LTS 65+,HOMECARE - C&V,2103745590,1000059416
05.09.2023,ADULT SOCIAL CARE,SUPREME CARE SERVICES LTD,"1,091.30",PHY LTS 65+,HOMECARE - C&V,2103745787,1000059416
05.09.2023,ADULT SOCIAL CARE,SUPREME CARE SERVICES LTD,"1,099.54",PHY LTS 65+,HOMECARE - C&V,2103745803,1000059416
05.09.2023,ADULT SOCIAL CARE,SUPREME CARE SERVICES LTD,"1,115.10",PHY LTS 65+,HOMECARE - C&V,2103745768,1000059416
05.09.2023,ADULT SOCIAL CARE,SUPREME CARE SERVICES LTD,"1,115.72",PHY LTS 65+,HOMECARE - C&V,2103745834,1000059416
05.09.2023,ADULT SOCIAL CARE,SUPREME CARE SERVICES LTD,"1,118.93",PHY LTS 65+,HOMECARE - C&V,2103745909,1000059416
05.09.2023,ADULT SOCIAL CARE,SUPREME CARE SERVICES LTD,"1,128.61",PHY LTS 65+,HOMECARE - C&V,2103745734,1000059416
05.09.2023,ADULT SOCIAL CARE,SUPREME CARE SERVICES LTD,"1,131.83",PHY LTS 65+,HOMECARE - C&V,2103745855,1000059416
05.09.2023,ADULT SOCIAL CARE,SUPREME CARE SERVICES LTD,"1,132.36",PHY LTS 65+,HOMECARE - C&V,2103745612,1000059416
05.09.2023,ADULT SOCIAL CARE,SUPREME CARE SERVICES LTD,"1,135.52",PHY LTS 65+,HOMECARE - C&V,2103745708,1000059416
05.09.2023,ADULT SOCIAL CARE,SUPREME CARE SERVICES LTD,"1,140.32",PHY LTS 65+,HOMECARE - C&V,2103745725,1000059416
05.09.2023,ADULT SOCIAL CARE,SUPREME CARE SERVICES LTD,"1,153.38",PHY LTS 65+,HOMECARE - C&V,2103745576,1000059416
05.09.2023,ADULT SOCIAL CARE,SUPREME CARE SERVICES LTD,"1,166.04",PHY LTS 65+,HOMECARE - C&V,2103745916,1000059416
05.09.2023,ADULT SOCIAL CARE,SUPREME CARE SERVICES LTD,"1,167.77",PHY LTS 65+,HOMECARE - C&V,2103745547,1000059416
05.09.2023,ADULT SOCIAL CARE,SUPREME CARE SERVICES LTD,"1,170.77",PHY LTS 65+,HOMECARE - C&V,2103745665,1000059416
05.09.2023,ADULT SOCIAL CARE,SUPREME CARE SERVICES LTD,"1,171.60",PHY LTS 65+,HOMECARE - C&V,2103745792,1000059416
05.09.2023,ADULT SOCIAL CARE,SUPREME CARE SERVICES LTD,"1,194.49",PHY LTS 65+,HOMECARE - C&V,2103745727,1000059416
05.09.2023,ADULT SOCIAL CARE,SUPREME CARE SERVICES LTD,"1,195.28",PHY LTS 65+,HOMECARE - C&V,2103745926,1000059416
05.09.2023,ADULT SOCIAL CARE,SUPREME CARE SERVICES LTD,"1,210.76",PHY LTS 65+,HOMECARE - C&V,2103745914,1000059416
05.09.2023,ADULT SOCIAL CARE,SUPREME CARE SERVICES LTD,"1,210.97",PHY LTS 65+,HOMECARE - C&V,2103745762,1000059416
05.09.2023,ADULT SOCIAL CARE,SUPREME CARE SERVICES LTD,"1,216.68",PHY LTS 65+,HOMECARE - C&V,2103745644,1000059416
05.09.2023,ADULT SOCIAL CARE,SUPREME CARE SERVICES LTD,"1,223.39",PHY LTS 65+,HOMECARE - C&V,2103745805,1000059416
05.09.2023,ADULT SOCIAL CARE,SUPREME CARE SERVICES LTD,"1,233.81",PHY LTS 65+,HOMECARE - C&V,2103745701,1000059416
05.09.2023,ADULT SOCIAL CARE,SUPREME CARE SERVICES LTD,"1,238.72",PHY LTS 65+,HOMECARE - C&V,2103745809,1000059416
05.09.2023,ADULT SOCIAL CARE,SUPREME CARE SERVICES LTD,"1,258.08",PHY LTS 65+,HOMECARE - C&V,2103745876,1000059416
05.09.2023,ADULT SOCIAL CARE,SUPREME CARE SERVICES LTD,"1,258.37",PHY LTS 65+,HOMECARE - C&V,2103745661,1000059416
05.09.2023,ADULT SOCIAL CARE,SUPREME CARE SERVICES LTD,"1,258.95",PHY LTS 65+,HOMECARE - C&V,2103745873,1000059416
05.09.2023,ADULT SOCIAL CARE,SUPREME CARE SERVICES LTD,"1,263.32",PHY LTS 65+,HOMECARE - C&V,2103745758,1000059416
05.09.2023,ADULT SOCIAL CARE,SUPREME CARE SERVICES LTD,"1,302.62",PHY LTS 65+,HOMECARE - C&V,2103745741,1000059416
05.09.2023,ADULT SOCIAL CARE,SUPREME CARE SERVICES LTD,"1,303.82",PHY LTS 65+,HOMECARE - C&V,2103745804,1000059416
05.09.2023,ADULT SOCIAL CARE,SUPREME CARE SERVICES LTD,"1,308.97",PHY LTS 65+,HOMECARE - C&V,2103745706,1000059416
05.09.2023,ADULT SOCIAL CARE,SUPREME CARE SERVICES LTD,"1,324.41",PHY LTS 65+,HOMECARE - C&V,2103745847,1000059416
05.09.2023,ADULT SOCIAL CARE,SUPREME CARE SERVICES LTD,"1,341.86",PHY LTS 65+,HOMECARE - C&V,2103745641,1000059416
05.09.2023,ADULT SOCIAL CARE,SUPREME CARE SERVICES LTD,"1,341.94",PHY LTS 65+,HOMECARE - C&V,2103745589,1000059416
05.09.2023,ADULT SOCIAL CARE,SUPREME CARE SERVICES LTD,"1,361.73",PHY LTS 65+,HOMECARE - C&V,2103745599,1000059416
05.09.2023,ADULT SOCIAL CARE,SUPREME CARE SERVICES LTD,"1,366.54",PHY LTS 65+,HOMECARE - C&V,2103745865,1000059416
05.09.2023,ADULT SOCIAL CARE,SUPREME CARE SERVICES LTD,"1,373.17",PHY LTS 65+,HOMECARE - C&V,2103745760,1000059416
05.09.2023,ADULT SOCIAL CARE,SUPREME CARE SERVICES LTD,"1,376.08",PHY LTS 65+,HOMECARE - C&V,2103745732,1000059416
05.09.2023,ADULT SOCIAL CARE,SUPREME CARE SERVICES LTD,"1,390.50",PHY LTS 65+,HOMECARE - C&V,2103745755,1000059416
05.09.2023,ADULT SOCIAL CARE,SUPREME CARE SERVICES LTD,"1,396.04",PHY LTS 65+,HOMECARE - C&V,2103745862,1000059416
05.09.2023,ADULT SOCIAL CARE,SUPREME CARE SERVICES LTD,"1,415.63",PHY LTS 65+,HOMECARE - C&V,2103745688,1000059416
05.09.2023,ADULT SOCIAL CARE,SUPREME CARE SERVICES LTD,"1,441.34",PHY LTS 65+,HOMECARE - C&V,2103745666,1000059416
05.09.2023,ADULT SOCIAL CARE,SUPREME CARE SERVICES LTD,"1,444.79",PHY LTS 65+,HOMECARE - C&V,2103745769,1000059416
05.09.2023,ADULT SOCIAL CARE,SUPREME CARE SERVICES LTD,"1,461.64",PHY LTS 65+,HOMECARE - C&V,2103745553,1000059416
05.09.2023,ADULT SOCIAL CARE,SUPREME CARE SERVICES LTD,"1,502.67",PHY LTS 65+,HOMECARE - C&V,2103745541,1000059416
05.09.2023,ADULT SOCIAL CARE,SUPREME CARE SERVICES LTD,"1,548.53",PHY LTS 65+,HOMECARE - C&V,2103745882,1000059416
05.09.2023,ADULT SOCIAL CARE,SUPREME CARE SERVICES LTD,"1,636.89",PHY LTS 65+,HOMECARE - C&V,2103745662,1000059416
05.09.2023,ADULT SOCIAL CARE,SUPREME CARE SERVICES LTD,"1,666.45",PHY LTS 65+,HOMECARE - C&V,2103745674,1000059416
05.09.2023,ADULT SOCIAL CARE,SUPREME CARE SERVICES LTD,"1,705.65",PHY LTS 65+,HOMECARE - C&V,2103745785,1000059416
05.09.2023,ADULT SOCIAL CARE,SUPREME CARE SERVICES LTD,"1,746.45",PHY LTS 65+,HOMECARE - C&V,2103745841,1000059416
05.09.2023,ADULT SOCIAL CARE,SUPREME CARE SERVICES LTD,"1,837.23",PHY LTS 65+,HOMECARE - C&V,2103745782,1000059416
05.09.2023,ADULT SOCIAL CARE,SUPREME CARE SERVICES LTD,"1,863.15",PHY LTS 65+,HOMECARE - C&V,2103745583,1000059416
05.09.2023,ADULT SOCIAL CARE,SUPREME CARE SERVICES LTD,"1,913.28",PHY LTS 65+,HOMECARE - C&V,2103745893,1000059416
05.09.2023,ADULT SOCIAL CARE,SUPREME CARE SERVICES LTD,"2,035.08",PHY LTS 65+,HOMECARE - C&V,2103745659,1000059416
05.09.2023,ADULT SOCIAL CARE,SUPREME CARE SERVICES LTD,"2,055.08",PHY LTS 65+,HOMECARE - C&V,2103745709,1000059416
05.09.2023,ADULT SOCIAL CARE,SUPREME CARE SERVICES LTD,"2,133.40",PHY LTS 65+,HOMECARE - C&V,2103745759,1000059416
05.09.2023,ADULT SOCIAL CARE,SUPREME CARE SERVICES LTD,"2,133.73",PHY LTS 65+,HOMECARE - C&V,2103745765,1000059416
05.09.2023,ADULT SOCIAL CARE,SUPREME CARE SERVICES LTD,"2,264.36",PHY LTS 65+,HOMECARE - C&V,2103745743,1000059416
05.09.2023,ADULT SOCIAL CARE,SUPREME CARE SERVICES LTD,"2,281.10",PHY LTS 65+,HOMECARE - C&V,2103745638,1000059416
05.09.2023,ADULT SOCIAL CARE,SUPREME CARE SERVICES LTD,"2,419.52",PHY LTS 65+,HOMECARE - C&V,2103745798,1000059416
05.09.2023,ADULT SOCIAL CARE,SUPREME CARE SERVICES LTD,"2,468.79",PHY LTS 65+,HOMECARE - C&V,2103745640,1000059416
05.09.2023,ADULT SOCIAL CARE,SUPREME CARE SERVICES LTD,"2,502.03",PHY LTS 65+,HOMECARE - C&V,2103745745,1000059416
05.09.2023,ADULT SOCIAL CARE,SUPREME CARE SERVICES LTD,"2,516.04",PHY LTS 65+,HOMECARE - C&V,2103745744,1000059416
05.09.2023,ADULT SOCIAL CARE,SUPREME CARE SERVICES LTD,"2,516.80",PHY LTS 65+,HOMECARE - C&V,2103745897,1000059416
05.09.2023,ADULT SOCIAL CARE,SUPREME CARE SERVICES LTD,"2,521.65",PHY LTS 65+,HOMECARE - C&V,2103745595,1000059416
05.09.2023,ADULT SOCIAL CARE,SUPREME CARE SERVICES LTD,"2,541.97",PHY LTS 65+,HOMECARE - C&V,2103745568,1000059416
05.09.2023,ADULT SOCIAL CARE,SUPREME CARE SERVICES LTD,"2,580.70",PHY LTS 65+,HOMECARE - C&V,2103745898,1000059416
05.09.2023,ADULT SOCIAL CARE,SUPREME CARE SERVICES LTD,"2,605.25",PHY LTS 65+,HOMECARE - C&V,2103745861,1000059416
05.09.2023,ADULT SOCIAL CARE,SUPREME CARE SERVICES LTD,"2,677.50",PHY LTS 65+,HOMECARE - C&V,2103745780,1000059416
05.09.2023,ADULT SOCIAL CARE,SUPREME CARE SERVICES LTD,"2,679.00",PHY LTS 65+,HOMECARE - C&V,2103745838,1000059416
05.09.2023,ADULT SOCIAL CARE,SUPREME CARE SERVICES LTD,"2,700.18",PHY LTS 65+,HOMECARE - C&V,2103745878,1000059416
05.09.2023,ADULT SOCIAL CARE,SUPREME CARE SERVICES LTD,"2,767.05",PHY LTS 65+,HOMECARE - C&V,2103745754,1000059416
05.09.2023,ADULT SOCIAL CARE,SUPREME CARE SERVICES LTD,"2,850.80",PHY LTS 65+,HOMECARE - C&V,2103745567,1000059416
05.09.2023,ADULT SOCIAL CARE,SUPREME CARE SERVICES LTD,"2,868.82",PHY LTS 65+,HOMECARE - C&V,2103745835,1000059416
05.09.2023,ADULT SOCIAL CARE,SUPREME CARE SERVICES LTD,"2,893.62",PHY LTS 65+,HOMECARE - C&V,2103745875,1000059416
05.09.2023,ADULT SOCIAL CARE,SUPREME CARE SERVICES LTD,"2,984.42",PHY LTS 65+,HOMECARE - C&V,2103745757,1000059416
05.09.2023,ADULT SOCIAL CARE,SUPREME CARE SERVICES LTD,"3,097.33",PHY LTS 65+,HOMECARE - C&V,2103745601,1000059416
05.09.2023,ADULT SOCIAL CARE,SUPREME CARE SERVICES LTD,"3,115.76",PHY LTS 65+,HOMECARE - C&V,2103745837,1000059416
05.09.2023,ADULT SOCIAL CARE,SUPREME CARE SERVICES LTD,"3,188.67",PHY LTS 65+,HOMECARE - C&V,2103745778,1000059416
05.09.2023,ADULT SOCIAL CARE,SUPREME CARE SERVICES LTD,"3,193.48",PHY LTS 65+,HOMECARE - C&V,2103745824,1000059416
05.09.2023,ADULT SOCIAL CARE,SUPREME CARE SERVICES LTD,"3,268.80",PHY LTS 65+,HOMECARE - C&V,2103745938,1000059416
05.09.2023,ADULT SOCIAL CARE,SUPREME CARE SERVICES LTD,"3,303.28",PHY LTS 65+,HOMECARE - C&V,2103745891,1000059416
05.09.2023,ADULT SOCIAL CARE,SUPREME CARE SERVICES LTD,"3,529.92",PHY LTS 65+,HOMECARE - C&V,2103745899,1000059416
05.09.2023,ADULT SOCIAL CARE,SUPREME CARE SERVICES LTD,"3,603.15",PHY LTS 65+,HOMECARE - C&V,2103745714,1000059416
05.09.2023,ADULT SOCIAL CARE,SUPREME CARE SERVICES LTD,"3,857.73",PHY LTS 65+,HOMECARE - C&V,2103745544,1000059416
05.09.2023,ADULT SOCIAL CARE,SUPREME CARE SERVICES LTD,"3,962.04",PHY LTS 65+,HOMECARE - C&V,2103745683,1000059416
05.09.2023,ADULT SOCIAL CARE,SUPREME CARE SERVICES LTD,"4,296.48",PHY LTS 65+,HOMECARE - C&V,2103745608,1000059416
05.09.2023,ADULT SOCIAL CARE,SUPREME CARE SERVICES LTD,"4,375.37",PHY LTS 65+,HOMECARE - C&V,2103745650,1000059416
05.09.2023,ADULT SOCIAL CARE,MIHOMECARE LTD,669.38,PHY LTS 65+,HOMECARE - SPOT,2103746053,1000042594
05.09.2023,ADULT SOCIAL CARE,MIHOMECARE LTD,669.4,PHY LTS 65+,HOMECARE - SPOT,2103746098,1000042594
05.09.2023,ADULT SOCIAL CARE,MIHOMECARE LTD,"1,343.81",PHY LTS 65+,HOMECARE - SPOT,2103746076,1000042594
05.09.2023,ADULT SOCIAL CARE,SUPREME CARE SERVICES LTD,702.98,PHY LTS 65+,HOMECARE - SPOT,2103745672,1000059416
05.09.2023,ADULT SOCIAL CARE,METRO HOMECARE LTD,"1,171.50",PHY LTS 65+,HOMECARE - SPOT,2103746159,1000070695
05.09.2023,ADULT SOCIAL CARE,METRO HOMECARE LTD,"1,171.50",PHY LTS 65+,HOMECARE - SPOT,2103746160,1000070695
05.09.2023,ADULT SOCIAL CARE,SUPREME CARE SERVICES LTD,"1,068.88",SEN LTS 65+,HOMECARE - C&V,2103745828,1000059416
05.09.2023,ADULT SOCIAL CARE,SUPREME CARE SERVICES LTD,"1,096.08",SEN LTS 65+,HOMECARE - C&V,2103745723,1000059416
05.09.2023,ADULT SOCIAL CARE,SUPREME CARE SERVICES LTD,"1,489.44",SEN LTS 65+,HOMECARE - C&V,2103745623,1000059416
05.09.2023,ADULT SOCIAL CARE,SUPREME CARE SERVICES LTD,"1,617.31",SEN LTS 65+,HOMECARE - C&V,2103745918,1000059416
05.09.2023,ADULT SOCIAL CARE,SUPREME CARE SERVICES LTD,653.82,SOCIAL ISOLATION,HOMECARE - C&V,2103745802,1000059416
05.09.2023,ADULT SOCIAL CARE,SUPREME CARE SERVICES LTD,774.32,SOCIAL ISOLATION,HOMECARE - C&V,2103745799,1000059416
05.09.2023,ADULT SOCIAL CARE,SUPREME CARE SERVICES LTD,899.45,SOCIAL ISOLATION,HOMECARE - C&V,2103745922,1000059416
05.09.2023,ADULT SOCIAL CARE,SUPREME CARE SERVICES LTD,"1,656.53",SOCIAL ISOLATION,HOMECARE - C&V,2103745810,1000059416
05.09.2023,ADULT SOCIAL CARE,SUPREME CARE SERVICES LTD,"2,167.15",SOCIAL ISOLATION,HOMECARE - C&V,2103745829,1000059416
05.09.2023,ADULT SOCIAL CARE,SUPREME CARE SERVICES LTD,"2,421.87",SOCIAL ISOLATION,HOMECARE - C&V,2103745763,1000059416
05.09.2023,ADULT SOCIAL CARE,ACHIEVERS CARE SOLUTIONS LIMITED,"1,600.00",SPECIALIST CARE,SECTION 17 PAYMENTS TO AGENCIES/CARERS,2103746124,1000086268
05.09.2023,ADULT SOCIAL CARE,STREETSCENE ADDICTION RECOVERY LTD,995.71,SUB LTS 18-64,DAYCARE,2103746168,11221787
05.09.2023,ADULT SOCIAL CARE,STREETSCENE ADDICTION RECOVERY LTD,364.29,SUB LTS 18-64,RESIDENTIAL CARE,2103746167,11221787
05.09.2023,ADULT SOCIAL CARE,STREETSCENE ADDICTION RECOVERY LTD,"1,430.00",SUB LTS 18-64,RESIDENTIAL CARE,2103746170,11221787
05.09.2023,ADULT SOCIAL CARE,STREETSCENE ADDICTION RECOVERY LTD,"3,640.00",SUB LTS 18-64,RESIDENTIAL CARE,2103746169,11221787
05.09.2023,ADULT SOCIAL CARE,STREETSCENE ADDICTION RECOVERY LTD,"3,640.00",SUB LTS 18-64,RESIDENTIAL CARE,2103746171,11221787
05.09.2023,ASSET MANAGEMENT,ASHFORDS LLP,"3,621.89",DISREPAIR,PAYMENTS FOR LEGAL SERVICES,2103745482,1000055865
05.09.2023,ASSET MANAGEMENT,UNIVERSA LAW LTD,"3,041.67",DISREPAIR,PAYMENTS FOR LEGAL SERVICES,2103745472,1000081466
05.09.2023,ASSET MANAGEMENT,CHESHIRE ESTATE AND LEGAL LTD,"5,416.67",DISREPAIR,PAYMENTS FOR LEGAL SERVICES,2103745490,1000081908
05.09.2023,ASSET MANAGEMENT,SATCHELL MORAN SOLICITORS LTD,833.33,DISREPAIR,PAYMENTS FOR LEGAL SERVICES,2103745462,1000087281
05.09.2023,ASSET MANAGEMENT,RESOLUTE  LEGAL,"1,208.33",DISREPAIR,PAYMENTS FOR LEGAL SERVICES,2103745469,1000087819
05.09.2023,ASSET MANAGEMENT,RESOLUTE  LEGAL,"4,791.67",DISREPAIR,PAYMENTS FOR LEGAL SERVICES,2103745483,1000087819
05.09.2023,ASSET MANAGEMENT,COYNE LEARMONTH (CROSBY) LIMITED,"1,783.33",DISREPAIR,PAYMENTS FOR LEGAL SERVICES,2103745475,1000088221
05.09.2023,ASSET MANAGEMENT,JUDGE AND PRIESTLEY SOLICITORS,"1,940.00",DISREPAIR,BUILDING R&M,5902597424,1472217
05.09.2023,ASSET MANAGEMENT,JUDGE AND PRIESTLEY SOLICITORS,"2,764.00",DISREPAIR,BUILDING R&M,5902597417,1472217
05.09.2023,ASSET MANAGEMENT,JUDGE AND PRIESTLEY SOLICITORS,"4,023.50",DISREPAIR,BUILDING R&M,5902597417,1472217
05.09.2023,ASSET MANAGEMENT,JUDGE AND PRIESTLEY SOLICITORS,"11,989.00",DISREPAIR,BUILDING R&M,5902597424,1472217
05.09.2023,ASSET MANAGEMENT,JUDGE AND PRIESTLEY SOLICITORS,"37,950.00",DISREPAIR,BUILDING R&M,5902597417,1472217
05.09.2023,ASSET MANAGEMENT,JUDGE AND PRIESTLEY SOLICITORS,"4,162.50",DISREPAIR,PAYMENTS FOR LEGAL SERVICES,2103745484,1472217
05.09.2023,ASSET MANAGEMENT,ANTONY HODARI  SOLICITORS,500,DISREPAIR,PAYMENTS FOR LEGAL SERVICES,2103745487,1000031040
05.09.2023,ASSET MANAGEMENT,ANTONY HODARI  SOLICITORS,833.33,DISREPAIR,PAYMENTS FOR LEGAL SERVICES,2103745494,1000031040
05.09.2023,ASSET MANAGEMENT,ANTONY HODARI  SOLICITORS,"2,750.00",DISREPAIR,PAYMENTS FOR LEGAL SERVICES,2103745480,1000031040
05.09.2023,ASSET MANAGEMENT,ANTONY HODARI  SOLICITORS,"4,166.67",DISREPAIR,PAYMENTS FOR LEGAL SERVICES,2103745471,1000031040
05.09.2023,ASSET MANAGEMENT,ANTONY HODARI  SOLICITORS,"5,333.33",DISREPAIR,PAYMENTS FOR LEGAL SERVICES,2103745495,1000031040
05.09.2023,ASSET MANAGEMENT,BROWN TURNER ROSS SOLICITORS,"2,000.00",DISREPAIR,PAYMENTS FOR LEGAL SERVICES,2103745488,1000082981
05.09.2023,ASSET MANAGEMENT,BARNES SOLICITORS LLP,666.67,DISREPAIR,PAYMENTS FOR LEGAL SERVICES,2103745468,1000083820
05.09.2023,ASSET MANAGEMENT,BOND TURNER  SOLICITORS,291.67,DISREPAIR,PAYMENTS FOR LEGAL SERVICES,2103745463,1000085362
05.09.2023,ASSET MANAGEMENT,BOND TURNER  SOLICITORS,333.33,DISREPAIR,PAYMENTS FOR LEGAL SERVICES,2103745477,1000085362
05.09.2023,ASSET MANAGEMENT,BOND TURNER  SOLICITORS,"3,750.00",DISREPAIR,PAYMENTS FOR LEGAL SERVICES,2103745470,1000085362
05.09.2023,ASSET MANAGEMENT,BOND TURNER  SOLICITORS,"3,801.67",DISREPAIR,PAYMENTS FOR LEGAL SERVICES,2103745478,1000085362
05.09.2023,ASSET MANAGEMENT,BOND TURNER  SOLICITORS,"4,375.00",DISREPAIR,PAYMENTS FOR LEGAL SERVICES,2103745461,1000085362
05.09.2023,ASSET MANAGEMENT,BOND TURNER  SOLICITORS,"5,000.00",DISREPAIR,PAYMENTS FOR LEGAL SERVICES,2103745491,1000085362
05.09.2023,ASSET MANAGEMENT,BOND TURNER  SOLICITORS,"5,416.67",DISREPAIR,PAYMENTS FOR LEGAL SERVICES,2103745479,1000085362
05.09.2023,ASSET MANAGEMENT,ANGELUS LAW  SOLICITORS LTD,"4,166.67",DISREPAIR,PAYMENTS FOR LEGAL SERVICES,2103745492,1000085731
05.09.2023,ASSET MANAGEMENT,VERITAS  SOLICITORS,625,DISREPAIR,PAYMENTS FOR LEGAL SERVICES,2103745467,1000088269
05.09.2023,ASSET MANAGEMENT,VERITAS  SOLICITORS,833.33,DISREPAIR,PAYMENTS FOR LEGAL SERVICES,2103745481,1000088269
05.09.2023,ASSET MANAGEMENT,VERITAS  SOLICITORS,"5,833.33",DISREPAIR,PAYMENTS FOR LEGAL SERVICES,2103745489,1000088269
05.09.2023,ASSET MANAGEMENT,TRUE  SOLICITORS LLP,"4,041.67",DISREPAIR,PAYMENTS FOR LEGAL SERVICES,2103745493,1000090047
05.09.2023,ASSET MANAGEMENT,TRAVIS PERKINS TRADING COMPANY LTD,262,R&M CONTRACTS (SOUTH),MATERIALS,5902597318,1514319
05.09.2023,ASSET MANAGEMENT,TRAVIS PERKINS TRADING COMPANY LTD,262,R&M CONTRACTS (SOUTH),MATERIALS,5902597319,1514319
05.09.2023,ASSET MANAGEMENT,TRAVIS PERKINS TRADING COMPANY LTD,262,R&M CONTRACTS (SOUTH),MATERIALS,5902597320,1514319
05.09.2023,ASSET MANAGEMENT,TRAVIS PERKINS TRADING COMPANY LTD,262,R&M CONTRACTS (SOUTH),MATERIALS,5902597324,1514319
05.09.2023,ASSET MANAGEMENT,TRAVIS PERKINS TRADING COMPANY LTD,262,R&M CONTRACTS (SOUTH),MATERIALS,5902597331,1514319
05.09.2023,ASSET MANAGEMENT,TRAVIS PERKINS TRADING COMPANY LTD,550,R&M CONTRACTS (SOUTH),MATERIALS,5902597331,1514319
05.09.2023,ASSET MANAGEMENT,TRAVIS PERKINS TRADING COMPANY LTD,"1,892.25",R&M CONTRACTS (SOUTH),MATERIALS,5902597318,1514319
05.09.2023,ASSET MANAGEMENT,TRAVIS PERKINS TRADING COMPANY LTD,"1,892.25",R&M CONTRACTS (SOUTH),MATERIALS,5902597319,1514319
05.09.2023,ASSET MANAGEMENT,TRAVIS PERKINS TRADING COMPANY LTD,"3,784.50",R&M CONTRACTS (SOUTH),MATERIALS,5902597331,1514319
05.09.2023,CENTRAL FUNCTIONS,BRESLIN CONSTRUCTION LTD,350,COMMERCIAL PROPERTIES,BUILDING R&M,5902597311,1000078031
05.09.2023,CENTRAL FUNCTIONS,BRESLIN CONSTRUCTION LTD,"3,150.00",COMMERCIAL PROPERTIES,BUILDING R&M,2103746191,3000001948
05.09.2023,CENTRAL FUNCTIONS,BRESLIN CONSTRUCTION LTD,"4,900.00",COMMERCIAL PROPERTIES,BUILDING R&M,2103745459,3000001948
05.09.2023,CHILDREN AND FAMILIES,REDACTED PERSONAL DATA,280,ADOPTION SUPP FUND 2,EXTERNAL AGENCIES AND BODIES,REDACTED,REDACTED
05.09.2023,CHILDREN AND FAMILIES,CONNECT B4 CORRECT LTD,560,ADOPTION SUPP FUND 3,EXTERNAL AGENCIES AND BODIES,5902597310,1000089906
05.09.2023,CHILDREN AND FAMILIES,ZENITH CARS LTD,350,AI TEAMS A-D,OTHER PAYMENTS FOR CLIENTS,5902597446,1000070570
05.09.2023,CHILDREN AND FAMILIES,CONTACT PROFESSIONALS,286,CHILDREN�S RESID,OTHER PAYMENTS FOR CLIENTS,2103746145,1000057263
05.09.2023,CHILDREN AND FAMILIES,CHANNELS & CHOICES FOSTERING LTD,"19,800.00",CHILDREN�S RESID,RESIDENTIAL CARE,2103746135,1000052855
05.09.2023,CHILDREN AND FAMILIES,CAMERON & COOPER LIMITED,"17,980.00",CHILDREN�S RESID,RESIDENTIAL CARE,2103746140,1000087598
05.09.2023,CHILDREN AND FAMILIES,TAMAL EXPERT ASSESSORS LTD,260,CHILDREN�S RESID,RESIDENTIAL CARE,2103746141,1000090136
05.09.2023,CHILDREN AND FAMILIES,TAMAL EXPERT ASSESSORS LTD,375,CHILDREN�S RESID,RESIDENTIAL CARE,2103746136,1000090136
05.09.2023,CHILDREN AND FAMILIES,TAMAL EXPERT ASSESSORS LTD,"2,000.00",CHILDREN�S RESID,RESIDENTIAL CARE,2103746142,1000090136
05.09.2023,CHILDREN AND FAMILIES,TAMAL EXPERT ASSESSORS LTD,"2,671.42",CHILDREN�S RESID,RESIDENTIAL CARE,2103746144,1000090136
05.09.2023,CHILDREN AND FAMILIES,TAMAL EXPERT ASSESSORS LTD,"9,350.00",CHILDREN�S RESID,RESIDENTIAL CARE,2103746137,1000090136
05.09.2023,CHILDREN AND FAMILIES,TAMAL EXPERT ASSESSORS LTD,"9,350.00",CHILDREN�S RESID,RESIDENTIAL CARE,2103746138,1000090136
05.09.2023,CHILDREN AND FAMILIES,TAMAL EXPERT ASSESSORS LTD,"9,350.00",CHILDREN�S RESID,RESIDENTIAL CARE,2103746139,1000090136
05.09.2023,CHILDREN AND FAMILIES,TAMAL EXPERT ASSESSORS LTD,"9,350.00",CHILDREN�S RESID,RESIDENTIAL CARE,2103746143,1000090136
05.09.2023,CHILDREN AND FAMILIES,ZENITH CARS LTD,360,CONTACT SERVICE,CLIENT TRANSPORT,5902597303,1000070570
05.09.2023,CHILDREN AND FAMILIES,ZENITH CARS LTD,360,CONTACT SERVICE,CLIENT TRANSPORT,5902597445,1000070570
05.09.2023,CHILDREN AND FAMILIES,ZENITH CARS LTD,540,CONTACT SERVICE,CLIENT TRANSPORT,5902597304,1000070570
05.09.2023,CHILDREN AND FAMILIES,ZENITH CARS LTD,730,CONTACT SERVICE,CLIENT TRANSPORT,5902597305,1000070570
05.09.2023,CHILDREN AND FAMILIES,CONTACT PROFESSIONALS,263.92,CONTACT SERVICE,OTHER PAYMENTS FOR CLIENTS,2103746134,1000057263
05.09.2023,CHILDREN AND FAMILIES,ZENITH CARS LTD,570,CONTACT SERVICE,OTHER PAYMENTS FOR CLIENTS,5902597444,1000070570
05.09.2023,CHILDREN AND FAMILIES,REALITY FAMILY SUPPORT SERVICES LTD,561,CONTACT SERVICE,OTHER PAYMENTS FOR CLIENTS,5902597306,1000087878
05.09.2023,CHILDREN AND FAMILIES,REDACTED PERSONAL DATA,750,FOSTERING ALLOWANCES,PAYMENTS TO CARERS,REDACTED,REDACTED
05.09.2023,CHILDREN AND FAMILIES,FAMILY FOSTERING LTD,"4,601.64",FRIENDS & FAMILY FOSTERING,EXTERNAL AGENCIES AND BODIES,2103746126,1000075179
05.09.2023,CHILDREN AND FAMILIES,REDACTED PERSONAL DATA,"1,500.00",LEAVING CARE GRANT,OTHER PAYMENTS FOR CLIENTS,REDACTED,REDACTED
05.09.2023,CHILDREN AND FAMILIES,ZENITH CARS LTD,760,P & R CARE TEAM,CLIENT TRANSPORT,5902597443,1000070570
05.09.2023,CHILDREN AND FAMILIES,HM PRISON & PROBATION SERVICE,"3,352.00",REMAND - YDA STC & SCH,RESIDENTIAL CARE,5902597448,1000083827
05.09.2023,CHILDREN AND FAMILIES,HM PRISON & PROBATION SERVICE,"25,020.00",REMAND - YDA STC & SCH,RESIDENTIAL CARE,2103746176,1000083827
05.09.2023,CHILDREN AND FAMILIES,HM PRISON & PROBATION SERVICE,"25,020.00",REMAND - YDA STC & SCH,RESIDENTIAL CARE,2103746177,1000083827
05.09.2023,CHILDREN AND FAMILIES,NETPEX LTD CORPORATE SERVICES,"2,960.19",SEMI-IND CARELEAVERS,EXTERNAL AGENCIES AND BODIES,2103746153,1000076073
05.09.2023,CHILDREN AND FAMILIES,NETPEX LTD CORPORATE SERVICES,"6,824.34",SEMI-IND CARELEAVERS,EXTERNAL AGENCIES AND BODIES,2103746152,1000076073
05.09.2023,CHILDREN AND FAMILIES,DREAMFO HOUSING LTD,"3,321.29",SEMI-IND CARELEAVERS,EXTERNAL AGENCIES AND BODIES,2103746148,1000087273
05.09.2023,CHILDREN AND FAMILIES,DREAMFO HOUSING LTD,"3,321.29",SEMI-IND CARELEAVERS,EXTERNAL AGENCIES AND BODIES,2103746157,1000087273
05.09.2023,CHILDREN AND FAMILIES,DREAMFO HOUSING LTD,"3,321.34",SEMI-IND CARELEAVERS,EXTERNAL AGENCIES AND BODIES,2103746149,1000087273
05.09.2023,CHILDREN AND FAMILIES,DREAMFO HOUSING LTD,"5,712.63",SEMI-IND CARELEAVERS,EXTERNAL AGENCIES AND BODIES,2103746155,1000087273
05.09.2023,CHILDREN AND FAMILIES,CAUSEWAY IRISH HOUSING ASSOCIATION,"6,933.33",SEMI-IND CARELEAVERS,EXTERNAL AGENCIES AND BODIES,2103746150,1000090175
05.09.2023,CHILDREN AND FAMILIES,NETPEX LTD CORPORATE SERVICES,300,SEMI-IND CARELEAVERS,OTHER PAYMENTS FOR CLIENTS,2103746146,1000076073
05.09.2023,CHILDREN AND FAMILIES,DREAMFO HOUSING LTD,265.72,SEMI-IND CARELEAVERS,OTHER PAYMENTS FOR CLIENTS,2103746147,1000087273
05.09.2023,CHILDREN AND FAMILIES,DREAMFO HOUSING LTD,265.72,SEMI-IND CARELEAVERS,OTHER PAYMENTS FOR CLIENTS,2103746154,1000087273
05.09.2023,CHILDREN AND FAMILIES,DREAMFO HOUSING LTD,265.72,SEMI-IND CARELEAVERS,OTHER PAYMENTS FOR CLIENTS,2103746156,1000087273
05.09.2023,CHILDREN AND FAMILIES,DREAMFO HOUSING LTD,411.36,SEMI-IND LAC 16-17,EXTERNAL AGENCIES AND BODIES,2103746123,1000087273
05.09.2023,CHILDREN AND FAMILIES,DREAMFO HOUSING LTD,"2,357.08",SEMI-IND LAC 16-17,EXTERNAL AGENCIES AND BODIES,2103746116,1000087273
05.09.2023,CHILDREN AND FAMILIES,DREAMFO HOUSING LTD,"3,321.29",SEMI-IND LAC 16-17,EXTERNAL AGENCIES AND BODIES,2103746119,1000087273
05.09.2023,CHILDREN AND FAMILIES,DREAMFO HOUSING LTD,"3,912.85",SEMI-IND LAC 16-17,EXTERNAL AGENCIES AND BODIES,2103746121,1000087273
05.09.2023,CHILDREN AND FAMILIES,TRANSFORMING YOUNG PEOPLE LTD,"42,957.14",SEMI-IND LAC 16-17,EXTERNAL AGENCIES AND BODIES,2103746113,1000089530
05.09.2023,CHILDREN AND FAMILIES,LORDGRACE DELIGHT HEALTHCARE LIMITED,"5,624.26",SEMI-IND LAC 16-17,EXTERNAL AGENCIES AND BODIES,2103746114,1000089935
05.09.2023,CHILDREN AND FAMILIES,SILVER BIRCH CARE LTD,568.28,SEMI-IND LAC 16-17,OTHER PAYMENTS FOR CLIENTS,2103746122,1000076525
05.09.2023,CHILDREN AND FAMILIES,DREAMFO HOUSING LTD,265.72,SEMI-IND LAC 16-17,OTHER PAYMENTS FOR CLIENTS,2103746118,1000087273
05.09.2023,CHILDREN AND FAMILIES,DREAMFO HOUSING LTD,291.28,SEMI-IND LAC 16-17,OTHER PAYMENTS FOR CLIENTS,2103746120,1000087273
05.09.2023,CHILDREN AND FAMILIES,ZENITH CARS LTD,655,TEAM B,CLIENT TRANSPORT,5902597447,1000070570
05.09.2023,CHILDREN AND FAMILIES,ZENITH CARS LTD,282,TEAM C,CLIENT TRANSPORT,5902597447,1000070570
05.09.2023,CHILDREN AND FAMILIES,ZENITH CARS LTD,895,TEAM D,CLIENT TRANSPORT,5902597447,1000070570
05.09.2023,CHILDREN AND FAMILIES,OWNLIFE LTD,"1,905.00",UASC CARELEAVERS,EXTERNAL AGENCIES AND BODIES,2103746151,1000056219
05.09.2023,COMMUNITIES,LETTING INTERNATIONAL LTD,"1,736.00",NO RECOURSE TO PUBLIC FUNDS,ACCOMMODATION CHARGES,5902597435,1000070102
05.09.2023,COMMUNITIES,LONDON CARE LTD,930.92,NO RECOURSE TO PUBLIC FUNDS,HOMECARE - C&V,2103746109,1000003398
05.09.2023,COMMUNITIES,LONDON CARE LTD,"1,364.99",NO RECOURSE TO PUBLIC FUNDS,HOMECARE - C&V,2103746128,1000003398
05.09.2023,COMMUNITIES,LONDON CARE LTD,"1,370.05",NO RECOURSE TO PUBLIC FUNDS,HOMECARE - C&V,2103746130,1000003398
05.09.2023,COMMUNITIES,LONDON CARE LTD,"1,384.20",NO RECOURSE TO PUBLIC FUNDS,HOMECARE - C&V,2103746129,1000003398
05.09.2023,COMMUNITIES,LONDON CARE LTD,"1,393.64",NO RECOURSE TO PUBLIC FUNDS,HOMECARE - C&V,2103746108,1000003398
05.09.2023,COMMUNITIES,SUPREME CARE SERVICES LTD,400.57,NO RECOURSE TO PUBLIC FUNDS,HOMECARE - C&V,2103745557,1000059416
05.09.2023,COMMUNITIES,REDACTED PERSONAL DATA,355.6,NO RECOURSE TO PUBLIC FUNDS,HOMECARE - SPOT,REDACTED,REDACTED
05.09.2023,COMMUNITIES,REDACTED PERSONAL DATA,500,UKRAINIAN PROGRAMME,GRANTS,REDACTED,REDACTED
05.09.2023,COMMUNITIES,REDACTED PERSONAL DATA,500,UKRAINIAN PROGRAMME,GRANTS,REDACTED,REDACTED
05.09.2023,COMMUNITIES,REDACTED PERSONAL DATA,500,UKRAINIAN PROGRAMME,GRANTS,REDACTED,REDACTED
05.09.2023,COMMUNITIES,REDACTED PERSONAL DATA,500,UKRAINIAN PROGRAMME,GRANTS,REDACTED,REDACTED
05.09.2023,COMMUNITIES,REDACTED PERSONAL DATA,500,UKRAINIAN PROGRAMME,GRANTS,REDACTED,REDACTED
05.09.2023,COMMUNITIES,REDACTED PERSONAL DATA,500,UKRAINIAN PROGRAMME,GRANTS,REDACTED,REDACTED
05.09.2023,COMMUNITIES,REDACTED PERSONAL DATA,700,UKRAINIAN PROGRAMME,GRANTS,REDACTED,REDACTED
05.09.2023,COMMUNITIES,REDACTED PERSONAL DATA,500,UKRAINIAN PROGRAMME,GRANTS,REDACTED,REDACTED
05.09.2023,COMMUNITIES,REDACTED PERSONAL DATA,350,UKRAINIAN PROGRAMME,GRANTS,REDACTED,REDACTED
05.09.2023,COMMUNITIES,TAAKSVALE HOUSING LTD,"4,126.10",UKRAINIAN REFUGEES,ACCOMMODATION CHARGES,5902597429,1000073665
05.09.2023,COMMUNITIES,ZFA ACCOMMODATION LTD,"7,595.00",UKRAINIAN REFUGEES,ACCOMMODATION CHARGES,5902597378,1000082620
05.09.2023,CUSTOMER AND EXCHEQUER,SG PATH LTD,595.9,CORONER'S,PROFESSIONAL FEES,5902597391,1000077883
05.09.2023,CUSTOMER AND EXCHEQUER,HIAM ALI LTD,"5,877.60",CORONER'S,PROFESSIONAL FEES,5902597395,1000084044
05.09.2023,CUSTOMER AND EXCHEQUER,FORENSIC PATHOLOGY SERVICES,450,CORONER'S,PROFESSIONAL FEES,5902597398,1000086871
05.09.2023,EDUCATION,ECT MANAGER LTD,454.24,L&A SALARIES,SUBSCRIPTIONS,5902597348,1000089930
05.09.2023,EDUCATION,ECT MANAGER LTD,455.17,L&A SALARIES,SUBSCRIPTIONS,5902597351,1000089930
05.09.2023,EDUCATION,ABRSM,319,LEA MUSIC SERVICE(310) - 5018566,CONSULTANTS SERVICES,5902597223,1000072042
05.09.2023,EDUCATION,ABRSM,"1,084.00",LEA MUSIC SERVICE(310) - 5018566,CONSULTANTS SERVICES,5902597222,1000072042
05.09.2023,EDUCATION,ACCESS MOBILITY TRANSPORT LTD,368,SCH TRANS � TRAVEL,CAB FARES,5902597439,1000074637
05.09.2023,ENV & LEIS,TOPOCREW LTD,"1,500.00",CAPITAL PS (LEISURE),CONSTRUCTION,5902597315,1000070929
05.09.2023,ENV & LEIS,THE FRIENDS OF PECKHAM RYE PARK,500,CAPITAL PS (LEISURE),"PLANT, MACHINERY & EQUIPMENT ACQUISITION",5902597333,1000047491
05.09.2023,ENV & LEIS,ICE SERVICES GROUP LTD,"13,000.00",MANAGEMENT TEAM,PROFESSIONAL FEES,5902597307,1000090182
05.09.2023,HOUSING GENERAL FUND,AJM ADAPTIONS LTD,"21,655.00",CAPITAL PS (HOUSING GF),CAPITAL GRANTS,5902597377,1000080297
05.09.2023,HOUSING HRA,CALFORD SEADEN (HEALTH & SAFETY) LTD,"1,220.00",CAPITAL PS (HRA),CONSTRUCTION FEES  - EXTERNAL,5902597344,1097125
05.09.2023,HOUSING HRA,NHG ASSOCIATES LTD,700,CAPITAL PS (HRA),CONSTRUCTION FEES  - EXTERNAL,5902597335,1000090081
05.09.2023,HOUSING HRA,CALFORD SEADEN LLP,"12,384.00",CAPITAL PS (HRA),CONSTRUCTION FEES - EMPLOYERS AGENT,5902597412,1061592
05.09.2023,HOUSING HRA,ARCHIO LTD,"1,558.00",CAPITAL PS (HRA),PLANNING & S106 FEES,5902597356,1000086130
05.09.2023,LEADERS & CABINET OFFICE,BIG LOCAL WORKS,"6,250.00",BUSINESS SUPPORT,GRANTS,5902597361,1000082263
05.09.2023,LEISURE DIRECTORATE,KALMARS COMMERCIAL LTD,"2,000.00",CANADA WATER LIBRARY,PROFESSIONAL FEES,5902597384,1000081844
05.09.2023,LEISURE DIRECTORATE,BLU LEISURE LTD,513.8,LEISURE INSOURCING MOBILISATION COST,"CLOTHING, UNIFORMS & LAUNDRY",5902597342,1000089603
05.09.2023,LEISURE DIRECTORATE,BLU LEISURE LTD,"25,076.10",LEISURE INSOURCING MOBILISATION COST,"CLOTHING, UNIFORMS & LAUNDRY",5902597338,1000089603
05.09.2023,LEISURE DIRECTORATE,BLU LEISURE LTD,"25,768.35",LEISURE INSOURCING MOBILISATION COST,"CLOTHING, UNIFORMS & LAUNDRY",5902597341,1000089603
05.09.2023,LEISURE DIRECTORATE,HIGHTECH WATER SERVICES LIMITED,400,THE CASTLE CENTRE,PLANNED MAINTENANCE,5902597404,1000089824
05.09.2023,PLANNING & GROWTH,STRETTONS LIMITED,"2,950.00",VALIDATION & FAST TRACK,PROFESSIONAL FEES,5902597430,1000058926
05.09.2023,PROFESSIONAL FINANCE SERVICES,BDO LLP,"29,936.08",INTERNAL AUDIT CONTRACTS,PAYMENTS FOR FINANCIAL SERVICES,5902597432,1000057898
05.09.2023,REGEN & NEIGHBOURHOODS,BELL PHILLIPS ARCHITECTS LTD,"2,090.00",CAPITAL PS (REGEN),CONSTRUCTION FEES  - EXTERNAL,5902597380,1000069307
05.09.2023,REGEN & NEIGHBOURHOODS,SHERGROUP LTD,"3,360.00",CAPITAL PS (REGEN),CONSTRUCTION SITE COSTS,5902597359,1000087977
05.09.2023,RESIDENT SERVICES HGF,HELP2RENT PROPERTY MANAGEMENT LTD,"3,572.91",HOMELESS PROJECTS,GRANTS,5902597314,1000082282
05.09.2023,RESIDENT SERVICES HGF,SMARTLET ESTATES LTD,"3,572.91",HOMELESS PROJECTS,GRANTS,5902597418,1000086913
05.09.2023,RESIDENT SERVICES HGF,FLEXI PROPERTY SOLUTIONS LTD,"1,800.00",HOMELESS PROJECTS,GRANTS,5902597364,1000089849
05.09.2023,RESIDENT SERVICES HGF,FLEXI PROPERTY SOLUTIONS LTD,"4,500.00",HOMELESS PROJECTS,GRANTS,5902597362,1000089849
05.09.2023,RESIDENT SERVICES HGF,STONE HOUSING ESTATES LTD,"2,776.90",HOMELESS PROJECTS,GRANTS,5902597316,1000089868
05.09.2023,RESIDENT SERVICES HGF,SEFE ENERGY LTD,303.13,JOE RICHARDS HOSTEL,GAS,5902597416,1000074537
05.09.2023,SBS OPERATIONS,TRAVIS PERKINS TRADING COMPANY LTD,585,SBS LEAKS FROM ABOVE,MATERIALS,5902597409,1514319
05.09.2023,SOUTHWARK BUILDING SERVICES,TRAVIS PERKINS TRADING COMPANY LTD,252.2,STORES/LOGISTICS,CREDITORS -GR/IR CLEARING ACCOUNT,5902597322,1514319
05.09.2023,SOUTHWARK BUILDING SERVICES,TRAVIS PERKINS TRADING COMPANY LTD,262.2,STORES/LOGISTICS,CREDITORS -GR/IR CLEARING ACCOUNT,5902597326,1514319
05.09.2023,SOUTHWARK BUILDING SERVICES,TRAVIS PERKINS TRADING COMPANY LTD,267,STORES/LOGISTICS,CREDITORS -GR/IR CLEARING ACCOUNT,5902597322,1514319
05.09.2023,SOUTHWARK BUILDING SERVICES,TRAVIS PERKINS TRADING COMPANY LTD,279.6,STORES/LOGISTICS,CREDITORS -GR/IR CLEARING ACCOUNT,5902597409,1514319
05.09.2023,SOUTHWARK BUILDING SERVICES,TRAVIS PERKINS TRADING COMPANY LTD,280,STORES/LOGISTICS,CREDITORS -GR/IR CLEARING ACCOUNT,5902597322,1514319
05.09.2023,SOUTHWARK BUILDING SERVICES,TRAVIS PERKINS TRADING COMPANY LTD,282,STORES/LOGISTICS,CREDITORS -GR/IR CLEARING ACCOUNT,5902597322,1514319
05.09.2023,SOUTHWARK BUILDING SERVICES,TRAVIS PERKINS TRADING COMPANY LTD,295.34,STORES/LOGISTICS,CREDITORS -GR/IR CLEARING ACCOUNT,5902597406,1514319
05.09.2023,SOUTHWARK BUILDING SERVICES,TRAVIS PERKINS TRADING COMPANY LTD,299.7,STORES/LOGISTICS,CREDITORS -GR/IR CLEARING ACCOUNT,5902597322,1514319
05.09.2023,SOUTHWARK BUILDING SERVICES,TRAVIS PERKINS TRADING COMPANY LTD,300.8,STORES/LOGISTICS,CREDITORS -GR/IR CLEARING ACCOUNT,5902597409,1514319
05.09.2023,SOUTHWARK BUILDING SERVICES,TRAVIS PERKINS TRADING COMPANY LTD,340.86,STORES/LOGISTICS,CREDITORS -GR/IR CLEARING ACCOUNT,5902597326,1514319
05.09.2023,SOUTHWARK BUILDING SERVICES,TRAVIS PERKINS TRADING COMPANY LTD,349.2,STORES/LOGISTICS,CREDITORS -GR/IR CLEARING ACCOUNT,5902597327,1514319
05.09.2023,SOUTHWARK BUILDING SERVICES,TRAVIS PERKINS TRADING COMPANY LTD,349.92,STORES/LOGISTICS,CREDITORS -GR/IR CLEARING ACCOUNT,5902597329,1514319
05.09.2023,SOUTHWARK BUILDING SERVICES,TRAVIS PERKINS TRADING COMPANY LTD,359,STORES/LOGISTICS,CREDITORS -GR/IR CLEARING ACCOUNT,5902597409,1514319
05.09.2023,SOUTHWARK BUILDING SERVICES,TRAVIS PERKINS TRADING COMPANY LTD,387.9,STORES/LOGISTICS,CREDITORS -GR/IR CLEARING ACCOUNT,5902597326,1514319
05.09.2023,SOUTHWARK BUILDING SERVICES,TRAVIS PERKINS TRADING COMPANY LTD,391.2,STORES/LOGISTICS,CREDITORS -GR/IR CLEARING ACCOUNT,5902597322,1514319
05.09.2023,SOUTHWARK BUILDING SERVICES,TRAVIS PERKINS TRADING COMPANY LTD,406,STORES/LOGISTICS,CREDITORS -GR/IR CLEARING ACCOUNT,5902597322,1514319
05.09.2023,SOUTHWARK BUILDING SERVICES,TRAVIS PERKINS TRADING COMPANY LTD,419.84,STORES/LOGISTICS,CREDITORS -GR/IR CLEARING ACCOUNT,5902597409,1514319
05.09.2023,SOUTHWARK BUILDING SERVICES,TRAVIS PERKINS TRADING COMPANY LTD,476.4,STORES/LOGISTICS,CREDITORS -GR/IR CLEARING ACCOUNT,5902597327,1514319
05.09.2023,SOUTHWARK BUILDING SERVICES,TRAVIS PERKINS TRADING COMPANY LTD,485,STORES/LOGISTICS,CREDITORS -GR/IR CLEARING ACCOUNT,5902597409,1514319
05.09.2023,SOUTHWARK BUILDING SERVICES,TRAVIS PERKINS TRADING COMPANY LTD,506.88,STORES/LOGISTICS,CREDITORS -GR/IR CLEARING ACCOUNT,5902597326,1514319
05.09.2023,SOUTHWARK BUILDING SERVICES,TRAVIS PERKINS TRADING COMPANY LTD,510,STORES/LOGISTICS,CREDITORS -GR/IR CLEARING ACCOUNT,5902597322,1514319
05.09.2023,SOUTHWARK BUILDING SERVICES,TRAVIS PERKINS TRADING COMPANY LTD,550,STORES/LOGISTICS,CREDITORS -GR/IR CLEARING ACCOUNT,5902597406,1514319
05.09.2023,SOUTHWARK BUILDING SERVICES,TRAVIS PERKINS TRADING COMPANY LTD,571.2,STORES/LOGISTICS,CREDITORS -GR/IR CLEARING ACCOUNT,5902597322,1514319
05.09.2023,SOUTHWARK BUILDING SERVICES,TRAVIS PERKINS TRADING COMPANY LTD,582,STORES/LOGISTICS,CREDITORS -GR/IR CLEARING ACCOUNT,5902597322,1514319
05.09.2023,SOUTHWARK BUILDING SERVICES,TRAVIS PERKINS TRADING COMPANY LTD,610.8,STORES/LOGISTICS,CREDITORS -GR/IR CLEARING ACCOUNT,5902597409,1514319
05.09.2023,SOUTHWARK BUILDING SERVICES,TRAVIS PERKINS TRADING COMPANY LTD,647,STORES/LOGISTICS,CREDITORS -GR/IR CLEARING ACCOUNT,5902597322,1514319
05.09.2023,SOUTHWARK BUILDING SERVICES,TRAVIS PERKINS TRADING COMPANY LTD,688,STORES/LOGISTICS,CREDITORS -GR/IR CLEARING ACCOUNT,5902597322,1514319
05.09.2023,SOUTHWARK BUILDING SERVICES,TRAVIS PERKINS TRADING COMPANY LTD,693,STORES/LOGISTICS,CREDITORS -GR/IR CLEARING ACCOUNT,5902597409,1514319
05.09.2023,SOUTHWARK BUILDING SERVICES,TRAVIS PERKINS TRADING COMPANY LTD,700.2,STORES/LOGISTICS,CREDITORS -GR/IR CLEARING ACCOUNT,5902597322,1514319
05.09.2023,SOUTHWARK BUILDING SERVICES,TRAVIS PERKINS TRADING COMPANY LTD,771.12,STORES/LOGISTICS,CREDITORS -GR/IR CLEARING ACCOUNT,5902597329,1514319
05.09.2023,SOUTHWARK BUILDING SERVICES,TRAVIS PERKINS TRADING COMPANY LTD,825,STORES/LOGISTICS,CREDITORS -GR/IR CLEARING ACCOUNT,5902597326,1514319
05.09.2023,SOUTHWARK BUILDING SERVICES,TRAVIS PERKINS TRADING COMPANY LTD,825,STORES/LOGISTICS,CREDITORS -GR/IR CLEARING ACCOUNT,5902597409,1514319
05.09.2023,SOUTHWARK BUILDING SERVICES,TRAVIS PERKINS TRADING COMPANY LTD,826.8,STORES/LOGISTICS,CREDITORS -GR/IR CLEARING ACCOUNT,5902597322,1514319
05.09.2023,SOUTHWARK BUILDING SERVICES,TRAVIS PERKINS TRADING COMPANY LTD,853,STORES/LOGISTICS,CREDITORS -GR/IR CLEARING ACCOUNT,5902597322,1514319
05.09.2023,SOUTHWARK BUILDING SERVICES,TRAVIS PERKINS TRADING COMPANY LTD,925.44,STORES/LOGISTICS,CREDITORS -GR/IR CLEARING ACCOUNT,5902597322,1514319
05.09.2023,SOUTHWARK BUILDING SERVICES,TRAVIS PERKINS TRADING COMPANY LTD,930.96,STORES/LOGISTICS,CREDITORS -GR/IR CLEARING ACCOUNT,5902597409,1514319
05.09.2023,SOUTHWARK BUILDING SERVICES,TRAVIS PERKINS TRADING COMPANY LTD,"1,020.00",STORES/LOGISTICS,CREDITORS -GR/IR CLEARING ACCOUNT,5902597409,1514319
05.09.2023,SOUTHWARK BUILDING SERVICES,TRAVIS PERKINS TRADING COMPANY LTD,"1,040.00",STORES/LOGISTICS,CREDITORS -GR/IR CLEARING ACCOUNT,5902597409,1514319
05.09.2023,SOUTHWARK BUILDING SERVICES,TRAVIS PERKINS TRADING COMPANY LTD,"1,099.68",STORES/LOGISTICS,CREDITORS -GR/IR CLEARING ACCOUNT,5902597409,1514319
05.09.2023,SOUTHWARK BUILDING SERVICES,TRAVIS PERKINS TRADING COMPANY LTD,"1,114.80",STORES/LOGISTICS,CREDITORS -GR/IR CLEARING ACCOUNT,5902597409,1514319
05.09.2023,SOUTHWARK BUILDING SERVICES,TRAVIS PERKINS TRADING COMPANY LTD,"1,166.16",STORES/LOGISTICS,CREDITORS -GR/IR CLEARING ACCOUNT,5902597322,1514319
05.09.2023,SOUTHWARK BUILDING SERVICES,TRAVIS PERKINS TRADING COMPANY LTD,"1,245.40",STORES/LOGISTICS,CREDITORS -GR/IR CLEARING ACCOUNT,5902597409,1514319
05.09.2023,SOUTHWARK BUILDING SERVICES,TRAVIS PERKINS TRADING COMPANY LTD,"1,261.50",STORES/LOGISTICS,CREDITORS -GR/IR CLEARING ACCOUNT,5902597406,1514319
05.09.2023,SOUTHWARK BUILDING SERVICES,TRAVIS PERKINS TRADING COMPANY LTD,"1,341.08",STORES/LOGISTICS,CREDITORS -GR/IR CLEARING ACCOUNT,5902597409,1514319
05.09.2023,SOUTHWARK BUILDING SERVICES,TRAVIS PERKINS TRADING COMPANY LTD,"1,865.28",STORES/LOGISTICS,CREDITORS -GR/IR CLEARING ACCOUNT,5902597409,1514319
05.09.2023,SOUTHWARK BUILDING SERVICES,TRAVIS PERKINS TRADING COMPANY LTD,"1,880.40",STORES/LOGISTICS,CREDITORS -GR/IR CLEARING ACCOUNT,5902597329,1514319
05.09.2023,SOUTHWARK BUILDING SERVICES,TRAVIS PERKINS TRADING COMPANY LTD,"2,107.80",STORES/LOGISTICS,CREDITORS -GR/IR CLEARING ACCOUNT,5902597409,1514319
05.09.2023,SOUTHWARK BUILDING SERVICES,TRAVIS PERKINS TRADING COMPANY LTD,"2,259.90",STORES/LOGISTICS,CREDITORS -GR/IR CLEARING ACCOUNT,5902597409,1514319
05.09.2023,SOUTHWARK BUILDING SERVICES,TRAVIS PERKINS TRADING COMPANY LTD,"2,889.60",STORES/LOGISTICS,CREDITORS -GR/IR CLEARING ACCOUNT,5902597409,1514319
05.09.2023,SOUTHWARK BUILDING SERVICES,TRAVIS PERKINS TRADING COMPANY LTD,"3,009.36",STORES/LOGISTICS,CREDITORS -GR/IR CLEARING ACCOUNT,5902597409,1514319
05.09.2023,SOUTHWARK BUILDING SERVICES,TRAVIS PERKINS TRADING COMPANY LTD,"3,810.00",STORES/LOGISTICS,CREDITORS -GR/IR CLEARING ACCOUNT,5902597409,1514319
06.09.2023,ADULT SOCIAL CARE,SHARPE PRITCHARD LLP,361,AGIN PROPERTIES,SOLICITORS FRAMEWORK LEGAL SERVICES,5902597528,1790085
06.09.2023,ADULT SOCIAL CARE,SHARPE PRITCHARD LLP,"1,221.00",AGIN PROPERTIES,SOLICITORS FRAMEWORK LEGAL SERVICES,5902597527,1790085
06.09.2023,ADULT SOCIAL CARE,SHARPE PRITCHARD LLP,"6,986.10",AGIN PROPERTIES,SOLICITORS FRAMEWORK LEGAL SERVICES,5902597525,1790085
06.09.2023,ADULT SOCIAL CARE,OXFORD COMPUTER CONSULTANTS,"3,300.00",DIR OF ASC,COMMS & COMPUTING CONTRACT CHARGES,5902597601,1000089260
06.09.2023,ADULT SOCIAL CARE,OXFORD COMPUTER CONSULTANTS,"42,226.00",DIR OF ASC,COMMS & COMPUTING CONTRACT CHARGES,5902597603,1000089260
06.09.2023,ADULT SOCIAL CARE,REDACTED PERSONAL DATA,400,DISABILITIES LAC,ADDITIONAL PAYMENTS TO AGENCIES/CARERS,REDACTED,REDACTED
06.09.2023,ADULT SOCIAL CARE,REDACTED PERSONAL DATA,400,DISABILITIES LAC,ADDITIONAL PAYMENTS TO AGENCIES/CARERS,REDACTED,REDACTED
06.09.2023,ADULT SOCIAL CARE,REDACTED PERSONAL DATA,"1,664.00",DISABILITIES LAC,PAYMENTS TO CARERS,REDACTED,REDACTED
06.09.2023,ADULT SOCIAL CARE,REDACTED PERSONAL DATA,820,DISABILITIES LAC,PAYMENTS TO CARERS,REDACTED,REDACTED
06.09.2023,ADULT SOCIAL CARE,REDACTED PERSONAL DATA,978,DISABILITIES LAC,PAYMENTS TO CARERS,REDACTED,REDACTED
06.09.2023,ADULT SOCIAL CARE,REDACTED PERSONAL DATA,530,FAMILY LINK,PAYMENTS TO CARERS,REDACTED,REDACTED
06.09.2023,ADULT SOCIAL CARE,SOUTHSIDE PARTNERSHIP LTD,"30,239.92",S75 SUPHSG SCH LBS LEAD,EXTERNAL AGENCIES AND BODIES,5902597571,1716624
06.09.2023,ADULT SOCIAL CARE,CONTACT PROFESSIONALS,269.78,SPECIALIST CARE,SECTION 17 PAYMENTS TO AGENCIES/CARERS,2103746653,1000057263
06.09.2023,ADULT SOCIAL CARE,CONTACT PROFESSIONALS,289.05,SPECIALIST CARE,SECTION 17 PAYMENTS TO AGENCIES/CARERS,2103746664,1000057263
06.09.2023,ADULT SOCIAL CARE,CONTACT PROFESSIONALS,289.05,SPECIALIST CARE,SECTION 17 PAYMENTS TO AGENCIES/CARERS,2103746666,1000057263
06.09.2023,ADULT SOCIAL CARE,CONTACT PROFESSIONALS,375.77,SPECIALIST CARE,SECTION 17 PAYMENTS TO AGENCIES/CARERS,2103746680,1000057263
06.09.2023,ADULT SOCIAL CARE,CONTACT PROFESSIONALS,385.4,SPECIALIST CARE,SECTION 17 PAYMENTS TO AGENCIES/CARERS,2103746654,1000057263
06.09.2023,ADULT SOCIAL CARE,CONTACT PROFESSIONALS,385.4,SPECIALIST CARE,SECTION 17 PAYMENTS TO AGENCIES/CARERS,2103746671,1000057263
06.09.2023,ADULT SOCIAL CARE,CONTACT PROFESSIONALS,404.67,SPECIALIST CARE,SECTION 17 PAYMENTS TO AGENCIES/CARERS,2103746684,1000057263
06.09.2023,ADULT SOCIAL CARE,CONTACT PROFESSIONALS,462.48,SPECIALIST CARE,SECTION 17 PAYMENTS TO AGENCIES/CARERS,2103746658,1000057263
06.09.2023,ADULT SOCIAL CARE,CONTACT PROFESSIONALS,481.75,SPECIALIST CARE,SECTION 17 PAYMENTS TO AGENCIES/CARERS,2103746660,1000057263
06.09.2023,ADULT SOCIAL CARE,CONTACT PROFESSIONALS,578.1,SPECIALIST CARE,SECTION 17 PAYMENTS TO AGENCIES/CARERS,2103746674,1000057263
06.09.2023,ADULT SOCIAL CARE,CONTACT PROFESSIONALS,697.37,SPECIALIST CARE,SECTION 17 PAYMENTS TO AGENCIES/CARERS,2103746668,1000057263
06.09.2023,ADULT SOCIAL CARE,CONTACT PROFESSIONALS,982.77,SPECIALIST CARE,SECTION 17 PAYMENTS TO AGENCIES/CARERS,2103746669,1000057263
06.09.2023,ASSET MANAGEMENT,CAPITAL SERVICES LONDON LTD,"9,500.00",COMMERCIAL (QS),PROFESSIONAL FEES,5902597489,1000082548
06.09.2023,ASSET MANAGEMENT,LPS CONSULTING (LONDON) LIMITED,"14,700.00",DIRECTOR OF ASSET MANAGEMENT,PROFESSIONAL FEES,5902597495,1000084208
06.09.2023,ASSET MANAGEMENT,ARMINA LTD,534.02,DISREPAIR,BUILDING R&M,2103746195,3000002121
06.09.2023,ASSET MANAGEMENT,ARMINA LTD,704.58,DISREPAIR,BUILDING R&M,2103746206,3000002121
06.09.2023,ASSET MANAGEMENT,ARMINA LTD,"1,075.25",DISREPAIR,BUILDING R&M,2103746205,3000002121
06.09.2023,ASSET MANAGEMENT,ARMINA LTD,"1,342.11",DISREPAIR,BUILDING R&M,2103746199,3000002121
06.09.2023,ASSET MANAGEMENT,ARMINA LTD,"1,418.64",DISREPAIR,BUILDING R&M,2103746202,3000002121
06.09.2023,ASSET MANAGEMENT,ARMINA LTD,"1,465.14",DISREPAIR,BUILDING R&M,2103746197,3000002121
06.09.2023,ASSET MANAGEMENT,ARMINA LTD,"1,645.67",DISREPAIR,BUILDING R&M,2103746200,3000002121
06.09.2023,ASSET MANAGEMENT,ARMINA LTD,"1,818.55",DISREPAIR,BUILDING R&M,2103746207,3000002121
06.09.2023,ASSET MANAGEMENT,ARMINA LTD,"1,869.59",DISREPAIR,BUILDING R&M,2103746194,3000002121
06.09.2023,ASSET MANAGEMENT,ARMINA LTD,"1,953.93",DISREPAIR,BUILDING R&M,2103746198,3000002121
06.09.2023,ASSET MANAGEMENT,ARMINA LTD,"2,011.20",DISREPAIR,BUILDING R&M,2103746196,3000002121
06.09.2023,ASSET MANAGEMENT,ARMINA LTD,"2,131.00",DISREPAIR,BUILDING R&M,2103746203,3000002121
06.09.2023,ASSET MANAGEMENT,ARMINA LTD,"3,474.44",DISREPAIR,BUILDING R&M,2103746201,3000002121
06.09.2023,ASSET MANAGEMENT,JUDGE AND PRIESTLEY SOLICITORS,"30,000.00",DISREPAIR,BUILDING R&M,5902597456,1472217
06.09.2023,CENTRAL FUNCTIONS,CORONA ENERGY RETAIL 4 LIMITED,353.29,COMMERCIAL PROPERTIES,GAS,5902597617,1000090005
06.09.2023,CENTRAL FUNCTIONS,CORONA ENERGY RETAIL 4 LIMITED,506.17,COMMERCIAL PROPERTIES,GAS,5902597575,1000090005
06.09.2023,CENTRAL FUNCTIONS,CORONA ENERGY RETAIL 4 LIMITED,679.51,COMMERCIAL PROPERTIES,GAS,5902597574,1000090005
06.09.2023,CENTRAL FUNCTIONS,MORGAN SINDALL PROPERTY SERVICES LTD,"10,261.84",GAINS/LOSSES I & E,PROFESSIONAL FEES,5902597557,1000089196
06.09.2023,CHILDREN AND FAMILIES,REDACTED PERSONAL DATA,375.54,ADOPTION ALLOWANCES,PAYMENTS TO CARERS,REDACTED,REDACTED
06.09.2023,CHILDREN AND FAMILIES,REDACTED PERSONAL DATA,375.54,ADOPTION ALLOWANCES,PAYMENTS TO CARERS,REDACTED,REDACTED
06.09.2023,CHILDREN AND FAMILIES,REDACTED PERSONAL DATA,712.3,ADOPTION ALLOWANCES,PAYMENTS TO CARERS,REDACTED,REDACTED
06.09.2023,CHILDREN AND FAMILIES,REDACTED PERSONAL DATA,862,ADOPTION ALLOWANCES,PAYMENTS TO CARERS,REDACTED,REDACTED
06.09.2023,CHILDREN AND FAMILIES,REDACTED PERSONAL DATA,635.34,ADOPTION ALLOWANCES,PAYMENTS TO CARERS,REDACTED,REDACTED
06.09.2023,CHILDREN AND FAMILIES,REDACTED PERSONAL DATA,375.54,ADOPTION ALLOWANCES,PAYMENTS TO CARERS,REDACTED,REDACTED
06.09.2023,CHILDREN AND FAMILIES,REDACTED PERSONAL DATA,375.54,ADOPTION ALLOWANCES,PAYMENTS TO CARERS,REDACTED,REDACTED
06.09.2023,CHILDREN AND FAMILIES,REDACTED PERSONAL DATA,451.8,ADOPTION ALLOWANCES,PAYMENTS TO CARERS,REDACTED,REDACTED
06.09.2023,CHILDREN AND FAMILIES,REDACTED PERSONAL DATA,386,ADOPTION ALLOWANCES,PAYMENTS TO CARERS,REDACTED,REDACTED
06.09.2023,CHILDREN AND FAMILIES,REDACTED PERSONAL DATA,705.24,ADOPTION ALLOWANCES,PAYMENTS TO CARERS,REDACTED,REDACTED
06.09.2023,CHILDREN AND FAMILIES,REDACTED PERSONAL DATA,777.36,ADOPTION ALLOWANCES,PAYMENTS TO CARERS,REDACTED,REDACTED
06.09.2023,CHILDREN AND FAMILIES,REDACTED PERSONAL DATA,512.02,ADOPTION ALLOWANCES,PAYMENTS TO CARERS,REDACTED,REDACTED
06.09.2023,CHILDREN AND FAMILIES,REDACTED PERSONAL DATA,280.76,ADOPTION ALLOWANCES,PAYMENTS TO CARERS,REDACTED,REDACTED
06.09.2023,CHILDREN AND FAMILIES,REDACTED PERSONAL DATA,"1,745.90",ADOPTION ALLOWANCES,PAYMENTS TO CARERS,REDACTED,REDACTED
06.09.2023,CHILDREN AND FAMILIES,REDACTED PERSONAL DATA,375.54,ADOPTION ALLOWANCES,PAYMENTS TO CARERS,REDACTED,REDACTED
06.09.2023,CHILDREN AND FAMILIES,REDACTED PERSONAL DATA,375.54,ADOPTION ALLOWANCES,PAYMENTS TO CARERS,REDACTED,REDACTED
06.09.2023,CHILDREN AND FAMILIES,REDACTED PERSONAL DATA,502,ADOPTION ALLOWANCES,PAYMENTS TO CARERS,REDACTED,REDACTED
06.09.2023,CHILDREN AND FAMILIES,REDACTED PERSONAL DATA,375.54,ADOPTION ALLOWANCES,PAYMENTS TO CARERS,REDACTED,REDACTED
06.09.2023,CHILDREN AND FAMILIES,REDACTED PERSONAL DATA,640.9,ADOPTION ALLOWANCES,PAYMENTS TO CARERS,REDACTED,REDACTED
06.09.2023,CHILDREN AND FAMILIES,REDACTED PERSONAL DATA,382.3,ADOPTION ALLOWANCES,PAYMENTS TO CARERS,REDACTED,REDACTED
06.09.2023,CHILDREN AND FAMILIES,REDACTED PERSONAL DATA,382.3,ADOPTION ALLOWANCES,PAYMENTS TO CARERS,REDACTED,REDACTED
06.09.2023,CHILDREN AND FAMILIES,REDACTED PERSONAL DATA,359.9,ADOPTION ALLOWANCES,PAYMENTS TO CARERS,REDACTED,REDACTED
06.09.2023,CHILDREN AND FAMILIES,REDACTED PERSONAL DATA,320.56,ADOPTION ALLOWANCES,PAYMENTS TO CARERS,REDACTED,REDACTED
06.09.2023,CHILDREN AND FAMILIES,REDACTED PERSONAL DATA,293.12,ADOPTION ALLOWANCES,PAYMENTS TO CARERS,REDACTED,REDACTED
06.09.2023,CHILDREN AND FAMILIES,REDACTED PERSONAL DATA,278.54,ADOPTION ALLOWANCES,PAYMENTS TO CARERS,REDACTED,REDACTED
06.09.2023,CHILDREN AND FAMILIES,REDACTED PERSONAL DATA,485.22,ADOPTION ALLOWANCES,PAYMENTS TO CARERS,REDACTED,REDACTED
06.09.2023,CHILDREN AND FAMILIES,REDACTED PERSONAL DATA,252.9,ADOPTION ALLOWANCES,PAYMENTS TO CARERS,REDACTED,REDACTED
06.09.2023,CHILDREN AND FAMILIES,REDACTED PERSONAL DATA,253.56,ADOPTION ALLOWANCES,PAYMENTS TO CARERS,REDACTED,REDACTED
06.09.2023,CHILDREN AND FAMILIES,REDACTED PERSONAL DATA,279.22,ADOPTION ALLOWANCES,PAYMENTS TO CARERS,REDACTED,REDACTED
06.09.2023,CHILDREN AND FAMILIES,REDACTED PERSONAL DATA,382.3,ADOPTION ALLOWANCES,PAYMENTS TO CARERS,REDACTED,REDACTED
06.09.2023,CHILDREN AND FAMILIES,REDACTED PERSONAL DATA,382.3,ADOPTION ALLOWANCES,PAYMENTS TO CARERS,REDACTED,REDACTED
06.09.2023,CHILDREN AND FAMILIES,REDACTED PERSONAL DATA,484.92,ADOPTION ALLOWANCES,PAYMENTS TO CARERS,REDACTED,REDACTED
06.09.2023,CHILDREN AND FAMILIES,REDACTED PERSONAL DATA,600,ADOPTION ALLOWANCES,PAYMENTS TO CARERS,REDACTED,REDACTED
06.09.2023,CHILDREN AND FAMILIES,REDACTED PERSONAL DATA,908,ADOPTION ALLOWANCES,PAYMENTS TO CARERS,REDACTED,REDACTED
06.09.2023,CHILDREN AND FAMILIES,REDACTED PERSONAL DATA,738.32,ADOPTION ALLOWANCES,PAYMENTS TO CARERS,REDACTED,REDACTED
06.09.2023,CHILDREN AND FAMILIES,REDACTED PERSONAL DATA,695.12,ADOPTION ALLOWANCES,PAYMENTS TO CARERS,REDACTED,REDACTED
06.09.2023,CHILDREN AND FAMILIES,REDACTED PERSONAL DATA,251.94,ADOPTION ALLOWANCES,PAYMENTS TO CARERS,REDACTED,REDACTED
06.09.2023,CHILDREN AND FAMILIES,REDACTED PERSONAL DATA,652.9,ADOPTION ALLOWANCES,PAYMENTS TO CARERS,REDACTED,REDACTED
06.09.2023,CHILDREN AND FAMILIES,REDACTED PERSONAL DATA,652.9,ADOPTION ALLOWANCES,PAYMENTS TO CARERS,REDACTED,REDACTED
06.09.2023,CHILDREN AND FAMILIES,REDACTED PERSONAL DATA,712.3,ADOPTION ALLOWANCES,PAYMENTS TO CARERS,REDACTED,REDACTED
06.09.2023,CHILDREN AND FAMILIES,REDACTED PERSONAL DATA,767.68,ADOPTION ALLOWANCES,PAYMENTS TO CARERS,REDACTED,REDACTED
06.09.2023,CHILDREN AND FAMILIES,REDACTED PERSONAL DATA,400.18,ADOPTION ALLOWANCES,PAYMENTS TO CARERS,REDACTED,REDACTED
06.09.2023,CHILDREN AND FAMILIES,REDACTED PERSONAL DATA,898,ADOPTION ALLOWANCES,PAYMENTS TO CARERS,REDACTED,REDACTED
06.09.2023,CHILDREN AND FAMILIES,REDACTED PERSONAL DATA,914.2,ADOPTION ALLOWANCES,PAYMENTS TO CARERS,REDACTED,REDACTED
06.09.2023,CHILDREN AND FAMILIES,REDACTED PERSONAL DATA,588.42,ADOPTION ALLOWANCES,PAYMENTS TO CARERS,REDACTED,REDACTED
06.09.2023,CHILDREN AND FAMILIES,REDACTED PERSONAL DATA,"1,053.20",ADOPTION ALLOWANCES,PAYMENTS TO CARERS,REDACTED,REDACTED
06.09.2023,CHILDREN AND FAMILIES,REDACTED PERSONAL DATA,464,ADOPTION ALLOWANCES,PAYMENTS TO CARERS,REDACTED,REDACTED
06.09.2023,CHILDREN AND FAMILIES,REDACTED PERSONAL DATA,618.6,ADOPTION ALLOWANCES,PAYMENTS TO CARERS,REDACTED,REDACTED
06.09.2023,CHILDREN AND FAMILIES,REDACTED PERSONAL DATA,316.86,ADOPTION ALLOWANCES,PAYMENTS TO CARERS,REDACTED,REDACTED
06.09.2023,CHILDREN AND FAMILIES,REDACTED PERSONAL DATA,281.16,ADOPTION ALLOWANCES,PAYMENTS TO CARERS,REDACTED,REDACTED
06.09.2023,CHILDREN AND FAMILIES,REDACTED PERSONAL DATA,288.82,ADOPTION ALLOWANCES,PAYMENTS TO CARERS,REDACTED,REDACTED
06.09.2023,CHILDREN AND FAMILIES,REDACTED PERSONAL DATA,334,ADOPTION ALLOWANCES,PAYMENTS TO CARERS,REDACTED,REDACTED
06.09.2023,CHILDREN AND FAMILIES,REDACTED PERSONAL DATA,269.16,ADOPTION ALLOWANCES,PAYMENTS TO CARERS,REDACTED,REDACTED
06.09.2023,CHILDREN AND FAMILIES,REDACTED PERSONAL DATA,682,ADOPTION ALLOWANCES,PAYMENTS TO CARERS,REDACTED,REDACTED
06.09.2023,CHILDREN AND FAMILIES,REDACTED PERSONAL DATA,682,ADOPTION ALLOWANCES,PAYMENTS TO CARERS,REDACTED,REDACTED
06.09.2023,CHILDREN AND FAMILIES,REDACTED PERSONAL DATA,682,ADOPTION ALLOWANCES,PAYMENTS TO CARERS,REDACTED,REDACTED
06.09.2023,CHILDREN AND FAMILIES,REDACTED PERSONAL DATA,682,ADOPTION ALLOWANCES,PAYMENTS TO CARERS,REDACTED,REDACTED
06.09.2023,CHILDREN AND FAMILIES,REDACTED PERSONAL DATA,696,ADOPTION ALLOWANCES,PAYMENTS TO CARERS,REDACTED,REDACTED
06.09.2023,CHILDREN AND FAMILIES,REDACTED PERSONAL DATA,696,ADOPTION ALLOWANCES,PAYMENTS TO CARERS,REDACTED,REDACTED
06.09.2023,CHILDREN AND FAMILIES,REDACTED PERSONAL DATA,774,ADOPTION ALLOWANCES,PAYMENTS TO CARERS,REDACTED,REDACTED
06.09.2023,CHILDREN AND FAMILIES,THE THERAPEUTIC CONSULTANTS,310,ADOPTION SUPP FUND 2,EXTERNAL AGENCIES AND BODIES,5902597461,1000086961
06.09.2023,CHILDREN AND FAMILIES,REDACTED PERSONAL DATA,700,FOSTERING ALLOWANCES,ADDITIONAL PAYMENTS TO AGENCIES/CARERS,REDACTED,REDACTED
06.09.2023,CHILDREN AND FAMILIES,REDACTED PERSONAL DATA,900,FOSTERING ALLOWANCES,ADDITIONAL PAYMENTS TO AGENCIES/CARERS,REDACTED,REDACTED
06.09.2023,CHILDREN AND FAMILIES,REDACTED PERSONAL DATA,400,FOSTERING ALLOWANCES,ADDITIONAL PAYMENTS TO AGENCIES/CARERS,REDACTED,REDACTED
06.09.2023,CHILDREN AND FAMILIES,REDACTED PERSONAL DATA,400,FOSTERING ALLOWANCES,ADDITIONAL PAYMENTS TO AGENCIES/CARERS,REDACTED,REDACTED
06.09.2023,CHILDREN AND FAMILIES,REDACTED PERSONAL DATA,400,FOSTERING ALLOWANCES,ADDITIONAL PAYMENTS TO AGENCIES/CARERS,REDACTED,REDACTED
06.09.2023,CHILDREN AND FAMILIES,REDACTED PERSONAL DATA,400,FOSTERING ALLOWANCES,ADDITIONAL PAYMENTS TO AGENCIES/CARERS,REDACTED,REDACTED
06.09.2023,CHILDREN AND FAMILIES,REDACTED PERSONAL DATA,500,FOSTERING ALLOWANCES,COMPUTER CONSUMABLES,REDACTED,REDACTED
06.09.2023,CHILDREN AND FAMILIES,REDACTED PERSONAL DATA,994,FOSTERING ALLOWANCES,PAYMENTS TO CARERS,REDACTED,REDACTED
06.09.2023,CHILDREN AND FAMILIES,REDACTED PERSONAL DATA,"1,084.00",FOSTERING ALLOWANCES,PAYMENTS TO CARERS,REDACTED,REDACTED
06.09.2023,CHILDREN AND FAMILIES,REDACTED PERSONAL DATA,978,FOSTERING ALLOWANCES,PAYMENTS TO CARERS,REDACTED,REDACTED
06.09.2023,CHILDREN AND FAMILIES,REDACTED PERSONAL DATA,994,FOSTERING ALLOWANCES,PAYMENTS TO CARERS,REDACTED,REDACTED
06.09.2023,CHILDREN AND FAMILIES,REDACTED PERSONAL DATA,994,FOSTERING ALLOWANCES,PAYMENTS TO CARERS,REDACTED,REDACTED
06.09.2023,CHILDREN AND FAMILIES,REDACTED PERSONAL DATA,994,FOSTERING ALLOWANCES,PAYMENTS TO CARERS,REDACTED,REDACTED
06.09.2023,CHILDREN AND FAMILIES,REDACTED PERSONAL DATA,"1,084.00",FOSTERING ALLOWANCES,PAYMENTS TO CARERS,REDACTED,REDACTED
06.09.2023,CHILDREN AND FAMILIES,REDACTED PERSONAL DATA,"1,122.00",FOSTERING ALLOWANCES,PAYMENTS TO CARERS,REDACTED,REDACTED
06.09.2023,CHILDREN AND FAMILIES,REDACTED PERSONAL DATA,-287.86,FOSTERING ALLOWANCES,PAYMENTS TO CARERS,REDACTED,REDACTED
06.09.2023,CHILDREN AND FAMILIES,REDACTED PERSONAL DATA,"1,632.00",FOSTERING ALLOWANCES,PAYMENTS TO CARERS,REDACTED,REDACTED
06.09.2023,CHILDREN AND FAMILIES,REDACTED PERSONAL DATA,994,FOSTERING ALLOWANCES,PAYMENTS TO CARERS,REDACTED,REDACTED
06.09.2023,CHILDREN AND FAMILIES,REDACTED PERSONAL DATA,978,FOSTERING ALLOWANCES,PAYMENTS TO CARERS,REDACTED,REDACTED
06.09.2023,CHILDREN AND FAMILIES,REDACTED PERSONAL DATA,"1,084.00",FOSTERING ALLOWANCES,PAYMENTS TO CARERS,REDACTED,REDACTED
06.09.2023,CHILDREN AND FAMILIES,REDACTED PERSONAL DATA,978,FOSTERING ALLOWANCES,PAYMENTS TO CARERS,REDACTED,REDACTED
06.09.2023,CHILDREN AND FAMILIES,REDACTED PERSONAL DATA,"1,084.00",FOSTERING ALLOWANCES,PAYMENTS TO CARERS,REDACTED,REDACTED
06.09.2023,CHILDREN AND FAMILIES,REDACTED PERSONAL DATA,978,FOSTERING ALLOWANCES,PAYMENTS TO CARERS,REDACTED,REDACTED
06.09.2023,CHILDREN AND FAMILIES,REDACTED PERSONAL DATA,"1,878.00",FOSTERING ALLOWANCES,PAYMENTS TO CARERS,REDACTED,REDACTED
06.09.2023,CHILDREN AND FAMILIES,REDACTED PERSONAL DATA,"1,084.00",FOSTERING ALLOWANCES,PAYMENTS TO CARERS,REDACTED,REDACTED
06.09.2023,CHILDREN AND FAMILIES,REDACTED PERSONAL DATA,806,FOSTERING ALLOWANCES,PAYMENTS TO CARERS,REDACTED,REDACTED
06.09.2023,CHILDREN AND FAMILIES,REDACTED PERSONAL DATA,994,FOSTERING ALLOWANCES,PAYMENTS TO CARERS,REDACTED,REDACTED
06.09.2023,CHILDREN AND FAMILIES,REDACTED PERSONAL DATA,978,FOSTERING ALLOWANCES,PAYMENTS TO CARERS,REDACTED,REDACTED
06.09.2023,CHILDREN AND FAMILIES,REDACTED PERSONAL DATA,660,FOSTERING ALLOWANCES,PAYMENTS TO CARERS,REDACTED,REDACTED
06.09.2023,CHILDREN AND FAMILIES,REDACTED PERSONAL DATA,978,FOSTERING ALLOWANCES,PAYMENTS TO CARERS,REDACTED,REDACTED
06.09.2023,CHILDREN AND FAMILIES,REDACTED PERSONAL DATA,"1,084.00",FOSTERING ALLOWANCES,PAYMENTS TO CARERS,REDACTED,REDACTED
06.09.2023,CHILDREN AND FAMILIES,REDACTED PERSONAL DATA,"1,084.00",FOSTERING ALLOWANCES,PAYMENTS TO CARERS,REDACTED,REDACTED
06.09.2023,CHILDREN AND FAMILIES,REDACTED PERSONAL DATA,733.98,FOSTERING ALLOWANCES,PAYMENTS TO CARERS,REDACTED,REDACTED
06.09.2023,CHILDREN AND FAMILIES,REDACTED PERSONAL DATA,"1,084.00",FOSTERING ALLOWANCES,PAYMENTS TO CARERS,REDACTED,REDACTED
06.09.2023,CHILDREN AND FAMILIES,REDACTED PERSONAL DATA,"1,054.00",FOSTERING ALLOWANCES,PAYMENTS TO CARERS,REDACTED,REDACTED
06.09.2023,CHILDREN AND FAMILIES,REDACTED PERSONAL DATA,806,FOSTERING ALLOWANCES,PAYMENTS TO CARERS,REDACTED,REDACTED
06.09.2023,CHILDREN AND FAMILIES,REDACTED PERSONAL DATA,744,FOSTERING ALLOWANCES,PAYMENTS TO CARERS,REDACTED,REDACTED
06.09.2023,CHILDREN AND FAMILIES,REDACTED PERSONAL DATA,828,FOSTERING ALLOWANCES,PAYMENTS TO CARERS,REDACTED,REDACTED
06.09.2023,CHILDREN AND FAMILIES,REDACTED PERSONAL DATA,946,FOSTERING ALLOWANCES,PAYMENTS TO CARERS,REDACTED,REDACTED
06.09.2023,CHILDREN AND FAMILIES,REDACTED PERSONAL DATA,994,FOSTERING ALLOWANCES,PAYMENTS TO CARERS,REDACTED,REDACTED
06.09.2023,CHILDREN AND FAMILIES,REDACTED PERSONAL DATA,"1,084.00",FOSTERING ALLOWANCES,PAYMENTS TO CARERS,REDACTED,REDACTED
06.09.2023,CHILDREN AND FAMILIES,REDACTED PERSONAL DATA,978,FOSTERING ALLOWANCES,PAYMENTS TO CARERS,REDACTED,REDACTED
06.09.2023,CHILDREN AND FAMILIES,REDACTED PERSONAL DATA,958.29,FOSTERING ALLOWANCES,PAYMENTS TO CARERS,REDACTED,REDACTED
06.09.2023,CHILDREN AND FAMILIES,REDACTED PERSONAL DATA,"1,054.00",FOSTERING ALLOWANCES,PAYMENTS TO CARERS,REDACTED,REDACTED
06.09.2023,CHILDREN AND FAMILIES,REDACTED PERSONAL DATA,"1,802.00",FOSTERING ALLOWANCES,PAYMENTS TO CARERS,REDACTED,REDACTED
06.09.2023,CHILDREN AND FAMILIES,REDACTED PERSONAL DATA,978,FOSTERING ALLOWANCES,PAYMENTS TO CARERS,REDACTED,REDACTED
06.09.2023,CHILDREN AND FAMILIES,REDACTED PERSONAL DATA,994,FOSTERING ALLOWANCES,PAYMENTS TO CARERS,REDACTED,REDACTED
06.09.2023,CHILDREN AND FAMILIES,REDACTED PERSONAL DATA,978,FOSTERING ALLOWANCES,PAYMENTS TO CARERS,REDACTED,REDACTED
06.09.2023,CHILDREN AND FAMILIES,REDACTED PERSONAL DATA,"1,031.00",FOSTERING ALLOWANCES,PAYMENTS TO CARERS,REDACTED,REDACTED
06.09.2023,CHILDREN AND FAMILIES,REDACTED PERSONAL DATA,864,FOSTERING ALLOWANCES,PAYMENTS TO CARERS,REDACTED,REDACTED
06.09.2023,CHILDREN AND FAMILIES,REDACTED PERSONAL DATA,"1,084.00",FOSTERING ALLOWANCES,PAYMENTS TO CARERS,REDACTED,REDACTED
06.09.2023,CHILDREN AND FAMILIES,REDACTED PERSONAL DATA,"1,084.00",FOSTERING ALLOWANCES,PAYMENTS TO CARERS,REDACTED,REDACTED
06.09.2023,CHILDREN AND FAMILIES,REDACTED PERSONAL DATA,806,FOSTERING ALLOWANCES,PAYMENTS TO CARERS,REDACTED,REDACTED
06.09.2023,CHILDREN AND FAMILIES,REDACTED PERSONAL DATA,994,FOSTERING ALLOWANCES,PAYMENTS TO CARERS,REDACTED,REDACTED
06.09.2023,CHILDREN AND FAMILIES,REDACTED PERSONAL DATA,806,FOSTERING ALLOWANCES,PAYMENTS TO CARERS,REDACTED,REDACTED
06.09.2023,CHILDREN AND FAMILIES,REDACTED PERSONAL DATA,994,FOSTERING ALLOWANCES,PAYMENTS TO CARERS,REDACTED,REDACTED
06.09.2023,CHILDREN AND FAMILIES,REDACTED PERSONAL DATA,"1,054.00",FOSTERING ALLOWANCES,PAYMENTS TO CARERS,REDACTED,REDACTED
06.09.2023,CHILDREN AND FAMILIES,REDACTED PERSONAL DATA,828,FOSTERING ALLOWANCES,PAYMENTS TO CARERS,REDACTED,REDACTED
06.09.2023,CHILDREN AND FAMILIES,REDACTED PERSONAL DATA,828,FOSTERING ALLOWANCES,PAYMENTS TO CARERS,REDACTED,REDACTED
06.09.2023,CHILDREN AND FAMILIES,REDACTED PERSONAL DATA,806,FOSTERING ALLOWANCES,PAYMENTS TO CARERS,REDACTED,REDACTED
06.09.2023,CHILDREN AND FAMILIES,REDACTED PERSONAL DATA,864,FOSTERING ALLOWANCES,PAYMENTS TO CARERS,REDACTED,REDACTED
06.09.2023,CHILDREN AND FAMILIES,REDACTED PERSONAL DATA,"1,084.00",FOSTERING ALLOWANCES,PAYMENTS TO CARERS,REDACTED,REDACTED
06.09.2023,CHILDREN AND FAMILIES,REDACTED PERSONAL DATA,864,FOSTERING ALLOWANCES,PAYMENTS TO CARERS,REDACTED,REDACTED
06.09.2023,CHILDREN AND FAMILIES,REDACTED PERSONAL DATA,978,FOSTERING ALLOWANCES,PAYMENTS TO CARERS,REDACTED,REDACTED
06.09.2023,CHILDREN AND FAMILIES,REDACTED PERSONAL DATA,978,FOSTERING ALLOWANCES,PAYMENTS TO CARERS,REDACTED,REDACTED
06.09.2023,CHILDREN AND FAMILIES,REDACTED PERSONAL DATA,"1,284.00",FOSTERING ALLOWANCES,PAYMENTS TO CARERS,REDACTED,REDACTED
06.09.2023,CHILDREN AND FAMILIES,REDACTED PERSONAL DATA,978,FOSTERING ALLOWANCES,PAYMENTS TO CARERS,REDACTED,REDACTED
06.09.2023,CHILDREN AND FAMILIES,REDACTED PERSONAL DATA,"1,694.00",FOSTERING ALLOWANCES,PAYMENTS TO CARERS,REDACTED,REDACTED
06.09.2023,CHILDREN AND FAMILIES,REDACTED PERSONAL DATA,"1,235.00",FOSTERING ALLOWANCES,PAYMENTS TO CARERS,REDACTED,REDACTED
06.09.2023,CHILDREN AND FAMILIES,REDACTED PERSONAL DATA,698.57,FOSTERING ALLOWANCES,PAYMENTS TO CARERS,REDACTED,REDACTED
06.09.2023,CHILDREN AND FAMILIES,REDACTED PERSONAL DATA,774.29,FOSTERING ALLOWANCES,PAYMENTS TO CARERS,REDACTED,REDACTED
06.09.2023,CHILDREN AND FAMILIES,REDACTED PERSONAL DATA,864,FOSTERING ALLOWANCES,PAYMENTS TO CARERS,REDACTED,REDACTED
06.09.2023,CHILDREN AND FAMILIES,REDACTED PERSONAL DATA,978,FOSTERING ALLOWANCES,PAYMENTS TO CARERS,REDACTED,REDACTED
06.09.2023,CHILDREN AND FAMILIES,REDACTED PERSONAL DATA,978,FOSTERING ALLOWANCES,PAYMENTS TO CARERS,REDACTED,REDACTED
06.09.2023,CHILDREN AND FAMILIES,REDACTED PERSONAL DATA,978,FOSTERING ALLOWANCES,PAYMENTS TO CARERS,REDACTED,REDACTED
06.09.2023,CHILDREN AND FAMILIES,REDACTED PERSONAL DATA,"-1,178.29",FOSTERING ALLOWANCES,PAYMENTS TO CARERS,REDACTED,REDACTED
06.09.2023,CHILDREN AND FAMILIES,REDACTED PERSONAL DATA,978,FOSTERING ALLOWANCES,PAYMENTS TO CARERS,REDACTED,REDACTED
06.09.2023,CHILDREN AND FAMILIES,REDACTED PERSONAL DATA,"1,084.00",FOSTERING ALLOWANCES,PAYMENTS TO CARERS,REDACTED,REDACTED
06.09.2023,CHILDREN AND FAMILIES,REDACTED PERSONAL DATA,"1,084.00",FOSTERING ALLOWANCES,PAYMENTS TO CARERS,REDACTED,REDACTED
06.09.2023,CHILDREN AND FAMILIES,REDACTED PERSONAL DATA,"1,046.00",FOSTERING ALLOWANCES,PAYMENTS TO CARERS,REDACTED,REDACTED
06.09.2023,CHILDREN AND FAMILIES,REDACTED PERSONAL DATA,978,FOSTERING ALLOWANCES,PAYMENTS TO CARERS,REDACTED,REDACTED
06.09.2023,CHILDREN AND FAMILIES,REDACTED PERSONAL DATA,994,FOSTERING ALLOWANCES,PAYMENTS TO CARERS,REDACTED,REDACTED
06.09.2023,CHILDREN AND FAMILIES,REDACTED PERSONAL DATA,"1,084.00",FOSTERING ALLOWANCES,PAYMENTS TO CARERS,REDACTED,REDACTED
06.09.2023,CHILDREN AND FAMILIES,REDACTED PERSONAL DATA,978,FOSTERING ALLOWANCES,PAYMENTS TO CARERS,REDACTED,REDACTED
06.09.2023,CHILDREN AND FAMILIES,REDACTED PERSONAL DATA,"1,802.00",FOSTERING ALLOWANCES,PAYMENTS TO CARERS,REDACTED,REDACTED
06.09.2023,CHILDREN AND FAMILIES,REDACTED PERSONAL DATA,864,FOSTERING ALLOWANCES,PAYMENTS TO CARERS,REDACTED,REDACTED
06.09.2023,CHILDREN AND FAMILIES,REDACTED PERSONAL DATA,946,FOSTERING ALLOWANCES,PAYMENTS TO CARERS,REDACTED,REDACTED
06.09.2023,CHILDREN AND FAMILIES,REDACTED PERSONAL DATA,940,FOSTERING ALLOWANCES,PAYMENTS TO CARERS,REDACTED,REDACTED
06.09.2023,CHILDREN AND FAMILIES,REDACTED PERSONAL DATA,940,FOSTERING ALLOWANCES,PAYMENTS TO CARERS,REDACTED,REDACTED
06.09.2023,CHILDREN AND FAMILIES,REDACTED PERSONAL DATA,940,FOSTERING ALLOWANCES,PAYMENTS TO CARERS,REDACTED,REDACTED
06.09.2023,CHILDREN AND FAMILIES,REDACTED PERSONAL DATA,"1,442.00",FOSTERING ALLOWANCES,PAYMENTS TO CARERS,REDACTED,REDACTED
06.09.2023,CHILDREN AND FAMILIES,REDACTED PERSONAL DATA,386.14,FOSTERING ALLOWANCES,PAYMENTS TO CARERS,REDACTED,REDACTED
06.09.2023,CHILDREN AND FAMILIES,REDACTED PERSONAL DATA,994,FOSTERING ALLOWANCES,PAYMENTS TO CARERS,REDACTED,REDACTED
06.09.2023,CHILDREN AND FAMILIES,REDACTED PERSONAL DATA,828,FOSTERING ALLOWANCES,PAYMENTS TO CARERS,REDACTED,REDACTED
06.09.2023,CHILDREN AND FAMILIES,REDACTED PERSONAL DATA,978,FOSTERING ALLOWANCES,PAYMENTS TO CARERS,REDACTED,REDACTED
06.09.2023,CHILDREN AND FAMILIES,REDACTED PERSONAL DATA,978,FOSTERING ALLOWANCES,PAYMENTS TO CARERS,REDACTED,REDACTED
06.09.2023,CHILDREN AND FAMILIES,REDACTED PERSONAL DATA,"1,046.00",FOSTERING ALLOWANCES,PAYMENTS TO CARERS,REDACTED,REDACTED
06.09.2023,CHILDREN AND FAMILIES,REDACTED PERSONAL DATA,"1,713.10",FOSTERING ALLOWANCES,PAYMENTS TO CARERS,REDACTED,REDACTED
06.09.2023,CHILDREN AND FAMILIES,REDACTED PERSONAL DATA,-355,FOSTERING ALLOWANCES,PAYMENTS TO CARERS,REDACTED,REDACTED
06.09.2023,CHILDREN AND FAMILIES,REDACTED PERSONAL DATA,994,FOSTERING ALLOWANCES,PAYMENTS TO CARERS,REDACTED,REDACTED
06.09.2023,CHILDREN AND FAMILIES,REDACTED PERSONAL DATA,"1,700.00",FOSTERING ALLOWANCES,PAYMENTS TO CARERS,REDACTED,REDACTED
06.09.2023,CHILDREN AND FAMILIES,REDACTED PERSONAL DATA,"1,084.00",FOSTERING ALLOWANCES,PAYMENTS TO CARERS,REDACTED,REDACTED
06.09.2023,CHILDREN AND FAMILIES,REDACTED PERSONAL DATA,683.43,FOSTERING ALLOWANCES,PAYMENTS TO CARERS,REDACTED,REDACTED
06.09.2023,CHILDREN AND FAMILIES,REDACTED PERSONAL DATA,978,FOSTERING ALLOWANCES,PAYMENTS TO CARERS,REDACTED,REDACTED
06.09.2023,CHILDREN AND FAMILIES,REDACTED PERSONAL DATA,774,FOSTERING ALLOWANCES,PAYMENTS TO CARERS,REDACTED,REDACTED
06.09.2023,CHILDREN AND FAMILIES,REDACTED PERSONAL DATA,946,FOSTERING ALLOWANCES,PAYMENTS TO CARERS,REDACTED,REDACTED
06.09.2023,CHILDREN AND FAMILIES,REDACTED PERSONAL DATA,946,FOSTERING ALLOWANCES,PAYMENTS TO CARERS,REDACTED,REDACTED
06.09.2023,CHILDREN AND FAMILIES,REDACTED PERSONAL DATA,946,FOSTERING ALLOWANCES,PAYMENTS TO CARERS,REDACTED,REDACTED
06.09.2023,CHILDREN AND FAMILIES,REDACTED PERSONAL DATA,"4,426.72",FOSTERING ALLOWANCES,PAYMENTS TO CARERS,REDACTED,REDACTED
06.09.2023,CHILDREN AND FAMILIES,REDACTED PERSONAL DATA,"1,070.16",FOSTERING ALLOWANCES,PAYMENTS TO CARERS,REDACTED,REDACTED
06.09.2023,CHILDREN AND FAMILIES,REDACTED PERSONAL DATA,"1,046.00",FOSTERING ALLOWANCES,PAYMENTS TO CARERS,REDACTED,REDACTED
06.09.2023,CHILDREN AND FAMILIES,REDACTED PERSONAL DATA,774,FOSTERING ALLOWANCES,PAYMENTS TO CARERS,REDACTED,REDACTED
06.09.2023,CHILDREN AND FAMILIES,REDACTED PERSONAL DATA,946,FOSTERING ALLOWANCES,PAYMENTS TO CARERS,REDACTED,REDACTED
